Service Area,Service Area Categorisation,Service Division Categorisation,Responsible Unit,Expenses Types,Detailed Expenses Type,Expense Code,Narrative,Invoice Date,Payment Date,Amount,Capital/Revenue,Supplier Name
Adult Services,Direct Care Residential,Social Care and Health,Severn View Residential,Supplies & Services,"Equipment, Furniture and Materials",Provisions.,,09/01/2024,17/01/2024,554.72,,REDACTED DATA
"Leisure, Youth & Outdoor Adventure",Leisure Services,MonLife Directorate,Chepstow Leisure Centre,Supplies & Services,Catering,Cafe,,12/01/2024,17/01/2024,67.49,,Nisbets
Adult Services,Direct Care Residential,Social Care and Health,Severn View Residential,Supplies & Services,"Equipment, Furniture and Materials",Provisions.,,12/01/2024,17/01/2024,886.9,,REDACTED DATA
Adult Services,Direct Care Residential,Social Care and Health,Severn View Residential,Supplies & Services,"Equipment, Furniture and Materials",Provisions.,,27/12/2023,02/01/2024,48.98,,Castell Howell Foods Ltd
Adult Services,Direct Care Residential,Social Care and Health,Severn View Residential,Supplies & Services,"Equipment, Furniture and Materials",Provisions.,,27/12/2023,02/01/2024,-48.98,,Castell Howell Foods Ltd
Adult Services,Direct Care Residential,Social Care and Health,Severn View Residential,Supplies & Services,"Equipment, Furniture and Materials",Provisions.,,27/12/2023,02/01/2024,459.62,,Castell Howell Foods Ltd
Adult Services,Direct Care Residential,Social Care and Health,Severn View Residential,Supplies & Services,"Equipment, Furniture and Materials",Provisions.,,05/12/2023,02/01/2024,92.91,,Dole
"Leisure, Youth & Outdoor Adventure",Leisure Services,MonLife Directorate,Caldicot Leisure Centre,Supplies & Services,"Equipment, Furniture and Materials",Cleaning Materials.,,02/01/2024,04/01/2024,2.75,,Newhall Janitorial Ltd
"Leisure, Youth & Outdoor Adventure",Leisure Services,MonLife Directorate,Chepstow Leisure Centre,Supplies & Services,"Equipment, Furniture and Materials",Cleaning Materials.,,19/12/2023,04/01/2024,210.24,,Newhall Janitorial Ltd
Schools Total,School Group 2 � Pupil Capacity 144-314,MCC Schools,Dewstow Primary School,Supplies & Services,"Equipment, Furniture and Materials",Small Plant & Tools.,,27/11/2023,18/01/2024,7.49,,Screwfix Trade UK
Schools Total,SCHGRP3 � School Group 3 � Pupil Capacity 315-500,MCC Schools,Undy Primary School,Supplies & Services,"Equipment, Furniture and Materials",Cleaning Materials.,,19/12/2023,17/01/2024,19.08,,Newhall Janitorial Ltd
Schools Total,SCHGRP3 � School Group 3 � Pupil Capacity 315-500,MCC Schools,Undy Primary School,Supplies & Services,"Equipment, Furniture and Materials",Cleaning Materials.,,19/12/2023,17/01/2024,15.69,,Newhall Janitorial Ltd
Schools Total,School Group 2 � Pupil Capacity 144-314,MCC Schools,Dewstow Primary School,Supplies & Services,"Equipment, Furniture and Materials",Small Plant & Tools.,,27/11/2023,18/01/2024,3.13,,Screwfix Trade UK
Schools Total,School Group 2 � Pupil Capacity 144-314,MCC Schools,Dewstow Primary School,Supplies & Services,"Equipment, Furniture and Materials",Small Plant & Tools.,,27/11/2023,18/01/2024,4.74,,Screwfix Trade UK
Schools Total,School Group 2 � Pupil Capacity 144-314,MCC Schools,Dewstow Primary School,Supplies & Services,"Equipment, Furniture and Materials",Small Plant & Tools.,,27/11/2023,18/01/2024,6.24,,Screwfix Trade UK
Schools Total,School Group 2 � Pupil Capacity 144-314,MCC Schools,Dewstow Primary School,Supplies & Services,"Equipment, Furniture and Materials",Small Plant & Tools.,,27/11/2023,18/01/2024,66.66,,Screwfix Trade UK
Schools Total,School Group 1 � Pupil Capacity 1-143,MCC Schools,Ysgol Gymraeg Y Ffin,Supplies & Services,"Equipment, Furniture and Materials",Cleaning Materials.,,18/01/2024,24/01/2024,45.98,,ESPO
"Facilities, Fleet & Decarbonisation",Property Services -  Cleaning,Communities & Place,Building Cleaning,Supplies & Services,"Equipment, Furniture and Materials",Cleaning Materials.,,10/01/2024,22/01/2024,760.32,,Newhall Janitorial Ltd
Standards,Additional Learning Needs,Children & Young People,Additional Learning Needs,Third Party Payments,Third Party,Placement Fees,,15/11/2023,22/01/2024,19152.9,,Talocher School Priory
Standards,Additional Learning Needs,Children & Young People,Additional Learning Needs,Third Party Payments,Third Party,Placement Fees,,04/12/2023,22/01/2024,23117.58,,Aurora
Adult Services,Direct Care Residential,Social Care and Health,Severn View Residential,Supplies & Services,"Equipment, Furniture and Materials",Provisions.,,11/01/2024,17/01/2024,148.17,,Dole
Schools Total,School Group 2 � Pupil Capacity 144-314,MCC Schools,Raglan CiW Primary School (VC),Supplies & Services,"Equipment, Furniture and Materials",Cleaning Materials.,,15/01/2024,24/01/2024,20,,KN Office
Children Services,Children Services Teams,Social Care and Health,Long Term Support Team,Third Party Payments,Third Party,Individual Needs,,09/01/2024,19/01/2024,52799.88,,Midway Transitional Solutions Ltd
"Facilities, Fleet & Decarbonisation",Property Services -  Cleaning,Communities & Place,Building Cleaning,Supplies & Services,"Equipment, Furniture and Materials",Cleaning Materials.,,19/12/2023,05/01/2024,522.18,,Taymec Cleaning Systems Ltd
"Facilities, Fleet & Decarbonisation",Property Services -  Cleaning,Communities & Place,Building Cleaning,Supplies & Services,"Equipment, Furniture and Materials",Cleaning Materials.,,17/01/2024,29/01/2024,318.22,,H D Adcock (Nelson) Ltd
#N/A,#N/A,#N/A,#N/A,Supplies & Services,"Equipment, Furniture and Materials",Provisions.,,10/01/2024,29/01/2024,277.5,,Castell Howell Foods Ltd
#N/A,#N/A,#N/A,#N/A,Supplies & Services,"Equipment, Furniture and Materials",Provisions.,,10/01/2024,29/01/2024,25.14,,Castell Howell Foods Ltd
#N/A,#N/A,#N/A,#N/A,Supplies & Services,"Equipment, Furniture and Materials",Provisions.,,10/01/2024,29/01/2024,-25.14,,Castell Howell Foods Ltd
Schools Total,School Group 2 � Pupil Capacity 144-314,MCC Schools,Shirenewton Primary School,Supplies & Services,"Equipment, Furniture and Materials",Cleaning Materials.,,18/01/2024,29/01/2024,15.27,,Newhall Janitorial Ltd
"Leisure, Youth & Outdoor Adventure",Leisure Services,MonLife Directorate,Caldicot Leisure Centre,Supplies & Services,Catering,Cafe,,19/01/2024,29/01/2024,514.65,,Blue Cap Coffee
Schools Total,School Group 7 � Pupil Capacity 501-1800,MCC Schools,Monmouth Comprehensive,Third Party Payments,Third Party,School Meal Service,,18/01/2024,24/01/2024,57.08,,Amazon Payments UK Limited
Adult Services,Direct Care Residential,Social Care and Health,Mardy Park,Supplies & Services,"Equipment, Furniture and Materials",Provisions.,,05/01/2024,29/01/2024,142.93,,Castell Howell Foods Ltd
Adult Services,Direct Care Residential,Social Care and Health,Mardy Park,Supplies & Services,"Equipment, Furniture and Materials",Provisions.,,05/01/2024,29/01/2024,-17.39,,Castell Howell Foods Ltd
Adult Services,Direct Care Residential,Social Care and Health,Mardy Park,Supplies & Services,"Equipment, Furniture and Materials",Provisions.,,05/01/2024,29/01/2024,17.39,,Castell Howell Foods Ltd
Schools Total,School Group 7 � Pupil Capacity 501-1800,MCC Schools,Chepstow School,Supplies & Services,"Clothes, Uniform and Laundry",Clothing And Uniforms,,04/01/2024,17/01/2024,221,,VX3
Schools Total,School Group 7 � Pupil Capacity 501-1800,MCC Schools,Chepstow School,Supplies & Services,"Clothes, Uniform and Laundry",Clothing And Uniforms,,04/01/2024,17/01/2024,4.16,,VX3
Capital Division,Capital Dept,Capital,Capital Programme,Supplies & Services,"Equipment, Furniture and Materials",Materials & Consumables.,,09/01/2024,17/01/2024,497.06,,REDACTED DATA
Capital Division,Capital Dept,Capital,Capital Programme,Supplies & Services,"Equipment, Furniture and Materials",Materials & Consumables.,,10/01/2024,17/01/2024,38620,,Wyevale Nurseries
"Placemaking, Highways & Flooding",Development Management & Building Control,Communities & Place,Development Management,Supplies & Services,"Equipment, Furniture and Materials",Repairs & Maintenance.,,29/12/2023,04/01/2024,174.92,,Teffont Business Systems Ltd
"Placemaking, Highways & Flooding",Development Management & Building Control,Communities & Place,Building Control & Regulations,Supplies & Services,"Equipment, Furniture and Materials",Repairs & Maintenance.,,29/12/2023,04/01/2024,175.19,,Teffont Business Systems Ltd
"Placemaking, Highways & Flooding",Highways Dev & Car Parks,Communities & Place,Design & Commissioning,Supplies & Services,"Equipment, Furniture and Materials",Repairs & Maintenance.,,29/12/2023,04/01/2024,175.19,,Teffont Business Systems Ltd
Adult Services,Direct Care,Social Care and Health,Care at Home,Supplies & Services,Services,Training Charges,,01/01/2024,04/01/2024,120,,REDACTED PERSONAL DATA
"Policy, Scrutiny & Customer Service",Policy And Partnerships,Chief Executive's Unit,Equalities and Welsh Language,Supplies & Services,Services,Professional And Specialist Fees,,02/01/2024,04/01/2024,227.82,,REDACTED PERSONAL DATA
Children Services,Children Services Other,Social Care and Health,Counsel Costs,Supplies & Services,Services,Professional And Specialist Fees,,20/11/2023,29/01/2024,24.97,,The Transcription Agency
Neighbourhood Services,Highways,Communities & Place,Overhead - Mon Highways,Supplies & Services,Services,Training Charges,,04/01/2024,17/01/2024,80,,Heads Of The Valley Training Con
Neighbourhood Services,Highways,Communities & Place,External Contracts,Supplies & Services,"Equipment, Furniture and Materials",Repairs & Maintenance.,,20/11/2023,17/01/2024,1463.66,,KPR Engineering (M&E) Ltd
Neighbourhood Services,Highways,Communities & Place,Pumping stations,Supplies & Services,"Equipment, Furniture and Materials",Repairs & Maintenance.,,07/11/2023,17/01/2024,885,,KPR Engineering (M&E) Ltd
"Facilities, Fleet & Decarbonisation",Home to School Transport Dept,Communities & Place,Home To School Transport,Supplies & Services,"Clothes, Uniform and Laundry",Clothing And Uniforms,,17/01/2024,24/01/2024,16,,Kudos Compamies Ltd
Neighbourhood Services,Highways,Communities & Place,Overhead - Mon Highways,Supplies & Services,Services,Sub-Contractors Fees,,30/11/2023,25/01/2024,142.8,,G D Environmental Services Ltd
Neighbourhood Services,Highways,Communities & Place,Overhead - SWTRA / External,Supplies & Services,Services,Sub-Contractors Fees,,31/12/2023,25/01/2024,638.29,,G D Environmental Services Ltd
Neighbourhood Services,Highways,Communities & Place,Overhead - Mon Highways,Supplies & Services,Services,Sub-Contractors Fees,,31/12/2023,25/01/2024,127.6,,G D Environmental Services Ltd
Neighbourhood Services,Highways,Communities & Place,Overhead - Mon Highways,Supplies & Services,Services,Sub-Contractors Fees,,31/12/2023,25/01/2024,233.2,,G D Environmental Services Ltd
Neighbourhood Services,Highways,Communities & Place,Overhead - Mon Highways,Supplies & Services,Services,Sub-Contractors Fees,,31/12/2023,25/01/2024,127.6,,G D Environmental Services Ltd
Neighbourhood Services,Highways,Communities & Place,Overhead - Mon Highways,Supplies & Services,Services,Sub-Contractors Fees,,31/12/2023,25/01/2024,110,,G D Environmental Services Ltd
Neighbourhood Services,Highways,Communities & Place,Overhead - Mon Highways,Supplies & Services,Services,Sub-Contractors Fees,,31/12/2023,25/01/2024,110,,G D Environmental Services Ltd
Neighbourhood Services,Highways,Communities & Place,Overhead - Mon Highways,Supplies & Services,Services,Sub-Contractors Fees,,31/12/2023,25/01/2024,72.1,,G D Environmental Services Ltd
Children Services,Children Services Other,Social Care and Health,Counsel Costs,Supplies & Services,Services,Professional And Specialist Fees,,16/01/2024,24/01/2024,547.75,,Lextox
Children Services,Children Services Other,Social Care and Health,Face to Face Counselling,Supplies & Services,Services,Professional And Specialist Fees,,15/12/2023,23/01/2024,75,,REDACTED PERSONAL DATA
"Leisure, Youth & Outdoor Adventure",Youth & Education,MonLife Directorate,Community Education Youth General,Supplies & Services,Services,Training Charges,,08/01/2024,16/01/2024,4400,,REDACTED PERSONAL DATA
Children Services,Children Services Other,Social Care and Health,Face to Face Counselling,Supplies & Services,Services,Professional And Specialist Fees,,17/10/2023,23/01/2024,75,,REDACTED PERSONAL DATA
Children Services,Children Services Other,Social Care and Health,Face to Face Counselling,Supplies & Services,Services,Professional And Specialist Fees,,29/11/2023,23/01/2024,75,,REDACTED PERSONAL DATA
Children Services,Children Services Teams,Social Care and Health,Disabled Children,Supplies & Services,Services,Sub-Contractors Fees,,01/07/2023,15/01/2024,413.33,,Orbis Education and Care
Children Services,Children Services Teams,Social Care and Health,Disabled Children,Supplies & Services,Services,Sub-Contractors Fees,,01/08/2023,15/01/2024,-2066.65,,Orbis Education and Care
Schools Total,School Group 2 � Pupil Capacity 144-314,MCC Schools,Cross Ash Primary School,Premises,Fixtures and Fittings,Alarm Systems,,01/01/2024,16/01/2024,80.83,,Shield Security
Standards,Additional Learning Needs,Children & Young People,Additional Learning Needs Equipment Budget,Supplies & Services,Services,Training Charges,,22/01/2024,29/01/2024,185,,Merv Fleming Associates
Children Services,Children Services Other,Social Care and Health,Counsel Costs,Supplies & Services,Services,Professional And Specialist Fees,,07/12/2023,24/01/2024,518.15,,REDACTED PERSONAL DATA
Children Services,Children Services Other,Social Care and Health,Counsel Costs,Supplies & Services,Services,Professional And Specialist Fees,,07/12/2023,24/01/2024,1020.78,,REDACTED PERSONAL DATA
Children Services,Children Services Other,Social Care and Health,Counsel Costs,Supplies & Services,Services,Professional And Specialist Fees,,07/12/2023,24/01/2024,-0.08,,REDACTED PERSONAL DATA
Children Services,Children Services Other,Social Care and Health,Counsel Costs,Supplies & Services,Services,Professional And Specialist Fees,,03/01/2024,23/01/2024,561.51,,REDACTED PERSONAL DATA
Adult Services,Community Care Team,Social Care and Health,Abergavenny Adult Team,Third Party Payments,Third Party,Residential.,,05/01/2024,19/01/2024,3220,,Cantref Homes Ltd
"Facilities, Fleet & Decarbonisation",Home to School Transport Dept,Communities & Place,Home To School Transport,Transport,Direct Transport Costs,Vechicles Repairs and Maintenance,,17/01/2024,24/01/2024,260,,Bulwark Bus & Coach Eng. Ltd
"Facilities, Fleet & Decarbonisation",Home to School Transport Dept,Communities & Place,Passenger Transport � Service 65,Transport,Direct Transport Costs,Vechicles Repairs and Maintenance,,16/01/2024,24/01/2024,195,,Bulwark Bus & Coach Eng. Ltd
"Facilities, Fleet & Decarbonisation",Transport Department,Communities & Place,Transport,Transport,Direct Transport Costs,Spare Parts,,10/01/2024,24/01/2024,82.26,,Glenside Commercials Ltd
"Facilities, Fleet & Decarbonisation",Transport Department,Communities & Place,Transport,Transport,Direct Transport Costs,Spare Parts,,11/01/2024,24/01/2024,-34,,Mon & Border Motor Factors Ltd
"Facilities, Fleet & Decarbonisation",Transport Department,Communities & Place,Transport,Transport,Direct Transport Costs,Vehicle Collision Damage Costs,,31/12/2023,24/01/2024,285,,Lonsdale Commercial Body Builders Ltd
Adult Services,Community Care Team,Social Care and Health,Mental Health Care Team,Third Party Payments,Third Party,Personal Care.,,17/01/2024,24/01/2024,397.36,,My Care My Home Ltd
Adult Services,Community Care Team,Social Care and Health,Mental Health Care Team,Third Party Payments,Third Party,Personal Care.,,08/01/2024,17/01/2024,1664.4,,Lougher Home Care Ltd
Adult Services,Community Care Team,Social Care and Health,Mental Health Care Team,Third Party Payments,Third Party,Personal Care.,,08/01/2024,17/01/2024,798,,Lougher Home Care Ltd
Adult Services,Community Care Team,Social Care and Health,Mental Health Care Team,Third Party Payments,Third Party,Personal Care.,,08/01/2024,17/01/2024,2074.8,,Lougher Home Care Ltd
Adult Services,Community Care Team,Social Care and Health,Mental Health Care Team,Third Party Payments,Third Party,Personal Care.,,08/01/2024,17/01/2024,1402.2,,Lougher Home Care Ltd
Adult Services,Community Care Team,Social Care and Health,Mental Health Care Team,Third Party Payments,Third Party,Personal Care.,,05/01/2024,18/01/2024,1627.44,,Q Care Ltd
Adult Services,Community Care Team,Social Care and Health,Mental Health Care Team,Third Party Payments,Third Party,Personal Care.,,05/01/2024,22/01/2024,46.24,,Radis Community Care
Adult Services,Community Care Team,Social Care and Health,Mental Health Care Team,Third Party Payments,Third Party,Personal Care.,,01/01/2024,22/01/2024,3680.8,,Castle Care Supported Living
Adult Services,Community Care Team,Social Care and Health,Mental Health Care Team,Third Party Payments,Third Party,Personal Care.,,01/01/2024,22/01/2024,1540.8,,Castle Care Supported Living
Adult Services,ADULT DISABILITY SERVICES,Social Care and Health,CLDT,Third Party Payments,Third Party,Personal Care.,,23/01/2024,23/01/2024,323.16,,REDACTED PERSONAL DATA
Adult Services,ADULT DISABILITY SERVICES,Social Care and Health,CLDT,Third Party Payments,Third Party,Personal Care.,,23/01/2024,23/01/2024,8.73,,REDACTED PERSONAL DATA
Adult Services,ADULT DISABILITY SERVICES,Social Care and Health,CLDT,Third Party Payments,Third Party,Personal Care.,,23/01/2024,23/01/2024,8.73,,REDACTED PERSONAL DATA
Adult Services,ADULT DISABILITY SERVICES,Social Care and Health,CLDT,Third Party Payments,Third Party,Personal Care.,,23/01/2024,23/01/2024,465.28,,REDACTED PERSONAL DATA
Adult Services,ADULT DISABILITY SERVICES,Social Care and Health,CLDT,Third Party Payments,Third Party,Personal Care.,,23/01/2024,23/01/2024,323.16,,REDACTED PERSONAL DATA
Adult Services,ADULT DISABILITY SERVICES,Social Care and Health,CLDT,Third Party Payments,Third Party,Personal Care.,,23/01/2024,23/01/2024,465.28,,REDACTED PERSONAL DATA
Adult Services,ADULT DISABILITY SERVICES,Social Care and Health,CLDT,Third Party Payments,Third Party,Personal Care.,,23/01/2024,23/01/2024,32.7,,REDACTED PERSONAL DATA
Adult Services,ADULT DISABILITY SERVICES,Social Care and Health,CLDT,Third Party Payments,Third Party,Personal Care.,,23/01/2024,23/01/2024,32.7,,REDACTED PERSONAL DATA
Adult Services,ADULT DISABILITY SERVICES,Social Care and Health,CLDT,Third Party Payments,Third Party,Personal Care.,,23/01/2024,23/01/2024,9,,REDACTED PERSONAL DATA
Adult Services,ADULT DISABILITY SERVICES,Social Care and Health,CLDT,Third Party Payments,Third Party,Personal Care.,,23/01/2024,23/01/2024,8.73,,REDACTED PERSONAL DATA
Adult Services,ADULT DISABILITY SERVICES,Social Care and Health,CLDT,Third Party Payments,Third Party,Personal Care.,,23/01/2024,23/01/2024,32.7,,REDACTED PERSONAL DATA
Adult Services,ADULT DISABILITY SERVICES,Social Care and Health,CLDT,Third Party Payments,Third Party,Personal Care.,,23/01/2024,23/01/2024,32.7,,REDACTED PERSONAL DATA
Children Services,Children Services Teams,Social Care and Health,Long Term Support Team,Third Party Payments,Third Party,Residential.,,09/01/2024,24/01/2024,15085.66,,Midway Transitional Solutions Ltd
Adult Services,ADULT DISABILITY SERVICES,Social Care and Health,CLDT,Third Party Payments,Third Party,Personal Care.,,17/01/2024,22/01/2024,3114.85,,Cartrefi Cymru
Schools Total,School Group 7 � Pupil Capacity 501-1800,MCC Schools,King Henry 3-19 School,Premises,"Repairs, Alterations & Maintenance of Buildings",Skip Hire,,22/12/2023,19/01/2024,115.5,,Thomas Waste Management Ltd
Adult Services,FRAILTY WORKSTREAM,Social Care and Health,FRAILTY: DECLARATIONS,Employees,Indirect Employee Expenses,Staff Welfare,,11/01/2024,24/01/2024,375,,Aneurin Bevan Local Health Board
Schools Total,School Group 2 � Pupil Capacity 144-314,MCC Schools,Shirenewton Primary School,Employees,Indirect Employee Expenses,"Course, Conference And Seminar Fees",,17/01/2024,24/01/2024,700,,REDACTED PERSONAL DATA
"Leisure, Youth & Outdoor Adventure",Youth & Education,MonLife Directorate,Gilwern,Employees,Indirect Employee Expenses,"Course, Conference And Seminar Fees",,15/01/2024,24/01/2024,890,,Borderlands Outdoor Instruction Ltd
Schools Total,School Group 1 � Pupil Capacity 1-143,MCC Schools,Ysgol Gymraeg Y Ffin,Supplies & Services,"Equipment, Furniture and Materials",Materials & Consumables.,,12/01/2024,17/01/2024,18.2,,ESPO
Schools Total,School Group 1 � Pupil Capacity 1-143,MCC Schools,Ysgol Gymraeg Y Ffin,Supplies & Services,"Equipment, Furniture and Materials",Materials & Consumables.,,12/01/2024,17/01/2024,37.7,,ESPO
Adult Services,Community Care Team,Social Care and Health,Chepstow Adult Team,Third Party Payments,Third Party,Personal Care.,,08/01/2024,17/01/2024,957.6,,Lougher Home Care Ltd
Adult Services,Community Care Team,Social Care and Health,Chepstow Adult Team,Third Party Payments,Third Party,Personal Care.,,08/01/2024,17/01/2024,735.3,,Lougher Home Care Ltd
Adult Services,Community Care Team,Social Care and Health,Chepstow Adult Team,Third Party Payments,Third Party,Personal Care.,,08/01/2024,17/01/2024,1071.6,,Lougher Home Care Ltd
Adult Services,Community Care Team,Social Care and Health,Chepstow Adult Team,Third Party Payments,Third Party,Personal Care.,,08/01/2024,17/01/2024,798,,Lougher Home Care Ltd
Adult Services,Community Care Team,Social Care and Health,Chepstow Adult Team,Third Party Payments,Third Party,Personal Care.,,08/01/2024,17/01/2024,1596,,Lougher Home Care Ltd
Adult Services,Community Care Team,Social Care and Health,Chepstow Adult Team,Third Party Payments,Third Party,Personal Care.,,08/01/2024,17/01/2024,957.6,,Lougher Home Care Ltd
Adult Services,Community Care Team,Social Care and Health,Chepstow Adult Team,Third Party Payments,Third Party,Personal Care.,,08/01/2024,17/01/2024,1436.4,,Lougher Home Care Ltd
Adult Services,Community Care Team,Social Care and Health,Chepstow Adult Team,Third Party Payments,Third Party,Personal Care.,,08/01/2024,17/01/2024,1915.2,,Lougher Home Care Ltd
Adult Services,Community Care Team,Social Care and Health,Chepstow Adult Team,Third Party Payments,Third Party,Personal Care.,,08/01/2024,17/01/2024,3351.6,,Lougher Home Care Ltd
Adult Services,Community Care Team,Social Care and Health,Chepstow Adult Team,Third Party Payments,Third Party,Personal Care.,,08/01/2024,17/01/2024,4149.6,,Lougher Home Care Ltd
Adult Services,Community Care Team,Social Care and Health,Chepstow Adult Team,Third Party Payments,Third Party,Personal Care.,,08/01/2024,17/01/2024,1898.1,,Lougher Home Care Ltd
Adult Services,Community Care Team,Social Care and Health,Chepstow Adult Team,Third Party Payments,Third Party,Personal Care.,,08/01/2024,17/01/2024,2074.8,,Lougher Home Care Ltd
Schools Total,School Group 2 � Pupil Capacity 144-314,MCC Schools,Thornwell Primary School,Supplies & Services,"Equipment, Furniture and Materials",Materials & Consumables.,,10/01/2024,17/01/2024,14.94,,Amazon Payments UK Limited
"Commercial, Corporate & landlord Services",Property Services & Facilities Management,Resources,Usk Accommodation,Premises,Cleaning and Domestic Supplies,Premises Pest Control,,01/01/2024,04/01/2024,155,,P&P Pest Control
Adult Services,Community Care Team,Social Care and Health,Chepstow Adult Team,Third Party Payments,Third Party,Personal Care.,,05/01/2024,22/01/2024,332.88,,Radis Community Care
Adult Services,Community Care Team,Social Care and Health,Chepstow Adult Team,Third Party Payments,Third Party,Personal Care.,,05/01/2024,22/01/2024,878.61,,Radis Community Care
Adult Services,Direct Care Residential,Social Care and Health,Severn View Residential,Premises,"Repairs, Alterations & Maintenance of Buildings",Skip Hire,,11/11/2023,29/01/2024,280,,Rb Skip Hire
Schools Total,School Group 2 � Pupil Capacity 144-314,MCC Schools,Our Lady & St Michael's (OLSM) RC Primary School (VA),Supplies & Services,"Equipment, Furniture and Materials",Materials & Consumables.,,28/11/2023,17/01/2024,148.95,,Amazon Payments UK Limited
Schools Total,School Group 2 � Pupil Capacity 144-314,MCC Schools,Our Lady & St Michael's (OLSM) RC Primary School (VA),Supplies & Services,"Equipment, Furniture and Materials",Materials & Consumables.,,10/01/2024,17/01/2024,30.81,,Amazon Payments UK Limited
Schools Total,School Group 1 � Pupil Capacity 1-143,MCC Schools,Llandogo Primary School,Transport,Contract Hire and Operating Leases,Vehicle Hire Charge,,12/01/2024,16/01/2024,525,,REDACTED PERSONAL DATA
Schools Total,School Group 2 � Pupil Capacity 144-314,MCC Schools,St Mary�s RC Primary School (VA),Supplies & Services,"Equipment, Furniture and Materials",Materials & Consumables.,,02/01/2024,22/01/2024,113.97,,TTS Group Ltd
Schools Total,School Group 2 � Pupil Capacity 144-314,MCC Schools,St Mary�s RC Primary School (VA),Supplies & Services,"Equipment, Furniture and Materials",Materials & Consumables.,,02/01/2024,22/01/2024,25.5,,TTS Group Ltd
Adult Services,Community Care Team,Social Care and Health,Chepstow Adult Team,Third Party Payments,Third Party,Personal Care.,,05/01/2024,22/01/2024,3366.06,,Radis Community Care
Adult Services,Community Care Team,Social Care and Health,Chepstow Adult Team,Third Party Payments,Third Party,Personal Care.,,05/01/2024,22/01/2024,166.44,,Radis Community Care
Adult Services,Community Care Team,Social Care and Health,Chepstow Adult Team,Third Party Payments,Third Party,Personal Care.,,05/01/2024,22/01/2024,499.5,,Radis Community Care
"Enterprise, Housing & Community Animation",Business Growth & Enterprise,Communities & Place,Sustainable Food Development,Supplies & Services,Services,Professional And Specialist Fees,,05/01/2024,22/01/2024,1421.43,,REDACTED PERSONAL DATA
"Leisure, Youth & Outdoor Adventure",Youth & Education,MonLife Directorate,Gilwern,Supplies & Services,"Equipment, Furniture and Materials",Equipment Purchases,,17/01/2024,24/01/2024,42.3,,Eureka 1st Aid & Safety for Schools
"Enterprise, Housing & Community Animation",General Fund Housing,Communities & Place,Care Line,Supplies & Services,"Equipment, Furniture and Materials",Equipment Purchases,,27/02/2023,18/01/2024,1516,,Doro Care (UK) Limited
"Enterprise, Housing & Community Animation",General Fund Housing,Communities & Place,Care Line,Supplies & Services,"Equipment, Furniture and Materials",Equipment Purchases,,24/07/2023,18/01/2024,2365,,Doro Care (UK) Limited
"Enterprise, Housing & Community Animation",General Fund Housing,Communities & Place,Care Line,Supplies & Services,"Equipment, Furniture and Materials",Equipment Purchases,,24/08/2023,18/01/2024,7,,Doro Care (UK) Limited
"Enterprise, Housing & Community Animation",General Fund Housing,Communities & Place,Care Line,Supplies & Services,"Equipment, Furniture and Materials",Equipment Purchases,,25/09/2023,18/01/2024,2560,,Doro Care (UK) Limited
"Commercial, Corporate & landlord Services",Asset Management,Resources,Commercialisation of Assets,Supplies & Services,Services,Professional And Specialist Fees,,01/12/2023,18/01/2024,10887.9,,Alder King LLP
"Commercial, Corporate & landlord Services",Asset Management,Resources,Commercialisation of Assets,Supplies & Services,Services,Professional And Specialist Fees,,01/12/2023,18/01/2024,5294.7,,Alder King LLP
Schools Total,School Group 7 � Pupil Capacity 501-1800,MCC Schools,Chepstow School,Supplies & Services,"Equipment, Furniture and Materials",Rental / Hire,,28/12/2023,17/01/2024,282.74,,Phs Group
Adult Services,Direct Care Residential,Social Care and Health,Severn View Residential,Supplies & Services,"Equipment, Furniture and Materials",Equipment Purchases,,09/01/2024,17/01/2024,323.24,,REDACTED DATA
Adult Services,Direct Care Residential,Social Care and Health,Severn View Residential,Supplies & Services,"Equipment, Furniture and Materials",Equipment Purchases,,12/01/2024,17/01/2024,73.34,,REDACTED DATA
"Enterprise, Housing & Community Animation",General Fund Housing,Communities & Place,Care Line,Supplies & Services,"Equipment, Furniture and Materials",Equipment Purchases,,25/09/2023,18/01/2024,7,,Doro Care (UK) Limited
"Commercial, Corporate & landlord Services",Asset Management,Resources,Commercialisation of Assets,Supplies & Services,Services,Professional And Specialist Fees,,14/12/2023,18/01/2024,-688.76,,Alder King LLP
"Commercial, Corporate & landlord Services",Asset Management,Resources,Commercialisation of Assets,Supplies & Services,Services,Professional And Specialist Fees,,14/12/2023,18/01/2024,-571.93,,Alder King LLP
"Commercial, Corporate & landlord Services",Asset Management,Resources,Commercialisation of Assets,Supplies & Services,Services,Professional And Specialist Fees,,01/12/2023,18/01/2024,5210.1,,Alder King LLP
"Commercial, Corporate & landlord Services",Asset Management,Resources,Commercialisation of Assets,Supplies & Services,Services,Professional And Specialist Fees,,14/12/2023,18/01/2024,-837.36,,Alder King LLP
"Commercial, Corporate & landlord Services",Asset Management,Resources,Investment Assets � Newport Leisure Park,Supplies & Services,Services,Professional And Specialist Fees,,01/06/2023,18/01/2024,823,,Alder King LLP
"Commercial, Corporate & landlord Services",Asset Management,Resources,Investment Assets � Newport Leisure Park,Supplies & Services,Services,Professional And Specialist Fees,,23/06/2023,18/01/2024,512,,Alder King LLP
"Commercial, Corporate & landlord Services",Asset Management,Resources,Investment Assets � Newport Leisure Park,Supplies & Services,Services,Professional And Specialist Fees,,31/08/2023,18/01/2024,2067.69,,Smart Parking Ltd
"Commercial, Corporate & landlord Services",Asset Management,Resources,Investment Assets � Newport Leisure Park,Supplies & Services,Services,Professional And Specialist Fees,,31/08/2023,18/01/2024,-2067.69,,Smart Parking Ltd
Adult Services,Day Centres,Social Care and Health,My Day,Supplies & Services,"Equipment, Furniture and Materials",Rental / Hire,,21/06/2023,02/01/2024,5.13,,Culligan (UK) Limited
Adult Services,Day Centres,Social Care and Health,My Day,Supplies & Services,"Equipment, Furniture and Materials",Rental / Hire,,15/07/2023,02/01/2024,5.13,,Culligan (UK) Limited
Adult Services,Day Centres,Social Care and Health,My Day,Supplies & Services,"Equipment, Furniture and Materials",Rental / Hire,,16/08/2023,02/01/2024,5.13,,Culligan (UK) Limited
Adult Services,Day Centres,Social Care and Health,My Day,Supplies & Services,"Equipment, Furniture and Materials",Rental / Hire,,19/09/2023,02/01/2024,70.54,,Culligan (UK) Limited
"Leisure, Youth & Outdoor Adventure",Leisure Services,MonLife Directorate,Monmouth Leisure Centre,Supplies & Services,"Equipment, Furniture and Materials",Equipment Purchases,,22/01/2024,29/01/2024,2464.42,,PLAY REVOLUTION
Adult Services,Direct Care,Social Care and Health,Care at Home,Supplies & Services,"Equipment, Furniture and Materials",Health & Safety Equipment.,,28/12/2023,29/01/2024,30.04,,Orbis Protect Limited
Neighbourhood Services,Waste and Street Services,Communities & Place,Refuse & Cleansing Operations,Supplies & Services,"Equipment, Furniture and Materials",Rental / Hire,,16/01/2024,22/01/2024,87,,Reecer Hire Limited
Neighbourhood Services,Waste and Street Services,Communities & Place,Refuse & Cleansing Operations,Supplies & Services,"Equipment, Furniture and Materials",Rental / Hire,,16/01/2024,22/01/2024,466.07,,Reecer Hire Limited
Neighbourhood Services,Waste and Street Services,Communities & Place,Refuse & Cleansing Operations,Supplies & Services,"Equipment, Furniture and Materials",Rental / Hire,,16/01/2024,22/01/2024,1491.12,,Reecer Hire Limited
Neighbourhood Services,Waste and Street Services,Communities & Place,Refuse & Cleansing Operations,Supplies & Services,"Equipment, Furniture and Materials",Rental / Hire,,16/01/2024,22/01/2024,87,,Reecer Hire Limited
Neighbourhood Services,Waste and Street Services,Communities & Place,Refuse & Cleansing Operations,Supplies & Services,"Equipment, Furniture and Materials",Rental / Hire,,16/01/2024,22/01/2024,466.07,,Reecer Hire Limited
"Leisure, Youth & Outdoor Adventure",Youth & Education,MonLife Directorate,Community Education Youth General,Supplies & Services,Services,Professional And Specialist Fees,,31/12/2023,16/01/2024,1848,,Agored Cymru
"Placemaking, Highways & Flooding",Planning Policy,Communities & Place,Planning Policy,Supplies & Services,Services,Professional And Specialist Fees,,08/01/2024,16/01/2024,5205,,The Carbon Trust Advisory Limited
Neighbourhood Services,Waste and Street Services,Communities & Place,Refuse & Cleansing Operations,Supplies & Services,"Equipment, Furniture and Materials",Rental / Hire,,16/01/2024,22/01/2024,1491.12,,Reecer Hire Limited
Schools Total,School Group 2 � Pupil Capacity 144-314,MCC Schools,Thornwell Primary School,Supplies & Services,Services,Professional And Specialist Fees,,08/01/2024,16/01/2024,150,,Assessment Foundation CIC
Schools Total,School Group 7 � Pupil Capacity 501-1800,MCC Schools,King Henry 3-19 School,Supplies & Services,"Printing, Stationery and General Office Expenses",Photocopying.,,20/12/2023,24/01/2024,2664,,Grenke Leasing LTD
Standards,Early Years,Children & Young People,Expansion of Early Years Grant,Third Party Payments,Third Party,Third party payments NOT relating to goods or services,,23/01/2024,24/01/2024,15700,,Puddle Ducks
Schools Total,School Group 7 � Pupil Capacity 501-1800,MCC Schools,Chepstow School,Supplies & Services,"Printing, Stationery and General Office Expenses",Photocopying.,,04/01/2024,17/01/2024,5755.96,,Ricoh UK Ltd
Schools Total,School Group 2 � Pupil Capacity 144-314,MCC Schools,Dewstow Primary School,Supplies & Services,"Printing, Stationery and General Office Expenses",Photocopying.,,29/11/2023,17/01/2024,368.56,,Blue Sky Digital Solutions ltd
Adult Services,Direct Care Residential,Social Care and Health,Severn View Residential,Supplies & Services,Services,Assistance To Clients,,09/01/2024,17/01/2024,300,,REDACTED DATA
Schools Total,School Group 2 � Pupil Capacity 144-314,MCC Schools,Dewstow Primary School,Supplies & Services,"Printing, Stationery and General Office Expenses",Photocopying.,,31/12/2023,17/01/2024,503.46,,Blue Sky Digital Solutions ltd
Schools Total,SCHGRP3 � School Group 3 � Pupil Capacity 315-500,MCC Schools,Magor CiW Primary School (VA),Supplies & Services,Services,Residential Trips,,04/12/2023,17/01/2024,3800,,Pgl Travel Ltd
"Enterprise, Housing & Community Animation",Community & Partnerships Development,Communities & Place,Supporting People: Management,Third Party Payments,Third Party,Third party payments NOT relating to goods or services,,31/12/2023,29/01/2024,18360,,Llamau LTD
"Enterprise, Housing & Community Animation",Community & Partnerships Development,Communities & Place,Supporting People: Management,Third Party Payments,Third Party,Third party payments NOT relating to goods or services,,31/12/2023,29/01/2024,7444.91,,Llamau LTD
Adult Services,Commissioning Strategy,Social Care and Health,Commissioning Strategy,Third Party Payments,Third Party,Third party payments NOT relating to goods or services,,02/01/2024,04/01/2024,2882.49,,Bridges Community Centre
Adult Services,Commissioning Strategy,Social Care and Health,Commissioning Strategy,Third Party Payments,Third Party,Third party payments NOT relating to goods or services,,02/01/2024,04/01/2024,5652.15,,Bridges Community Centre
Adult Services,Direct Care Residential,Social Care and Health,Severn View Residential,Supplies & Services,Services,Assistance To Clients,,30/11/2023,29/01/2024,89.9,,Wye Gymnastics and Galaxy Cheerleading
Children Services,Children Services Other,Social Care and Health,Younger People�s Accommodation � Under 18,Supplies & Services,Services,Supported Housing Costs,,01/01/2024,24/01/2024,7750,,D2 ProproLtd
Children Services,Children Services Other,Social Care and Health,Younger People�s Accommodation � Under 18,Supplies & Services,Services,Supported Housing Costs,,08/01/2024,24/01/2024,6000,,Graig Farm Ltd
"Commercial, Corporate & landlord Services",Property Services & Facilities Management,Resources,Office Services,Supplies & Services,"Printing, Stationery and General Office Expenses",Stationery,,12/01/2024,17/01/2024,25,,SRS Public
"Commercial, Corporate & landlord Services",Property Services & Facilities Management,Resources,Office Services,Supplies & Services,"Printing, Stationery and General Office Expenses",Stationery,,12/01/2024,17/01/2024,20,,SRS Public
Schools Total,School Group 7 � Pupil Capacity 501-1800,MCC Schools,Monmouth Comprehensive,Supplies & Services,"Printing, Stationery and General Office Expenses",Stationery,,12/01/2024,16/01/2024,350,,REDACTED PERSONAL DATA
Schools Total,School Group 2 � Pupil Capacity 144-314,MCC Schools,Archbishop Rowan Williams CiW Primary School (VA),Supplies & Services,"Printing, Stationery and General Office Expenses",Photocopying.,,31/12/2023,11/01/2024,152.89,,Blue Sky Digital Solutions ltd
Standards,Early Years,Children & Young People,Flying Start Grant,Supplies & Services,Services,Child Minding Fees,,08/01/2024,22/01/2024,3000,,Meadowbank Day Nursery
Standards,Early Years,Children & Young People,Flying Start Grant,Supplies & Services,Services,Child Minding Fees,,08/01/2024,22/01/2024,825,,Monmouth Nursery
Standards,Early Years,Children & Young People,Flying Start Grant,Supplies & Services,Services,Child Minding Fees,,15/01/2024,22/01/2024,750,,Stepping Stones Magor
Standards,Early Years,Children & Young People,Flying Start Grant,Supplies & Services,Services,Child Minding Fees,,19/01/2024,22/01/2024,50,,REDACTED PERSONAL DATA
Standards,Early Years,Children & Young People,Flying Start Grant,Supplies & Services,Services,Child Minding Fees,,17/01/2024,29/01/2024,4320,,Abergavenny Nursery
Schools Total,School Group 7 � Pupil Capacity 501-1800,MCC Schools,Monmouth Comprehensive,Supplies & Services,"Printing, Stationery and General Office Expenses",Photocopying.,,11/01/2024,16/01/2024,459.25,,Springfield Business Papers
Schools Total,School Group 7 � Pupil Capacity 501-1800,MCC Schools,Monmouth Comprehensive,Supplies & Services,Services,Residential Trips,,15/12/2023,16/01/2024,240,,FR Monkhouse Ltd
Schools Total,School Group 7 � Pupil Capacity 501-1800,MCC Schools,Monmouth Comprehensive,Supplies & Services,Services,Residential Trips,,11/01/2024,16/01/2024,226,,Inclusive Technology Ltd
Schools Total,School Group 7 � Pupil Capacity 501-1800,MCC Schools,Monmouth Comprehensive,Supplies & Services,Services,Residential Trips,,11/01/2024,16/01/2024,68,,Inclusive Technology Ltd
Schools Total,School Group 7 � Pupil Capacity 501-1800,MCC Schools,Monmouth Comprehensive,Supplies & Services,Services,Residential Trips,,11/01/2024,16/01/2024,20,,Inclusive Technology Ltd
Schools Total,School Group 7 � Pupil Capacity 501-1800,MCC Schools,Monmouth Comprehensive,Supplies & Services,Services,Residential Trips,,11/01/2024,16/01/2024,48,,Inclusive Technology Ltd
Schools Total,School Group 7 � Pupil Capacity 501-1800,MCC Schools,Monmouth Comprehensive,Supplies & Services,Services,Residential Trips,,11/01/2024,16/01/2024,68,,Inclusive Technology Ltd
Schools Total,School Group 7 � Pupil Capacity 501-1800,MCC Schools,Monmouth Comprehensive,Supplies & Services,Services,Residential Trips,,11/01/2024,16/01/2024,8.5,,Inclusive Technology Ltd
Schools Total,School Group 7 � Pupil Capacity 501-1800,MCC Schools,Monmouth Comprehensive,Supplies & Services,Services,Residential Trips,,11/01/2024,16/01/2024,68,,Inclusive Technology Ltd
Schools Total,School Group 2 � Pupil Capacity 144-314,MCC Schools,Kymin View Primary School,Supplies & Services,"Printing, Stationery and General Office Expenses",Photocopying.,,05/01/2024,16/01/2024,34.16,,Sharp Business Systems UK plc
"Enterprise, Housing & Community Animation",General Fund Housing,Communities & Place,Homelessness,Supplies & Services,Services,Homelessness Bed & Breakfast Accomodation,,01/01/2024,05/01/2024,1752,,Stepping Stone Newport Ltd
"Commercial, Corporate & landlord Services",Property Services & Facilities Management,Resources,Gwent Police Collaboration,Premises,"Repairs, Alterations & Maintenance of Buildings",Building Improvements / Maintenance,,04/01/2024,05/01/2024,50,,Ambassador Fire & Security LTD
"Commercial, Corporate & landlord Services",Property Services & Facilities Management,Resources,Gwent Police Collaboration,Premises,"Repairs, Alterations & Maintenance of Buildings",Building Improvements / Maintenance,,04/01/2024,05/01/2024,140,,Ambassador Fire & Security LTD
"Commercial, Corporate & landlord Services",Property Services & Facilities Management,Resources,Gwent Police Collaboration,Premises,"Repairs, Alterations & Maintenance of Buildings",Building Improvements / Maintenance,,04/01/2024,05/01/2024,50,,Ambassador Fire & Security LTD
"Commercial, Corporate & landlord Services",Property Services & Facilities Management,Resources,Gwent Police Collaboration,Premises,"Repairs, Alterations & Maintenance of Buildings",Building Improvements / Maintenance,,04/01/2024,05/01/2024,50,,Ambassador Fire & Security LTD
"Commercial, Corporate & landlord Services",Property Services & Facilities Management,Resources,Gwent Police Collaboration,Premises,"Repairs, Alterations & Maintenance of Buildings",Building Improvements / Maintenance,,21/12/2023,17/01/2024,64,,A.J Quinn Building Contractors Ltd
"Policy, Scrutiny & Customer Service",Community Hubs,Chief Executive's Unit,Strategic Management,Supplies & Services,"Printing, Stationery and General Office Expenses",Book Purchases,,08/01/2024,17/01/2024,93.35,,Askews & Holts Library Services Ltd
"Policy, Scrutiny & Customer Service",Community Hubs,Chief Executive's Unit,Strategic Management,Supplies & Services,"Printing, Stationery and General Office Expenses",Book Purchases,,08/01/2024,17/01/2024,37.32,,Askews & Holts Library Services Ltd
Schools Total,School Group 2 � Pupil Capacity 144-314,MCC Schools,St Mary�s RC Primary School (VA),Premises,"Repairs, Alterations & Maintenance of Buildings",Premises Repairs And Maintenance,,15/01/2024,18/01/2024,1044.28,,Industrial Door Services
"Commercial, Corporate & landlord Services",Property Services & Facilities Management,Resources,Gwent Police Collaboration,Premises,"Repairs, Alterations & Maintenance of Buildings",Building Improvements / Maintenance,,12/01/2024,22/01/2024,23,,A.J Quinn Building Contractors Ltd
Schools Total,School Group 7 � Pupil Capacity 501-1800,MCC Schools,King Henry 3-19 School,Employees,Indirect Employee Expenses,Replacement,,17/01/2024,24/01/2024,240,,Axcis Education Recruitment
Schools Total,School Group 7 � Pupil Capacity 501-1800,MCC Schools,King Henry 3-19 School,Employees,Indirect Employee Expenses,Replacement,,17/01/2024,24/01/2024,99.88,,Axcis Education Recruitment
Schools Total,School Group 7 � Pupil Capacity 501-1800,MCC Schools,King Henry 3-19 School,Premises,"Repairs, Alterations & Maintenance of Buildings",Premises Repairs And Maintenance,,20/12/2023,24/01/2024,15.41,,Screwfix Trade UK
Schools Total,School Group 7 � Pupil Capacity 501-1800,MCC Schools,King Henry 3-19 School,Premises,"Repairs, Alterations & Maintenance of Buildings",Premises Repairs And Maintenance,,09/01/2024,24/01/2024,10.98,,Screwfix Trade UK
Schools Total,Schools,MCC Schools,Mounton House Special School,Premises,"Repairs, Alterations & Maintenance of Buildings",Premises Repairs And Maintenance,,20/12/2023,19/01/2024,362.79,,REMUS
"Policy, Scrutiny & Customer Service",Community Hubs,Chief Executive's Unit,Strategic Management,Supplies & Services,"Printing, Stationery and General Office Expenses",Book Purchases,,08/01/2024,17/01/2024,95.44,,Askews & Holts Library Services Ltd
Adult Services,Direct Care Residential,Social Care and Health,Severn View Residential,Supplies & Services,"Printing, Stationery and General Office Expenses",Stationery,,09/01/2024,17/01/2024,71.49,,REDACTED DATA
Adult Services,Day Centres,Social Care and Health,Severn View DC,Supplies & Services,"Printing, Stationery and General Office Expenses",Stationery,,09/01/2024,17/01/2024,36.6,,REDACTED DATA
"Commercial, Corporate & landlord Services",Property Services & Facilities Management,Resources,Gwent Police Collaboration,Premises,"Repairs, Alterations & Maintenance of Buildings",Building Improvements / Maintenance,,04/01/2024,05/01/2024,140,,Ambassador Fire & Security LTD
"Commercial, Corporate & landlord Services",Property Services & Facilities Management,Resources,Gwent Police Collaboration,Premises,"Repairs, Alterations & Maintenance of Buildings",Building Improvements / Maintenance,,18/12/2023,17/01/2024,703.28,,Circuit Compliance t/a Circuit Electrical Testing Ltd
Schools Total,School Group 7 � Pupil Capacity 501-1800,MCC Schools,King Henry 3-19 School,Employees,Indirect Employee Expenses,Replacement,,29/11/2023,17/01/2024,369.72,,Teaching Personnel
Adult Services,Direct Care Residential,Social Care and Health,Severn View Residential,Supplies & Services,"Printing, Stationery and General Office Expenses",Stationery,,12/01/2024,17/01/2024,67.85,,REDACTED DATA
Capital Division,Capital Dept,Capital,Capital Programme,Supplies & Services,Services,Professional And Specialist Fees,,11/12/2023,17/01/2024,15630,,WSP UK Limited
Schools Total,School Group 7 � Pupil Capacity 501-1800,MCC Schools,King Henry 3-19 School,Employees,Indirect Employee Expenses,Replacement,,20/12/2023,17/01/2024,218.94,,Teaching Personnel
Schools Total,School Group 7 � Pupil Capacity 501-1800,MCC Schools,King Henry 3-19 School,Employees,Indirect Employee Expenses,Replacement,,20/12/2023,17/01/2024,492.96,,Teaching Personnel
Schools Total,School Group 7 � Pupil Capacity 501-1800,MCC Schools,King Henry 3-19 School,Employees,Indirect Employee Expenses,Replacement,,20/12/2023,17/01/2024,368.22,,Teaching Personnel
Schools Total,School Group 7 � Pupil Capacity 501-1800,MCC Schools,King Henry 3-19 School,Employees,Indirect Employee Expenses,Replacement,,20/12/2023,17/01/2024,136.4,,Teaching Personnel
Schools Total,School Group 7 � Pupil Capacity 501-1800,MCC Schools,King Henry 3-19 School,Employees,Indirect Employee Expenses,Replacement,,20/12/2023,17/01/2024,728.2,,Axcis Education Recruitment
Schools Total,School Group 2 � Pupil Capacity 144-314,MCC Schools,Shirenewton Primary School,Supplies & Services,Grants and Subscriptions,Subscriptions,,04/11/2023,18/01/2024,114.4,,Oxford University Press
"Commercial, Corporate & landlord Services",Property Services & Facilities Management,Resources,Gwent Police Collaboration,Premises,"Repairs, Alterations & Maintenance of Buildings",Building Improvements / Maintenance,,19/01/2024,29/01/2024,60.68,,A.J Quinn Building Contractors Ltd
"Commercial, Corporate & landlord Services",Property Services & Facilities Management,Resources,Gwent Police Collaboration,Premises,"Repairs, Alterations & Maintenance of Buildings",Building Improvements / Maintenance,,16/01/2024,29/01/2024,358.41,,A.J Quinn Building Contractors Ltd
"Commercial, Corporate & landlord Services",Property Services & Facilities Management,Resources,Gwent Police Collaboration,Premises,"Repairs, Alterations & Maintenance of Buildings",Building Improvements / Maintenance,,18/01/2024,29/01/2024,176.98,,A.J Quinn Building Contractors Ltd
Children Services,Children Services Teams,Social Care and Health,Family Support and Protection Team � North,Supplies & Services,Services,Homelessness Bed & Breakfast Accomodation,,09/01/2024,29/01/2024,2386,,Fully Furnished Property Group Ltd
"Enterprise, Housing & Community Animation",General Fund Housing,Communities & Place,Homelessness,Supplies & Services,Services,Homelessness Bed & Breakfast Accomodation,,01/01/2024,04/01/2024,291.69,,Raglan Lodge
Schools Total,School Group 7 � Pupil Capacity 501-1800,MCC Schools,Monmouth Comprehensive,Transport,Contract Hire and Operating Leases,Vehicle Hire Charge,,22/01/2024,29/01/2024,295,,F R Willetts Limited
Schools Total,School Group 2 � Pupil Capacity 144-314,MCC Schools,Thornwell Primary School,Transport,Contract Hire and Operating Leases,Vehicle Hire Charge,,08/01/2024,16/01/2024,500,,REDACTED PERSONAL DATA
Schools Total,School Group 2 � Pupil Capacity 144-314,MCC Schools,Thornwell Primary School,Supplies & Services,"Equipment, Furniture and Materials",Materials & Consumables.,,10/01/2024,16/01/2024,7.98,,Amazon Payments UK Limited
Schools Total,School Group 1 � Pupil Capacity 1-143,MCC Schools,Ysgol Gymraeg Y Ffin,Supplies & Services,"Equipment, Furniture and Materials",Materials & Consumables.,,11/01/2024,16/01/2024,48.2,,ESPO
Adult Services,Community Care Team,Social Care and Health,Chepstow Adult Team,Third Party Payments,Third Party,Personal Care.,,05/01/2024,22/01/2024,499.5,,Radis Community Care
Schools Total,School Group 1 � Pupil Capacity 1-143,MCC Schools,Ysgol Gymraeg Y Ffin,Supplies & Services,"Equipment, Furniture and Materials",Materials & Consumables.,,25/01/2024,29/01/2024,106.98,,ESPO
Schools Total,School Group 1 � Pupil Capacity 1-143,MCC Schools,Ysgol Gymraeg Y Ffin,Supplies & Services,"Equipment, Furniture and Materials",Materials & Consumables.,,25/01/2024,29/01/2024,77.99,,ESPO
Adult Services,Community Care Team,Social Care and Health,Chepstow Adult Team,Third Party Payments,Third Party,Personal Care.,,05/01/2024,22/01/2024,346.75,,Radis Community Care
Adult Services,Community Care Team,Social Care and Health,Chepstow Adult Team,Third Party Payments,Third Party,Personal Care.,,05/01/2024,22/01/2024,383.75,,Radis Community Care
Adult Services,Community Care Team,Social Care and Health,Chepstow Adult Team,Third Party Payments,Third Party,Personal Care.,,05/01/2024,22/01/2024,351.5,,Radis Community Care
Adult Services,Community Care Team,Social Care and Health,Chepstow Adult Team,Third Party Payments,Third Party,Personal Care.,,05/01/2024,22/01/2024,360.62,,Radis Community Care
Adult Services,Community Care Team,Social Care and Health,Chepstow Adult Team,Third Party Payments,Third Party,Personal Care.,,05/01/2024,22/01/2024,591.8,,Radis Community Care
Adult Services,Community Care Team,Social Care and Health,Chepstow Adult Team,Third Party Payments,Third Party,Personal Care.,,05/01/2024,22/01/2024,462.5,,Radis Community Care
Adult Services,Community Care Team,Social Care and Health,Chepstow Adult Team,Third Party Payments,Third Party,Personal Care.,,05/01/2024,22/01/2024,2783.91,,Radis Community Care
Adult Services,Community Care Team,Social Care and Health,Chepstow Adult Team,Third Party Payments,Third Party,Personal Care.,,05/01/2024,22/01/2024,998.84,,Radis Community Care
Adult Services,Community Care Team,Social Care and Health,Chepstow Adult Team,Third Party Payments,Third Party,Personal Care.,,05/01/2024,22/01/2024,346.75,,Radis Community Care
Adult Services,Community Care Team,Social Care and Health,Chepstow Adult Team,Third Party Payments,Third Party,Personal Care.,,05/01/2024,22/01/2024,189.56,,Radis Community Care
Adult Services,Community Care Team,Social Care and Health,Chepstow Adult Team,Third Party Payments,Third Party,Personal Care.,,05/01/2024,22/01/2024,1502.59,,Radis Community Care
Schools Total,School Group 2 � Pupil Capacity 144-314,MCC Schools,Cantref Primary School,Supplies & Services,"Equipment, Furniture and Materials",Materials & Consumables.,,17/01/2024,29/01/2024,40.74,,Amazon Payments UK Limited
Schools Total,SCHGRP3 � School Group 3 � Pupil Capacity 315-500,MCC Schools,The Dell Primary School,Supplies & Services,"Equipment, Furniture and Materials",Materials & Consumables.,,22/01/2024,29/01/2024,6.99,,Amazon Payments UK Limited
Schools Total,SCHGRP3 � School Group 3 � Pupil Capacity 315-500,MCC Schools,The Dell Primary School,Supplies & Services,"Equipment, Furniture and Materials",Materials & Consumables.,,21/01/2024,29/01/2024,93.37,,Amazon Payments UK Limited
Schools Total,SCHGRP3 � School Group 3 � Pupil Capacity 315-500,MCC Schools,The Dell Primary School,Supplies & Services,"Equipment, Furniture and Materials",Materials & Consumables.,,21/01/2024,29/01/2024,61.92,,Amazon Payments UK Limited
Schools Total,SCHGRP3 � School Group 3 � Pupil Capacity 315-500,MCC Schools,The Dell Primary School,Supplies & Services,"Equipment, Furniture and Materials",Materials & Consumables.,,21/01/2024,29/01/2024,14.29,,Amazon Payments UK Limited
Schools Total,School Group 7 � Pupil Capacity 501-1800,MCC Schools,King Henry 3-19 School,Transport,Contract Hire and Operating Leases,Vehicle Hire Charge,,22/12/2023,29/01/2024,170,,Murrays Minibus Hire
Schools Total,School Group 7 � Pupil Capacity 501-1800,MCC Schools,King Henry 3-19 School,Transport,Contract Hire and Operating Leases,Vehicle Hire Charge,,22/12/2023,29/01/2024,200,,Murrays Minibus Hire
Schools Total,School Group 7 � Pupil Capacity 501-1800,MCC Schools,King Henry 3-19 School,Transport,Contract Hire and Operating Leases,Vehicle Hire Charge,,22/12/2023,29/01/2024,240,,Murrays Minibus Hire
Schools Total,SCHGRP3 � School Group 3 � Pupil Capacity 315-500,MCC Schools,The Dell Primary School,Supplies & Services,"Equipment, Furniture and Materials",Materials & Consumables.,,22/01/2024,29/01/2024,30.34,,Amazon Payments UK Limited
Adult Services,Community Care Team,Social Care and Health,Chepstow Adult Team,Third Party Payments,Third Party,Personal Care.,,05/01/2024,22/01/2024,1452,,Radis Community Care
"Enterprise, Housing & Community Animation",Business Growth & Enterprise,Communities & Place,CELT Shared Prosperity Fund - Child,Transport,Contract Hire and Operating Leases,Vehicle Hire Charge,,04/10/2023,03/01/2024,253.33,,Murrays Minibus Hire
Neighbourhood Services,Waste and Street Services,Communities & Place,Refuse & Cleansing Operations,Premises,"Repairs, Alterations & Maintenance of Buildings",Skip Hire,,04/10/2023,03/01/2024,115.5,,Thomas Waste Management Ltd
Adult Services,Community Care Team,Social Care and Health,Chepstow Adult Team,Third Party Payments,Third Party,Personal Care.,,05/01/2024,19/01/2024,882.56,,Abicare Services Ltd
Capital Division,Capital Dept,Capital,Capital Programme,Premises,"Repairs, Alterations & Maintenance of Buildings",Building Improvements / Maintenance,,22/12/2023,05/01/2024,71585.88,,Lovell Partnerships Ltd
"Leisure, Youth & Outdoor Adventure",Leisure Services,MonLife Directorate,Caldicot Leisure Centre,Supplies & Services,"Equipment, Furniture and Materials",General Goods For Resale.,,15/01/2024,19/01/2024,4.89,,Swim Wales
"Enterprise, Housing & Community Animation",General Fund Housing,Communities & Place,Melin PSL (Private Sector Leasing),Premises,"Repairs, Alterations & Maintenance of Buildings",Building Improvements / Maintenance,,30/11/2023,24/01/2024,50.38,,Monmouthshire Housing Association Ltd
Schools Total,SCHGRP3 � School Group 3 � Pupil Capacity 315-500,MCC Schools,Undy Primary School,Premises,"Repairs, Alterations & Maintenance of Buildings",Building Improvements / Maintenance,,04/01/2024,17/01/2024,61.26,,A.J Quinn Building Contractors Ltd
Schools Total,School Group 7 � Pupil Capacity 501-1800,MCC Schools,Chepstow School,Supplies & Services,Expenses,Exam Fees (Schools),,21/12/2023,17/01/2024,81.88,,Pearson Education LTD
Schools Total,School Group 7 � Pupil Capacity 501-1800,MCC Schools,Chepstow School,Supplies & Services,Expenses,Exam Fees (Schools),,22/12/2023,17/01/2024,506,,WJEC CBAC Limited
Schools Total,School Group 7 � Pupil Capacity 501-1800,MCC Schools,Caldicot School,Employees,Direct Employee Expenses,Agency Staff,,15/01/2024,17/01/2024,1457.19,,Apollo Teaching Services LTD
Schools Total,School Group 7 � Pupil Capacity 501-1800,MCC Schools,Chepstow School,Supplies & Services,Expenses,Exam Fees (Schools),,20/12/2023,17/01/2024,3252.47,,WJEC CBAC Limited
Schools Total,SCHGRP3 � School Group 3 � Pupil Capacity 315-500,MCC Schools,The Dell Primary School,Premises,"Repairs, Alterations & Maintenance of Buildings",Building Improvements / Maintenance,,30/11/2023,17/01/2024,262.46,,EFS Systems (UK) Ltd
Schools Total,School Group 2 � Pupil Capacity 144-314,MCC Schools,Thornwell Primary School,Supplies & Services,"Equipment, Furniture and Materials",General Goods For Resale.,,15/01/2024,17/01/2024,187.52,,Farm First Vetinary Services Ltd
"Leisure, Youth & Outdoor Adventure",Leisure Services,MonLife Directorate,Chepstow Leisure Centre,Supplies & Services,"Equipment, Furniture and Materials",General Goods For Resale.,,11/01/2024,17/01/2024,81,,RLSS UK Shop
"Leisure, Youth & Outdoor Adventure",Leisure Services,MonLife Directorate,Chepstow Leisure Centre,Supplies & Services,"Equipment, Furniture and Materials",General Goods For Resale.,,11/01/2024,17/01/2024,4.96,,RLSS UK Shop
Schools Total,School Group 2 � Pupil Capacity 144-314,MCC Schools,Cantref Primary School,Premises,"Repairs, Alterations & Maintenance of Buildings",Building Improvements / Maintenance,,29/09/2023,05/01/2024,235,,Industrial Door Services
Schools Total,School Group 2 � Pupil Capacity 144-314,MCC Schools,Dewstow Primary School,Premises,"Repairs, Alterations & Maintenance of Buildings",Building Improvements / Maintenance,,19/12/2023,17/01/2024,120.23,,EFS Systems (UK) Ltd
Schools Total,School Group 7 � Pupil Capacity 501-1800,MCC Schools,Chepstow School,Premises,"Repairs, Alterations & Maintenance of Buildings",Building Improvements / Maintenance,,12/12/2023,17/01/2024,769.66,,Ambassador Fire & Security LTD
Public Protection,"Registrations B, D and M",Social Care and Health,"Registrations B,D & M",Supplies & Services,"Printing, Stationery and General Office Expenses",Printing,,12/12/2023,17/01/2024,70,,Newport Printing Co Ltd
"Commercial, Corporate & landlord Services",Property Services & Facilities Management,Resources,Programmed Maintenance,Premises,"Repairs, Alterations & Maintenance of Buildings",Building Improvements / Maintenance,,22/01/2024,24/01/2024,87.45,,Lorne Stewart  Plc
Finance & Business Devlopment,Borough Theatre,MonLife Directorate,Borough Theatre General,Supplies & Services,"Equipment, Furniture and Materials",Bar,,24/01/2024,29/01/2024,112.05,,Tanners Wines Ltd
Capital Division,Capital Dept,Capital,Capital Programme,Premises,"Repairs, Alterations & Maintenance of Buildings",Building Improvements / Maintenance,,16/01/2024,29/01/2024,996.71,,A.J Quinn Building Contractors Ltd
Schools Total,School Group 2 � Pupil Capacity 144-314,MCC Schools,Dewstow Primary School,Premises,"Repairs, Alterations & Maintenance of Buildings",Building Improvements / Maintenance,,18/01/2024,29/01/2024,125.19,,A.J Quinn Building Contractors Ltd
"Commercial, Corporate & landlord Services",Property Services & Facilities Management,Resources,Programmed Maintenance,Premises,"Repairs, Alterations & Maintenance of Buildings",Building Improvements / Maintenance,,22/01/2024,24/01/2024,98.61,,Lorne Stewart  Plc
"Commercial, Corporate & landlord Services",Property Services & Facilities Management,Resources,Programmed Maintenance,Premises,"Repairs, Alterations & Maintenance of Buildings",Building Improvements / Maintenance,,22/01/2024,24/01/2024,59.92,,Lorne Stewart  Plc
"Commercial, Corporate & landlord Services",Property Services & Facilities Management,Resources,Programmed Maintenance,Premises,"Repairs, Alterations & Maintenance of Buildings",Building Improvements / Maintenance,,22/01/2024,24/01/2024,142.51,,Lorne Stewart  Plc
"Commercial, Corporate & landlord Services",Property Services & Facilities Management,Resources,Programmed Maintenance,Premises,"Repairs, Alterations & Maintenance of Buildings",Building Improvements / Maintenance,,22/01/2024,24/01/2024,59.92,,Lorne Stewart  Plc
"Commercial, Corporate & landlord Services",Property Services & Facilities Management,Resources,Programmed Maintenance,Premises,"Repairs, Alterations & Maintenance of Buildings",Building Improvements / Maintenance,,22/01/2024,24/01/2024,59.92,,Lorne Stewart  Plc
"Commercial, Corporate & landlord Services",Property Services & Facilities Management,Resources,Programmed Maintenance,Premises,"Repairs, Alterations & Maintenance of Buildings",Building Improvements / Maintenance,,22/01/2024,24/01/2024,59.92,,Lorne Stewart  Plc
"Leisure, Youth & Outdoor Adventure",Leisure Services,MonLife Directorate,Monmouth Leisure Centre,Supplies & Services,"Equipment, Furniture and Materials",General Goods For Resale.,,22/01/2024,29/01/2024,277.33,,Splash About International Ltd
Schools Total,School Group 7 � Pupil Capacity 501-1800,MCC Schools,Caldicot School,Supplies & Services,"Equipment, Furniture and Materials",Furniture Purchases / Replacement,,17/01/2024,23/01/2024,237.45,,Amazon Payments UK Limited
Schools Total,School Group 2 � Pupil Capacity 144-314,MCC Schools,Castle Park Primary School,Premises,"Repairs, Alterations & Maintenance of Buildings",Building Improvements / Maintenance,,12/01/2024,19/01/2024,68.75,,A.J Quinn Building Contractors Ltd
Schools Total,SCHGRP3 � School Group 3 � Pupil Capacity 315-500,MCC Schools,The Dell Primary School,Premises,"Repairs, Alterations & Maintenance of Buildings",Building Improvements / Maintenance,,12/01/2024,19/01/2024,83.88,,A.J Quinn Building Contractors Ltd
Schools Total,School Group 7 � Pupil Capacity 501-1800,MCC Schools,Caldicot School,Employees,Direct Employee Expenses,Agency Staff,,22/01/2024,24/01/2024,1457.19,,Apollo Teaching Services LTD
Schools Total,School Group 7 � Pupil Capacity 501-1800,MCC Schools,King Henry VIII Comprehensive,Premises,"Repairs, Alterations & Maintenance of Buildings",Building Improvements / Maintenance,,22/04/2024,01/02/2024,87.45,,Lorne Stewart  Plc
"Commercial, Corporate & landlord Services",Asset Management,Resources,County Farms Unit,Premises,"Repairs, Alterations & Maintenance of Buildings",Building Improvements / Maintenance,,24/01/2024,29/01/2024,631.4,,Lorne Stewart  Plc
Adult Services,ADULT DISABILITY SERVICES,Social Care and Health,CLDT,Third Party Payments,Third Party,Personal Care.,,17/01/2024,22/01/2024,2491.88,,Cartrefi Cymru
Adult Services,ADULT DISABILITY SERVICES,Social Care and Health,CLDT,Third Party Payments,Third Party,Personal Care.,,17/01/2024,22/01/2024,3114.85,,Cartrefi Cymru
Adult Services,Community Care Team,Social Care and Health,Mental Health Care Team,Third Party Payments,Third Party,Personal Care.,,05/01/2024,22/01/2024,138.72,,Radis Community Care
Adult Services,Community Care Team,Social Care and Health,Mental Health Care Team,Third Party Payments,Third Party,Personal Care.,,05/01/2024,22/01/2024,1780.19,,Radis Community Care
Adult Services,Community Care Team,Social Care and Health,Mental Health Care Team,Third Party Payments,Third Party,Personal Care.,,01/01/2024,22/01/2024,856,,Castle Care Supported Living
Adult Services,Community Care Team,Social Care and Health,Mental Health Care Team,Third Party Payments,Third Party,Personal Care.,,01/01/2024,22/01/2024,556.4,,Castle Care Supported Living
Adult Services,Community Care Team,Social Care and Health,Mental Health Care Team,Third Party Payments,Third Party,Personal Care.,,01/01/2024,22/01/2024,2568,,Castle Care Supported Living
Adult Services,Community Care Team,Social Care and Health,Mental Health Care Team,Third Party Payments,Third Party,Personal Care.,,01/01/2024,22/01/2024,385.2,,Castle Care Supported Living
Adult Services,Community Care Team,Social Care and Health,Mental Health Care Team,Third Party Payments,Third Party,Personal Care.,,01/01/2024,22/01/2024,2311.2,,Castle Care Supported Living
Adult Services,Community Care Team,Social Care and Health,Mental Health Care Team,Third Party Payments,Third Party,Personal Care.,,01/01/2024,22/01/2024,967.28,,Castle Care Supported Living
Adult Services,Community Care Team,Social Care and Health,Mental Health Care Team,Third Party Payments,Third Party,Personal Care.,,01/01/2024,22/01/2024,1125.64,,Castle Care Supported Living
Adult Services,Community Care Team,Social Care and Health,Mental Health Care Team,Third Party Payments,Third Party,Personal Care.,,01/01/2024,22/01/2024,1241.2,,Castle Care Supported Living
Adult Services,Community Care Team,Social Care and Health,Mental Health Care Team,Third Party Payments,Third Party,Personal Care.,,01/01/2024,22/01/2024,2568,,Castle Care Supported Living
Adult Services,Community Care Team,Social Care and Health,Mental Health Care Team,Third Party Payments,Third Party,Personal Care.,,05/01/2024,19/01/2024,595.41,,Abicare Services Ltd
Adult Services,Community Care Team,Social Care and Health,Mental Health Care Team,Third Party Payments,Third Party,Personal Care.,,05/01/2024,19/01/2024,809.37,,Abicare Services Ltd
Adult Services,Community Care Team,Social Care and Health,Abergavenny Adult Team,Third Party Payments,Third Party,Residential.,,02/01/2024,05/01/2024,2642.35,,Somerset Care
Adult Services,Community Care Team,Social Care and Health,Mental Health Care Team,Third Party Payments,Third Party,Personal Care.,,08/01/2024,17/01/2024,2234.4,,Lougher Home Care Ltd
Adult Services,Community Care Team,Social Care and Health,Mental Health Care Team,Third Party Payments,Third Party,Personal Care.,,08/01/2024,17/01/2024,2234.4,,Lougher Home Care Ltd
Adult Services,Community Care Team,Social Care and Health,Mental Health Care Team,Third Party Payments,Third Party,Personal Care.,,08/01/2024,17/01/2024,1436.4,,Lougher Home Care Ltd
"Facilities, Fleet & Decarbonisation",Transport Department,Communities & Place,Transport,Transport,Direct Transport Costs,Spare Parts,,15/12/2023,15/01/2024,225.77,,South West Truck & Van Ltd
"Facilities, Fleet & Decarbonisation",Transport Department,Communities & Place,Transport,Transport,Direct Transport Costs,Spare Parts,,15/12/2023,15/01/2024,235.8,,Dennis Eagle Limited
"Facilities, Fleet & Decarbonisation",Transport Department,Communities & Place,Transport,Transport,Direct Transport Costs,Spare Parts,,19/12/2023,15/01/2024,883.07,,South West Truck & Van Ltd
"Facilities, Fleet & Decarbonisation",Transport Department,Communities & Place,Transport,Transport,Direct Transport Costs,Vehicle Collision Damage Costs,,18/12/2023,15/01/2024,78.66,,South West Truck & Van Ltd
Adult Services,ADULT DISABILITY SERVICES,Social Care and Health,CLDT,Third Party Payments,Third Party,Personal Care.,,23/01/2024,23/01/2024,465.28,,REDACTED PERSONAL DATA
Adult Services,ADULT DISABILITY SERVICES,Social Care and Health,CLDT,Third Party Payments,Third Party,Personal Care.,,23/01/2024,23/01/2024,465.28,,REDACTED PERSONAL DATA
Adult Services,Community Care Team,Social Care and Health,Mental Health Care Team,Third Party Payments,Third Party,Personal Care.,,23/01/2024,23/01/2024,323.16,,REDACTED PERSONAL DATA
#N/A,#N/A,#N/A,#N/A,Current Liabilities,Bank Overdraft,Barclays Main Cash Book,,23/01/2024,23/01/2024,48,,DNA Legal
Adult Services,ADULT DISABILITY SERVICES,Social Care and Health,CLDT,Third Party Payments,Third Party,Personal Care.,,16/01/2024,29/01/2024,389.52,,Drive Ltd
Adult Services,ADULT DISABILITY SERVICES,Social Care and Health,CLDT,Third Party Payments,Third Party,Personal Care.,,16/01/2024,29/01/2024,64.92,,Drive Ltd
Adult Services,ADULT DISABILITY SERVICES,Social Care and Health,CLDT,Third Party Payments,Third Party,Personal Care.,,23/01/2024,24/01/2024,600,,Wellies Farm & Garden CIC
Adult Services,Community Care Team,Social Care and Health,Chepstow Adult Team,Third Party Payments,Third Party,Personal Care.,,05/01/2024,19/01/2024,1230.32,,Abicare Services Ltd
Schools Total,School Group 1 � Pupil Capacity 1-143,MCC Schools,Ysgol Gymraeg Y Ffin,Supplies & Services,"Equipment, Furniture and Materials",Materials & Consumables.,,12/01/2024,17/01/2024,18.25,,ESPO
Schools Total,School Group 1 � Pupil Capacity 1-143,MCC Schools,Ysgol Gymraeg Y Ffin,Supplies & Services,"Equipment, Furniture and Materials",Materials & Consumables.,,12/01/2024,17/01/2024,20.75,,ESPO
Schools Total,School Group 1 � Pupil Capacity 1-143,MCC Schools,Ysgol Gymraeg Y Ffin,Supplies & Services,"Equipment, Furniture and Materials",Materials & Consumables.,,12/01/2024,17/01/2024,32.7,,ESPO
Schools Total,School Group 1 � Pupil Capacity 1-143,MCC Schools,Ysgol Gymraeg Y Ffin,Supplies & Services,"Equipment, Furniture and Materials",Materials & Consumables.,,12/01/2024,17/01/2024,24.05,,ESPO
Adult Services,Community Care Team,Social Care and Health,Chepstow Adult Team,Third Party Payments,Third Party,Personal Care.,,08/01/2024,17/01/2024,262.2,,Lougher Home Care Ltd
Adult Services,Community Care Team,Social Care and Health,Chepstow Adult Team,Third Party Payments,Third Party,Personal Care.,,08/01/2024,17/01/2024,427.5,,Lougher Home Care Ltd
Schools Total,School Group 7 � Pupil Capacity 501-1800,MCC Schools,King Henry 3-19 School,Premises,Catering,Catering Equipment,,21/12/2023,09/01/2024,11.15,,REDACTED DATA
Adult Services,Community Care Team,Social Care and Health,Chepstow Adult Team,Third Party Payments,Third Party,Personal Care.,,30/12/2023,09/01/2024,252,,Helping Hands
Adult Services,Community Care Team,Social Care and Health,Chepstow Adult Team,Third Party Payments,Third Party,Personal Care.,,05/01/2024,22/01/2024,591.91,,Radis Community Care
Adult Services,Community Care Team,Social Care and Health,Chepstow Adult Team,Third Party Payments,Third Party,Personal Care.,,05/01/2024,22/01/2024,1743.31,,Radis Community Care
Schools Total,SCHGRP3 � School Group 3 � Pupil Capacity 315-500,MCC Schools,Overmonnow Primary School,Supplies & Services,"Equipment, Furniture and Materials",Materials & Consumables.,,17/01/2024,22/01/2024,45.67,,Hope Education Ltd
Schools Total,School Group 1 � Pupil Capacity 1-143,MCC Schools,Ysgol Gymraeg Y Ffin,Supplies & Services,"Equipment, Furniture and Materials",Materials & Consumables.,,18/01/2024,22/01/2024,13.17,,Amazon Payments UK Limited
Schools Total,School Group 1 � Pupil Capacity 1-143,MCC Schools,Ysgol Gymraeg Y Ffin,Supplies & Services,"Equipment, Furniture and Materials",Materials & Consumables.,,14/01/2024,17/01/2024,20.82,,Amazon Payments UK Limited
Schools Total,School Group 1 � Pupil Capacity 1-143,MCC Schools,Ysgol Gymraeg Y Ffin,Supplies & Services,"Equipment, Furniture and Materials",Materials & Consumables.,,14/01/2024,17/01/2024,7.46,,Amazon Payments UK Limited
Schools Total,School Group 2 � Pupil Capacity 144-314,MCC Schools,St Mary�s RC Primary School (VA),Supplies & Services,"Equipment, Furniture and Materials",Materials & Consumables.,,12/01/2024,17/01/2024,9.94,,Amazon Payments UK Limited
Schools Total,School Group 7 � Pupil Capacity 501-1800,MCC Schools,King Henry 3-19 School,Premises,Catering,Catering Equipment,,10/01/2024,17/01/2024,18,,REDACTED PERSONAL DATA
Adult Services,Community Care Team,Social Care and Health,Chepstow Adult Team,Third Party Payments,Third Party,Personal Care.,,30/12/2023,09/01/2024,1394.4,,Helping Hands
Adult Services,Community Care Team,Social Care and Health,Chepstow Adult Team,Third Party Payments,Third Party,Personal Care.,,30/12/2023,09/01/2024,1310.4,,Helping Hands
Schools Total,School Group 2 � Pupil Capacity 144-314,MCC Schools,Usk CiW Primary School (VC),Supplies & Services,"Equipment, Furniture and Materials",Materials & Consumables.,,21/12/2023,09/01/2024,595.5,,Complete Business Solutions Group Ltd
"Leisure, Youth & Outdoor Adventure",Youth & Education,MonLife Directorate,Gilwern,Premises,Cleaning and Domestic Supplies,Premises Pest Control,,07/12/2023,09/01/2024,124,,P&P Pest Control
Adult Services,Community Care Team,Social Care and Health,Chepstow Adult Team,Third Party Payments,Third Party,Personal Care.,,22/01/2024,29/01/2024,940.5,,Lougher Home Care Ltd
Schools Total,School Group 7 � Pupil Capacity 501-1800,MCC Schools,King Henry 3-19 School,Premises,Catering,Catering Equipment,,15/01/2024,22/01/2024,22,,REDACTED PERSONAL DATA
Schools Total,School Group 2 � Pupil Capacity 144-314,MCC Schools,Archbishop Rowan Williams CiW Primary School (VA),Supplies & Services,"Equipment, Furniture and Materials",Materials & Consumables.,,11/01/2024,22/01/2024,203.5,,ESPO
Schools Total,School Group 2 � Pupil Capacity 144-314,MCC Schools,Archbishop Rowan Williams CiW Primary School (VA),Supplies & Services,"Equipment, Furniture and Materials",Materials & Consumables.,,11/01/2024,22/01/2024,8.26,,Amazon Payments UK Limited
Schools Total,School Group 2 � Pupil Capacity 144-314,MCC Schools,Archbishop Rowan Williams CiW Primary School (VA),Supplies & Services,"Equipment, Furniture and Materials",Materials & Consumables.,,15/01/2024,22/01/2024,27.44,,Amazon Payments UK Limited
"Facilities, Fleet & Decarbonisation",Transport Department,Communities & Place,Transport,Transport,Contract Hire and Operating Leases,Vehicle Hire Charge,,22/12/2023,11/01/2024,3300,,L C Vehicle Hire
Adult Services,Community Care Team,Social Care and Health,Chepstow Adult Team,Third Party Payments,Third Party,Personal Care.,,15/01/2024,29/01/2024,1920,,Kind Tailored Care Ltd
Adult Services,Community Care Team,Social Care and Health,Chepstow Adult Team,Third Party Payments,Third Party,Personal Care.,,22/01/2024,29/01/2024,2430,,Community Care Services
Adult Services,Community Care Team,Social Care and Health,Chepstow Adult Team,Third Party Payments,Third Party,Personal Care.,,22/01/2024,29/01/2024,1440,,Community Care Services
Adult Services,Community Care Team,Social Care and Health,Chepstow Adult Team,Third Party Payments,Third Party,Personal Care.,,22/01/2024,29/01/2024,356.25,,Lougher Home Care Ltd
Adult Services,Community Care Team,Social Care and Health,Chepstow Adult Team,Third Party Payments,Third Party,Personal Care.,,22/01/2024,29/01/2024,2713.2,,Lougher Home Care Ltd
"Commercial, Corporate & landlord Services",Property Services & Facilities Management,Resources,Usk Accommodation,Supplies & Services,Catering,Vending Rental,,25/07/2023,19/01/2024,201.54,,Eden Springs UK
"Commercial, Corporate & landlord Services",Property Services & Facilities Management,Resources,Usk Accommodation,Supplies & Services,Catering,Vending Rental,,25/11/2023,19/01/2024,61.8,,Eden Springs UK
"Commercial, Corporate & landlord Services",Asset Management,Resources,Investment Assets � Newport Leisure Park,Supplies & Services,Services,Professional And Specialist Fees,,30/11/2023,25/01/2024,4104.9,,Smart Parking Ltd
"Commercial, Corporate & landlord Services",Asset Management,Resources,Investment Assets � Newport Leisure Park,Supplies & Services,Services,Professional And Specialist Fees,,30/11/2023,25/01/2024,-4104.9,,Smart Parking Ltd
Public Protection,Public Protection,Social Care and Health,Trading Standards Management,Supplies & Services,Services,Professional And Specialist Fees,,22/01/2024,29/01/2024,336,,ACTSO Limited
Neighbourhood Services,Waste and Street Services,Communities & Place,Refuse & Cleansing Operations,Supplies & Services,"Equipment, Furniture and Materials",Rental / Hire,,22/01/2024,29/01/2024,320,,Insite Portable Accommodation
Adult Services,Direct Care Residential,Social Care and Health,Mardy Park,Supplies & Services,"Equipment, Furniture and Materials",Rental / Hire,,15/12/2023,29/01/2024,102.99,,Culligan (UK) Limited
Adult Services,Direct Care Residential,Social Care and Health,Mardy Park,Supplies & Services,"Equipment, Furniture and Materials",Rental / Hire,,15/03/2023,29/01/2024,103.96,,Culligan (UK) Limited
"Enterprise, Housing & Community Animation",Business Growth & Enterprise,Communities & Place,Multiply SPF,Supplies & Services,"Equipment, Furniture and Materials",Equipment Purchases,,18/01/2024,23/01/2024,330.37,,Hope Education Ltd
Children Services,Children Services Teams,Social Care and Health,Placement & Support Team,Supplies & Services,Services,Professional And Specialist Fees,,16/01/2024,23/01/2024,2777.3,,CFCS Ltd (Child Focused Childrens Services Ltd)
Children Services,Children Services Teams,Social Care and Health,Placement & Support Team,Supplies & Services,Services,Professional And Specialist Fees,,16/01/2024,23/01/2024,154,,CFCS Ltd (Child Focused Childrens Services Ltd)
Corporate (COL),Corporate (COL),Corporate Costs & Levies,Corporate Management (CM),Income,Customer and Client Receipts,Recoupment,,12/08/2020,23/01/2024,-2702.7,,Midway Transitional Solutions Ltd
"Placemaking, Highways & Flooding",Highways Dev & Car Parks,Communities & Place,Transport Policy,Supplies & Services,Services,Professional And Specialist Fees,,31/12/2023,23/01/2024,410.11,,Security Plus Limited
Children Services,Children Services Teams,Social Care and Health,Placement & Support Team,Supplies & Services,Services,Professional And Specialist Fees,,23/01/2024,29/01/2024,770,,CFCS Ltd (Child Focused Childrens Services Ltd)
Children Services,Children Services Teams,Social Care and Health,Placement & Support Team,Supplies & Services,Services,Professional And Specialist Fees,,23/01/2024,29/01/2024,2769.6,,CFCS Ltd (Child Focused Childrens Services Ltd)
"Commercial, Corporate & landlord Services",Property Services & Facilities Management,Resources,Office Services,Supplies & Services,"Equipment, Furniture and Materials",Equipment Purchases,,23/01/2024,29/01/2024,60,,Zenith Print and Packaging Ltd
Adult Services,Day Centres,Social Care and Health,My Day,Supplies & Services,"Equipment, Furniture and Materials",Rental / Hire,,16/05/2023,02/01/2024,5.13,,Culligan (UK) Limited
Adult Services,Day Centres,Social Care and Health,My Day,Supplies & Services,"Equipment, Furniture and Materials",Rental / Hire,,17/04/2023,02/01/2024,60.49,,Culligan (UK) Limited
#N/A,#N/A,#N/A,#N/A,Supplies & Services,Services,Professional And Specialist Fees,,18/01/2024,24/01/2024,10000,,Cardiff City Council
"Commercial, Corporate & landlord Services",Asset Management,Resources,Commercialisation of Assets,Supplies & Services,Services,Professional And Specialist Fees,,01/12/2023,18/01/2024,7966.48,,Alder King LLP
"Commercial, Corporate & landlord Services",Asset Management,Resources,Investment Assets � Newport Leisure Park,Supplies & Services,Services,Professional And Specialist Fees,,01/06/2023,18/01/2024,836.25,,Alder King LLP
"Commercial, Corporate & landlord Services",Asset Management,Resources,Investment Assets � Newport Leisure Park,Supplies & Services,Services,Professional And Specialist Fees,,01/06/2023,18/01/2024,5503.2,,Alder King LLP
Schools Total,School Group 2 � Pupil Capacity 144-314,MCC Schools,Trellech Primary School,Supplies & Services,Services,Professional And Specialist Fees,,07/11/2023,17/01/2024,895,,Impact Wales
Schools Total,School Group 2 � Pupil Capacity 144-314,MCC Schools,Trellech Primary School,Supplies & Services,Services,Professional And Specialist Fees,,07/11/2023,17/01/2024,895,,Impact Wales
"Placemaking, Highways & Flooding",Highways Dev & Car Parks,Communities & Place,Transport Policy,Supplies & Services,Services,Professional And Specialist Fees,,21/12/2023,09/01/2024,2823.96,,Rhondda Cynon Taff Cbc
Neighbourhood Services,Waste and Street Services,Communities & Place,Refuse & Cleansing Operations,Supplies & Services,"Equipment, Furniture and Materials",Rental / Hire,,25/12/2023,09/01/2024,320,,Insite Portable Accommodation
Corporate (COL),Corporate (COL),Corporate Costs & Levies,Corporate Management (CM),Income,Customer and Client Receipts,Recoupment,,26/10/2022,23/01/2024,-800,,Midway Transitional Solutions Ltd
Finance & Business Devlopment,Borough Theatre,MonLife Directorate,Borough Theatre General,Supplies & Services,"Equipment, Furniture and Materials",Equipment Purchases,,18/01/2024,22/01/2024,89.41,,Stage Lighting Services
Schools Total,School Group 7 � Pupil Capacity 501-1800,MCC Schools,King Henry 3-19 School,Supplies & Services,"Equipment, Furniture and Materials",Health & Safety Equipment.,,19/12/2023,22/01/2024,2207.13,,Oxford University Press
Schools Total,School Group 7 � Pupil Capacity 501-1800,MCC Schools,King Henry 3-19 School,Supplies & Services,"Equipment, Furniture and Materials",Health & Safety Equipment.,,19/12/2023,22/01/2024,0.17,,Oxford University Press
Corporate (COL),Corporate (COL),Corporate Costs & Levies,Corporate Management (CM),Income,Customer and Client Receipts,Recoupment,,23/01/2024,02/02/2024,-808,,Mayglothling Waste Limited
Public Protection,Public Protection,Social Care and Health,Public Health,Supplies & Services,"Equipment, Furniture and Materials",Equipment Purchases,,31/12/2023,03/01/2024,1587.52,,Hottinger Bruel & Kjaer Uk Ltd
Public Protection,Public Protection,Social Care and Health,Trading Standards Management,Supplies & Services,Services,Professional And Specialist Fees,,18/01/2024,29/01/2024,900,,R S Building Consultancy Ltd
Schools Total,School Group 2 � Pupil Capacity 144-314,MCC Schools,Trellech Primary School,Premises,"Repairs, Alterations & Maintenance of Buildings",Building Improvements / Maintenance,,23/05/2023,16/01/2024,280,,Enviroteq
Schools Total,School Group 1 � Pupil Capacity 1-143,MCC Schools,Llanvihangel Crucorney Primary School,Premises,"Repairs, Alterations & Maintenance of Buildings",Building Improvements / Maintenance,,31/07/2023,29/01/2024,310.63,,Baileys DIY ltd Abergavenny
Schools Total,School Group 7 � Pupil Capacity 501-1800,MCC Schools,Chepstow School,Supplies & Services,Expenses,Exam Fees (Schools),,15/12/2023,08/02/2024,146.36,,Pearson Education LTD
Schools Total,School Group 7 � Pupil Capacity 501-1800,MCC Schools,Chepstow School,Supplies & Services,Expenses,Exam Fees (Schools),,15/12/2023,08/02/2024,3.75,,Pearson Education LTD
Schools Total,School Group 7 � Pupil Capacity 501-1800,MCC Schools,Chepstow School,Employees,Direct Employee Expenses,Agency Staff,,17/01/2024,25/01/2024,220.65,,Supply Desk Ltd
Capital Division,Capital Dept,Capital,Capital Programme,Premises,"Repairs, Alterations & Maintenance of Buildings",Building Improvements / Maintenance,,14/12/2023,25/01/2024,13098.5,,A.J Quinn Building Contractors Ltd
Adult Services,Commissioning Team,Social Care and Health,Commissioning,Supplies & Services,"Printing, Stationery and General Office Expenses",Printing,,30/11/2023,02/01/2024,776.88,,Anthem Engagement Ltd
"Enterprise, Housing & Community Animation",General Fund Housing,Communities & Place,Melin PSL (Private Sector Leasing),Premises,"Repairs, Alterations & Maintenance of Buildings",Building Improvements / Maintenance,,21/12/2023,04/01/2024,57.8,,Monmouthshire Housing Association Ltd
"Enterprise, Housing & Community Animation",General Fund Housing,Communities & Place,Melin PSL (Private Sector Leasing),Premises,"Repairs, Alterations & Maintenance of Buildings",Building Improvements / Maintenance,,21/12/2023,04/01/2024,96.39,,Monmouthshire Housing Association Ltd
"Enterprise, Housing & Community Animation",General Fund Housing,Communities & Place,Melin PSL (Private Sector Leasing),Premises,"Repairs, Alterations & Maintenance of Buildings",Building Improvements / Maintenance,,21/12/2023,04/01/2024,96.39,,Monmouthshire Housing Association Ltd
"Enterprise, Housing & Community Animation",General Fund Housing,Communities & Place,Melin PSL (Private Sector Leasing),Premises,"Repairs, Alterations & Maintenance of Buildings",Building Improvements / Maintenance,,21/12/2023,04/01/2024,81.6,,Monmouthshire Housing Association Ltd
"Enterprise, Housing & Community Animation",General Fund Housing,Communities & Place,Melin PSL (Private Sector Leasing),Premises,"Repairs, Alterations & Maintenance of Buildings",Building Improvements / Maintenance,,21/12/2023,04/01/2024,37.42,,Monmouthshire Housing Association Ltd
"Enterprise, Housing & Community Animation",General Fund Housing,Communities & Place,Melin PSL (Private Sector Leasing),Premises,"Repairs, Alterations & Maintenance of Buildings",Building Improvements / Maintenance,,21/12/2023,04/01/2024,151.89,,Monmouthshire Housing Association Ltd
"Enterprise, Housing & Community Animation",General Fund Housing,Communities & Place,Melin PSL (Private Sector Leasing),Premises,"Repairs, Alterations & Maintenance of Buildings",Building Improvements / Maintenance,,21/12/2023,04/01/2024,298.92,,Monmouthshire Housing Association Ltd
"Enterprise, Housing & Community Animation",General Fund Housing,Communities & Place,Melin PSL (Private Sector Leasing),Premises,"Repairs, Alterations & Maintenance of Buildings",Building Improvements / Maintenance,,21/12/2023,04/01/2024,60.46,,Monmouthshire Housing Association Ltd
Capital Division,Capital Dept,Capital,Capital Programme,Premises,"Repairs, Alterations & Maintenance of Buildings",Building Improvements / Maintenance,,12/01/2024,17/01/2024,12170,,HSL Compliance Ltd
Adult Services,Commissioning Team,Social Care and Health,Commissioning,Supplies & Services,"Printing, Stationery and General Office Expenses",Printing,,09/01/2024,17/01/2024,726.02,,Anthem Engagement Ltd
Schools Total,SCHGRP3 � School Group 3 � Pupil Capacity 315-500,MCC Schools,Overmonnow Primary School,Premises,"Repairs, Alterations & Maintenance of Buildings",Building Improvements / Maintenance,,19/01/2024,29/01/2024,73.35,,A.J Quinn Building Contractors Ltd
Schools Total,School Group 2 � Pupil Capacity 144-314,MCC Schools,Llantilio Pertholey CiW Primary School (VC),Premises,"Repairs, Alterations & Maintenance of Buildings",Building Improvements / Maintenance,,19/01/2024,29/01/2024,261.11,,A.J Quinn Building Contractors Ltd
"Commercial, Corporate & landlord Services",Property Services & Facilities Management,Resources,Programmed Maintenance,Premises,"Repairs, Alterations & Maintenance of Buildings",Building Improvements / Maintenance,,22/01/2024,24/01/2024,59.92,,Lorne Stewart  Plc
"Commercial, Corporate & landlord Services",Property Services & Facilities Management,Resources,Programmed Maintenance,Premises,"Repairs, Alterations & Maintenance of Buildings",Building Improvements / Maintenance,,22/01/2024,24/01/2024,59.92,,Lorne Stewart  Plc
"Commercial, Corporate & landlord Services",Property Services & Facilities Management,Resources,Programmed Maintenance,Premises,"Repairs, Alterations & Maintenance of Buildings",Building Improvements / Maintenance,,22/01/2024,24/01/2024,59.92,,Lorne Stewart  Plc
"Commercial, Corporate & landlord Services",Property Services & Facilities Management,Resources,Programmed Maintenance,Premises,"Repairs, Alterations & Maintenance of Buildings",Building Improvements / Maintenance,,22/01/2024,24/01/2024,59.92,,Lorne Stewart  Plc
"Commercial, Corporate & landlord Services",Property Services & Facilities Management,Resources,Programmed Maintenance,Premises,"Repairs, Alterations & Maintenance of Buildings",Building Improvements / Maintenance,,22/01/2024,24/01/2024,14567.28,,Lorne Stewart  Plc
Schools Total,School Group 2 � Pupil Capacity 144-314,MCC Schools,Castle Park Primary School,Premises,"Repairs, Alterations & Maintenance of Buildings",Building Improvements / Maintenance,,16/10/2023,23/01/2024,41,,EFS Systems (UK) Ltd
Resources,Support Services,Children & Young People,School & Student Access,Premises,"Repairs, Alterations & Maintenance of Buildings",Building Improvements / Maintenance,,01/01/2024,03/01/2024,2329.58,,Portakabin Limited
Schools Total,School Group 2 � Pupil Capacity 144-314,MCC Schools,Osbaston CiW Primary School (VC),Premises,"Repairs, Alterations & Maintenance of Buildings",Building Improvements / Maintenance,,02/01/2024,03/01/2024,689.69,,Ambassador Fire & Security LTD
Schools Total,School Group 2 � Pupil Capacity 144-314,MCC Schools,Usk CiW Primary School (VC),Premises,"Repairs, Alterations & Maintenance of Buildings",Building Improvements / Maintenance,,02/01/2024,03/01/2024,232.4,,Ambassador Fire & Security LTD
Schools Total,SCHGRP3 � School Group 3 � Pupil Capacity 315-500,MCC Schools,Overmonnow Primary School,Premises,"Repairs, Alterations & Maintenance of Buildings",Building Improvements / Maintenance,,02/01/2024,03/01/2024,306,,Ambassador Fire & Security LTD
Schools Total,School Group 2 � Pupil Capacity 144-314,MCC Schools,Trellech Primary School,Premises,"Repairs, Alterations & Maintenance of Buildings",Building Improvements / Maintenance,,02/01/2024,03/01/2024,367.28,,Ambassador Fire & Security LTD
"Enterprise, Housing & Community Animation",Business Growth & Enterprise,Communities & Place,CELT Shared Prosperity Fund - Adult,Supplies & Services,Expenses,Non Employee Training Courses,,19/01/2024,24/01/2024,972,,International House Bristol Ltd
Schools Total,School Group 7 � Pupil Capacity 501-1800,MCC Schools,Caldicot School,Supplies & Services,"Equipment, Furniture and Materials",Materials & Consumables.,,15/01/2024,17/01/2024,2499.99,,Nisbets
Schools Total,SCHGRP3 � School Group 3 � Pupil Capacity 315-500,MCC Schools,Deri View Primary School,Employees,Indirect Employee Expenses,Replacement,,05/07/2023,19/01/2024,384.2,,Teaching 4 Wales Ltd
Schools Total,SCHGRP3 � School Group 3 � Pupil Capacity 315-500,MCC Schools,Deri View Primary School,Employees,Indirect Employee Expenses,Replacement,,05/07/2023,19/01/2024,98.12,,Teaching 4 Wales Ltd
"Enterprise, Housing & Community Animation",General Fund Housing,Communities & Place,Homelessness,Premises,"Repairs, Alterations & Maintenance of Buildings",Security Of Premises.,,09/01/2024,19/01/2024,4572.48,,M J Events Support Ltd
"Facilities, Fleet & Decarbonisation",Catering Services,Communities & Place,Schools Catering,Supplies & Services,"Equipment, Furniture and Materials",Materials & Consumables.,,09/01/2024,17/01/2024,187.54,,Newhall Janitorial Ltd
"Commercial, Corporate & landlord Services",Property Services & Facilities Management,Resources,Programmed Maintenance,Premises,"Repairs, Alterations & Maintenance of Buildings",Premises Repairs And Maintenance,,04/01/2024,05/01/2024,113.95,,Ambassador Fire & Security LTD
"Commercial, Corporate & landlord Services",Property Services & Facilities Management,Resources,Programmed Maintenance,Premises,"Repairs, Alterations & Maintenance of Buildings",Premises Repairs And Maintenance,,04/01/2024,05/01/2024,80,,Ambassador Fire & Security LTD
"Commercial, Corporate & landlord Services",Property Services & Facilities Management,Resources,Programmed Maintenance,Premises,"Repairs, Alterations & Maintenance of Buildings",Premises Repairs And Maintenance,,04/01/2024,05/01/2024,168,,Ambassador Fire & Security LTD
"Commercial, Corporate & landlord Services",Property Services & Facilities Management,Resources,Programmed Maintenance,Premises,"Repairs, Alterations & Maintenance of Buildings",Premises Repairs And Maintenance,,04/01/2024,05/01/2024,80,,Ambassador Fire & Security LTD
"Commercial, Corporate & landlord Services",Property Services & Facilities Management,Resources,Programmed Maintenance,Premises,"Repairs, Alterations & Maintenance of Buildings",Premises Repairs And Maintenance,,04/01/2024,05/01/2024,80,,Ambassador Fire & Security LTD
Schools Total,School Group 2 � Pupil Capacity 144-314,MCC Schools,Thornwell Primary School,Supplies & Services,Communications and Computing,Telephone,,15/01/2024,17/01/2024,101.95,,General Communications
Schools Total,School Group 7 � Pupil Capacity 501-1800,MCC Schools,Caldicot School,Supplies & Services,"Equipment, Furniture and Materials",Materials & Consumables.,,10/01/2024,17/01/2024,4.64,,Amazon Payments UK Limited
Schools Total,School Group 7 � Pupil Capacity 501-1800,MCC Schools,Caldicot School,Supplies & Services,"Equipment, Furniture and Materials",Materials & Consumables.,,08/01/2024,17/01/2024,13.32,,Amazon Payments UK Limited
"Commercial, Corporate & landlord Services",Property Services & Facilities Management,Resources,Usk Accommodation,Premises,"Repairs, Alterations & Maintenance of Buildings",Premises Repairs And Maintenance,,31/12/2023,18/01/2024,890,,Enviroteq
Schools Total,School Group 7 � Pupil Capacity 501-1800,MCC Schools,Caldicot School,Supplies & Services,"Equipment, Furniture and Materials",Materials & Consumables.,,09/01/2024,18/01/2024,7.27,,Amazon Payments UK Limited
Schools Total,School Group 7 � Pupil Capacity 501-1800,MCC Schools,Caldicot School,Supplies & Services,"Equipment, Furniture and Materials",Materials & Consumables.,,16/12/2023,19/01/2024,-33.67,,Amazon Payments UK Limited
Adult Services,Commissioning Strategy,Social Care and Health,Commissioning Strategy,Third Party Payments,Third Party,General Contracts,,02/01/2024,04/01/2024,7680.75,,Bridges Community Centre
"Enterprise, Housing & Community Animation",General Fund Housing,Communities & Place,Homelessness,Premises,"Repairs, Alterations & Maintenance of Buildings",Security Of Premises.,,02/01/2024,04/01/2024,7482.24,,M J Events Support Ltd
"Enterprise, Housing & Community Animation",General Fund Housing,Communities & Place,Emergency Accommodation Hostel,Premises,"Repairs, Alterations & Maintenance of Buildings",Security Of Premises.,,02/01/2024,04/01/2024,3741.12,,M J Events Support Ltd
Information Communication Technology,Technology & Organisational Design,Resources,Digital Program Office,Supplies & Services,Communications and Computing,Mobile Telephones,,15/12/2023,02/01/2024,2201.28,,Virgin Media Business Limited
Adult Services,Direct Care,Social Care and Health,Care at Home,Supplies & Services,Communications and Computing,Telephone - Call Charges,,13/12/2023,02/01/2024,910.52,,Vodafone
Neighbourhood Services,Waste and Street Services,Communities & Place,Refuse & Cleansing Operations,Third Party Payments,Third Party,General Contracts,,01/12/2023,04/01/2024,23170.01,,Blaenau Gwent County Borough Council
Capital Division,Capital Dept,Capital,Capital Programme,Third Party Payments,Third Party,General Contracts,,31/10/2023,02/01/2024,2445,,Black Mountain Quarries
Information Communication Technology,Technology & Organisational Design,Resources,Digital Program Office,Supplies & Services,Communications and Computing,Mobile Telephones,,07/12/2023,02/01/2024,1490,,Virgin Media Business Limited
"Facilities, Fleet & Decarbonisation",Catering Services,Communities & Place,Schools Catering,Supplies & Services,"Equipment, Furniture and Materials",Materials & Consumables.,,17/01/2024,26/01/2024,16.02,,Newhall Janitorial Ltd
"Facilities, Fleet & Decarbonisation",Catering Services,Communities & Place,Schools Catering,Supplies & Services,"Equipment, Furniture and Materials",Materials & Consumables.,,16/01/2024,29/01/2024,29.41,,Castell Howell Foods Ltd
"Facilities, Fleet & Decarbonisation",Catering Services,Communities & Place,Schools Catering,Supplies & Services,"Equipment, Furniture and Materials",Materials & Consumables.,,16/01/2024,29/01/2024,6307.43,,Castell Howell Foods Ltd
Adult Services,Direct Care,Social Care and Health,Care at Home,Supplies & Services,Communications and Computing,Telephone - Call Charges,,13/01/2024,29/01/2024,905.98,,Vodafone
Adult Services,Direct Care,Social Care and Health,Flexible Respite Options,Third Party Payments,Third Party,Personal Care.,,23/01/2024,23/01/2024,32.7,,REDACTED PERSONAL DATA
Adult Services,Direct Care,Social Care and Health,Flexible Respite Options,Third Party Payments,Third Party,Personal Care.,,23/01/2024,23/01/2024,151.15,,REDACTED PERSONAL DATA
Adult Services,Direct Care,Social Care and Health,Flexible Respite Options,Third Party Payments,Third Party,Personal Care.,,23/01/2024,23/01/2024,151.15,,REDACTED PERSONAL DATA
Schools Total,School Group 7 � Pupil Capacity 501-1800,MCC Schools,Caldicot School,Supplies & Services,"Equipment, Furniture and Materials",Materials & Consumables.,,12/12/2023,16/01/2024,33.3,,Amazon Payments UK Limited
Schools Total,School Group 7 � Pupil Capacity 501-1800,MCC Schools,King Henry 3-19 School,Premises,"Repairs, Alterations & Maintenance of Buildings",General Premises Expenditure,,01/01/2024,16/01/2024,633.34,,Adt Fire And Security
Children Services,Children Services Teams,Social Care and Health,Children's Services Man/Support,Premises,Rents,Rents/Hire Of Premises.,,04/01/2024,17/01/2024,100,,Usk Memorial Hall
Schools Total,School Group 7 � Pupil Capacity 501-1800,MCC Schools,King Henry 3-19 School,Premises,Cleaning and Domestic Supplies,Contract Cleaning - Premises (Direct),,01/01/2024,19/01/2024,8758.23,,Atlas Contractors Ltd
Adult Services,Community Care Team,Social Care and Health,Abergavenny Adult Team,Third Party Payments,Third Party,Nursing.,,17/12/2023,19/01/2024,3388,,Avenue Road Nursing Home
Adult Services,Community Care Team,Social Care and Health,Abergavenny Adult Team,Third Party Payments,Third Party,Nursing.,,17/12/2023,19/01/2024,3388,,Avenue Road Nursing Home
Adult Services,Community Care Team,Social Care and Health,Abergavenny Adult Team,Third Party Payments,Third Party,FNC Social Care Nursing Tasks,,17/12/2023,19/01/2024,31.44,,Avenue Road Nursing Home
Adult Services,Community Care Team,Social Care and Health,Mental Health Care Team,Third Party Payments,Third Party,FNC Social Care Nursing Tasks,,16/01/2024,19/01/2024,31.44,,St Annes Nursing Home
Adult Services,Community Care Team,Social Care and Health,Monmouth Adult Team,Third Party Payments,Third Party,Nursing.,,16/01/2024,29/01/2024,3388,,Gibraltar Care Village Limited t/a PSP Healthcare Limited
Adult Services,ADULT DISABILITY SERVICES,Social Care and Health,CLDT,Third Party Payments,Third Party,Residential.,,05/01/2024,24/01/2024,6778.94,,The Drive
Adult Services,ADULT DISABILITY SERVICES,Social Care and Health,CLDT,Third Party Payments,Third Party,Residential.,,05/01/2024,24/01/2024,6716.13,,The Drive
Adult Services,Community Care Team,Social Care and Health,Monmouth Adult Team,Third Party Payments,Third Party,Residential.,,16/01/2024,29/01/2024,3584,,Gibraltar Care Village Limited t/a PSP Healthcare Limited
Adult Services,Community Care Team,Social Care and Health,Monmouth Adult Team,Third Party Payments,Third Party,Nursing.,,16/01/2024,29/01/2024,3388,,Gibraltar Care Village Limited t/a PSP Healthcare Limited
Adult Services,Community Care Team,Social Care and Health,Monmouth Adult Team,Third Party Payments,Third Party,Nursing.,,16/01/2024,29/01/2024,3388,,Gibraltar Care Village Limited t/a PSP Healthcare Limited
Adult Services,Community Care Team,Social Care and Health,Monmouth Adult Team,Third Party Payments,Third Party,Nursing.,,16/01/2024,29/01/2024,3388,,Gibraltar Care Village Limited t/a PSP Healthcare Limited
Adult Services,Community Care Team,Social Care and Health,Abergavenny Adult Team,Third Party Payments,Third Party,Nursing.,,16/01/2024,29/01/2024,3388,,Gibraltar Care Village Limited t/a PSP Healthcare Limited
Adult Services,Community Care Team,Social Care and Health,Mental Health Care Team,Third Party Payments,Third Party,FNC Social Care Nursing Tasks,,16/01/2024,29/01/2024,52.77,,Gibraltar Care Village Limited t/a PSP Healthcare Limited
Adult Services,Community Care Team,Social Care and Health,Monmouth Adult Team,Third Party Payments,Third Party,FNC Social Care Nursing Tasks,,16/01/2024,29/01/2024,31.44,,Gibraltar Care Village Limited t/a PSP Healthcare Limited
Adult Services,Community Care Team,Social Care and Health,Monmouth Adult Team,Third Party Payments,Third Party,FNC Social Care Nursing Tasks,,16/01/2024,29/01/2024,31.44,,Gibraltar Care Village Limited t/a PSP Healthcare Limited
Adult Services,Community Care Team,Social Care and Health,Monmouth Adult Team,Third Party Payments,Third Party,FNC Social Care Nursing Tasks,,16/01/2024,29/01/2024,31.44,,Gibraltar Care Village Limited t/a PSP Healthcare Limited
Adult Services,Direct Care Residential,Social Care and Health,Mardy Park,Supplies & Services,"Equipment, Furniture and Materials",Materials & Consumables.,,18/01/2024,24/01/2024,168.65,,Nisbets
Adult Services,Direct Care Residential,Social Care and Health,Mardy Park,Supplies & Services,"Equipment, Furniture and Materials",Materials & Consumables.,,18/01/2024,24/01/2024,25.19,,Nisbets
Adult Services,ADULT DISABILITY SERVICES,Social Care and Health,CLDT,Third Party Payments,Third Party,Residential.,,05/01/2024,24/01/2024,5870.17,,The Drive
Adult Services,ADULT DISABILITY SERVICES,Social Care and Health,Resettlement,Third Party Payments,Third Party,Residential.,,05/01/2024,24/01/2024,5870.17,,The Drive
Adult Services,Community Care Team,Social Care and Health,Mental Health Care Team,Third Party Payments,Third Party,Residential.,,11/01/2024,24/01/2024,6324.31,,Forward(Wales) Ltd
Adult Services,Direct Care Residential,Social Care and Health,Severn View Residential,Supplies & Services,"Equipment, Furniture and Materials",Materials & Consumables.,,09/01/2024,17/01/2024,33.91,,REDACTED DATA
Adult Services,Direct Care Residential,Social Care and Health,Severn View Residential,Supplies & Services,"Equipment, Furniture and Materials",Materials & Consumables.,,09/01/2024,17/01/2024,16.6,,REDACTED DATA
Adult Services,Direct Care,Social Care and Health,Monmouthshire Meals,Supplies & Services,"Equipment, Furniture and Materials",Materials & Consumables.,,15/12/2023,17/01/2024,24.99,,Castell Howell Foods Ltd
Adult Services,Day Centres,Social Care and Health,Severn View DC,Supplies & Services,"Equipment, Furniture and Materials",Materials & Consumables.,,09/01/2024,17/01/2024,25.49,,REDACTED DATA
Adult Services,Day Centres,Social Care and Health,Severn View DC,Supplies & Services,"Equipment, Furniture and Materials",Materials & Consumables.,,12/01/2024,17/01/2024,41.61,,REDACTED DATA
Adult Services,Direct Care Residential,Social Care and Health,Severn View Residential,Supplies & Services,"Equipment, Furniture and Materials",Materials & Consumables.,,12/01/2024,17/01/2024,163.07,,REDACTED DATA
Adult Services,Direct Care Residential,Social Care and Health,Severn View Residential,Supplies & Services,"Equipment, Furniture and Materials",Materials & Consumables.,,12/01/2024,17/01/2024,4.9,,REDACTED DATA
Schools Total,School Group 2 � Pupil Capacity 144-314,MCC Schools,Thornwell Primary School,Premises,Cleaning and Domestic Supplies,Toilet Requisites,,15/01/2024,17/01/2024,57.82,,H D Adcock (Nelson) Ltd
"Commercial, Corporate & landlord Services",Property Services & Facilities Management,Resources,Reactive Maintenance,Premises,"Repairs, Alterations & Maintenance of Buildings",Building Improvements / Maintenance,,12/01/2024,19/01/2024,221.76,,Springvale Wproofing Ltd
Schools Total,School Group 2 � Pupil Capacity 144-314,MCC Schools,Dewstow Primary School,Supplies & Services,"Equipment, Furniture and Materials",Equipment Purchases,,31/10/2023,19/01/2024,371,,White Rose Maths
"Facilities, Fleet & Decarbonisation",Transport Department,Communities & Place,Transport,Transport,Direct Transport Costs,All Other Non-Contract Transport Work.,,03/01/2024,24/01/2024,83.09,,R M Hockey & Son Ltd
Schools Total,School Group 2 � Pupil Capacity 144-314,MCC Schools,Shirenewton Primary School,Employees,Direct Employee Expenses,Agency Staff,,11/10/2023,24/01/2024,1390.62,,Teaching 4 Wales Ltd
"Commercial, Corporate & landlord Services",Property Services & Facilities Management,Resources,External Clients,Premises,"Repairs, Alterations & Maintenance of Buildings",Building Improvements / Maintenance,,04/01/2024,17/01/2024,11129.69,,A.J Quinn Building Contractors Ltd
"Commercial, Corporate & landlord Services",Property Services & Facilities Management,Resources,External Clients,Premises,"Repairs, Alterations & Maintenance of Buildings",Building Improvements / Maintenance,,15/01/2024,17/01/2024,225,,Hightech Water Services
"Commercial, Corporate & landlord Services",Property Services & Facilities Management,Resources,Reactive Maintenance,Premises,"Repairs, Alterations & Maintenance of Buildings",Building Improvements / Maintenance,,04/01/2024,17/01/2024,126.62,,A.J Quinn Building Contractors Ltd
Schools Total,School Group 2 � Pupil Capacity 144-314,MCC Schools,Dewstow Primary School,Employees,Direct Employee Expenses,Agency Staff,,13/12/2023,17/01/2024,3730.11,,Teaching Personnel
Schools Total,School Group 2 � Pupil Capacity 144-314,MCC Schools,Dewstow Primary School,Employees,Direct Employee Expenses,Agency Staff,,29/11/2023,17/01/2024,4484.26,,Teaching Personnel
Capital Division,Capital Dept,Capital,Capital Programme,Supplies & Services,"Equipment, Furniture and Materials",Equipment Purchases,,09/01/2024,17/01/2024,2097.33,,REDACTED DATA
"Commercial, Corporate & landlord Services",Property Services & Facilities Management,Resources,Reactive Maintenance,Premises,"Repairs, Alterations & Maintenance of Buildings",Building Improvements / Maintenance,,19/12/2023,17/01/2024,351.34,,EFS Systems (UK) Ltd
Schools Total,School Group 2 � Pupil Capacity 144-314,MCC Schools,Dewstow Primary School,Employees,Direct Employee Expenses,Agency Staff,,20/12/2023,17/01/2024,3981.49,,Teaching Personnel
Schools Total,School Group 2 � Pupil Capacity 144-314,MCC Schools,Dewstow Primary School,Employees,Direct Employee Expenses,Agency Staff,,06/12/2023,17/01/2024,4609.95,,Teaching Personnel
Schools Total,School Group 2 � Pupil Capacity 144-314,MCC Schools,Dewstow Primary School,Employees,Direct Employee Expenses,Agency Staff,,13/12/2023,17/01/2024,646.65,,Suppleo Recruitment Ltd
Schools Total,School Group 2 � Pupil Capacity 144-314,MCC Schools,Dewstow Primary School,Employees,Direct Employee Expenses,Agency Staff,,11/10/2023,17/01/2024,3634.23,,Suppleo Recruitment Ltd
Schools Total,School Group 2 � Pupil Capacity 144-314,MCC Schools,Dewstow Primary School,Employees,Direct Employee Expenses,Agency Staff,,20/12/2023,17/01/2024,646.65,,Suppleo Recruitment Ltd
Capital Division,Capital Dept,Capital,Capital Programme,Supplies & Services,"Equipment, Furniture and Materials",Equipment Purchases,,12/01/2024,17/01/2024,199.97,,REDACTED DATA
"Commercial, Corporate & landlord Services",Property Services & Facilities Management,Resources,External Clients,Premises,"Repairs, Alterations & Maintenance of Buildings",Building Improvements / Maintenance,,19/12/2023,17/01/2024,306.16,,EFS Systems (UK) Ltd
Schools Total,School Group 2 � Pupil Capacity 144-314,MCC Schools,Our Lady & St Michael's (OLSM) RC Primary School (VA),Employees,Direct Employee Expenses,Agency Staff,,18/12/2023,19/01/2024,113.93,,Apollo Teaching Services LTD
Schools Total,School Group 2 � Pupil Capacity 144-314,MCC Schools,Our Lady & St Michael's (OLSM) RC Primary School (VA),Employees,Direct Employee Expenses,Agency Staff,,27/12/2023,19/01/2024,566.75,,Apollo Teaching Services LTD
Neighbourhood Services,Highways,Communities & Place,Street Lighting,Third Party Payments,Third Party,Maintenance Contracts,,14/08/2023,18/01/2024,137.28,,Enerveo Ltd
Neighbourhood Services,Highways,Communities & Place,Street Lighting,Third Party Payments,Third Party,Maintenance Contracts,,14/08/2023,18/01/2024,326.73,,Enerveo Ltd
Neighbourhood Services,Highways,Communities & Place,Street Lighting,Third Party Payments,Third Party,Maintenance Contracts,,14/08/2023,18/01/2024,326.73,,Enerveo Ltd
Neighbourhood Services,Highways,Communities & Place,Street Lighting,Third Party Payments,Third Party,Maintenance Contracts,,14/08/2023,18/01/2024,938.89,,Enerveo Ltd
Neighbourhood Services,Highways,Communities & Place,Street Lighting,Third Party Payments,Third Party,Maintenance Contracts,,14/08/2023,18/01/2024,938.89,,Enerveo Ltd
"Commercial, Corporate & landlord Services",Property Services & Facilities Management,Resources,Reactive Maintenance,Premises,"Repairs, Alterations & Maintenance of Buildings",Building Improvements / Maintenance,,18/01/2024,29/01/2024,99.69,,A.J Quinn Building Contractors Ltd
Schools Total,School Group 1 � Pupil Capacity 1-143,MCC Schools,Ysgol Gymraeg Y Ffin,Supplies & Services,"Equipment, Furniture and Materials",Equipment Purchases,,24/10/2023,29/01/2024,12.8,,Eureka 1st Aid & Safety for Schools
Schools Total,School Group 1 � Pupil Capacity 1-143,MCC Schools,Ysgol Gymraeg Y Ffin,Supplies & Services,"Equipment, Furniture and Materials",Equipment Purchases,,03/11/2023,29/01/2024,12.75,,Eureka 1st Aid & Safety for Schools
Neighbourhood Services,Highways,Communities & Place,Street Lighting,Third Party Payments,Third Party,Maintenance Contracts,,14/08/2023,18/01/2024,938.89,,Enerveo Ltd
Neighbourhood Services,Highways,Communities & Place,Street Lighting,Third Party Payments,Third Party,Maintenance Contracts,,14/08/2023,18/01/2024,938.89,,Enerveo Ltd
Neighbourhood Services,Highways,Communities & Place,Street Lighting,Third Party Payments,Third Party,Maintenance Contracts,,14/08/2023,18/01/2024,326.73,,Enerveo Ltd
Neighbourhood Services,Highways,Communities & Place,Street Lighting,Third Party Payments,Third Party,Maintenance Contracts,,14/08/2023,18/01/2024,326.73,,Enerveo Ltd
Neighbourhood Services,Highways,Communities & Place,Street Lighting,Third Party Payments,Third Party,Maintenance Contracts,,14/08/2023,18/01/2024,326.73,,Enerveo Ltd
Neighbourhood Services,Highways,Communities & Place,Street Lighting,Third Party Payments,Third Party,Maintenance Contracts,,14/08/2023,18/01/2024,326.73,,Enerveo Ltd
Schools Total,School Group 2 � Pupil Capacity 144-314,MCC Schools,Thornwell Primary School,Premises,Cleaning and Domestic Supplies,Toilet Requisites,,15/01/2024,17/01/2024,28.52,,H D Adcock (Nelson) Ltd
Adult Services,Community Care Team,Social Care and Health,Mental Health Care Team,Third Party Payments,Third Party,Residential.,,27/12/2023,05/01/2024,9022.08,,Powys Teaching Health Board
Adult Services,Community Care Team,Social Care and Health,Mental Health Care Team,Third Party Payments,Third Party,Residential.,,18/12/2023,05/01/2024,3587.32,,Ashfield House
Adult Services,Community Care Team,Social Care and Health,Mental Health Care Team,Third Party Payments,Third Party,Residential.,,15/12/2023,05/01/2024,167.31,,Milkwood Care Ltd T/A Ganarew House
Adult Services,ADULT DISABILITY SERVICES,Social Care and Health,Resettlement,Third Party Payments,Third Party,Residential.,,15/12/2023,05/01/2024,9843.8,,Achieve Together Limited
Adult Services,Community Care Team,Social Care and Health,Monmouth Adult Team,Third Party Payments,Third Party,Nursing.,,29/12/2023,05/01/2024,6684.96,,Leonard Cheshire Disability
Adult Services,Community Care Team,Social Care and Health,Chepstow Adult Team,Third Party Payments,Third Party,Nursing.,,31/12/2023,05/01/2024,3516.29,,HEALTHCARE HOMES
Adult Services,Community Care Team,Social Care and Health,Chepstow Adult Team,Third Party Payments,Third Party,Nursing.,,29/12/2023,05/01/2024,8307.04,,Leonard Cheshire Disability
Schools Total,SCHGRP3 � School Group 3 � Pupil Capacity 315-500,MCC Schools,Undy Primary School,Premises,Cleaning and Domestic Supplies,Toilet Requisites,,19/12/2023,17/01/2024,145.2,,Newhall Janitorial Ltd
Schools Total,SCHGRP3 � School Group 3 � Pupil Capacity 315-500,MCC Schools,Undy Primary School,Premises,Cleaning and Domestic Supplies,Toilet Requisites,,19/12/2023,17/01/2024,46.08,,Newhall Janitorial Ltd
Adult Services,Community Care Team,Social Care and Health,Chepstow Adult Team,Third Party Payments,Third Party,Residential.,,08/01/2024,19/01/2024,3220,,REDACTED PERSONAL DATA
Adult Services,Community Care Team,Social Care and Health,Chepstow Adult Team,Third Party Payments,Third Party,Residential.,,08/01/2024,19/01/2024,3220,,REDACTED PERSONAL DATA
Adult Services,Community Care Team,Social Care and Health,Abergavenny Adult Team,Third Party Payments,Third Party,FNC Social Care Nursing Tasks,,10/01/2024,19/01/2024,31.44,,Glaslyn Retirement Home Ltd
Adult Services,Community Care Team,Social Care and Health,Monmouth Adult Team,Third Party Payments,Third Party,Nursing.,,10/01/2024,19/01/2024,3388,,Glaslyn Retirement Home Ltd
Adult Services,Community Care Team,Social Care and Health,Mental Health Care Team,Third Party Payments,Third Party,Residential.,,08/01/2024,19/01/2024,3220,,REDACTED PERSONAL DATA
Adult Services,Community Care Team,Social Care and Health,Abergavenny Adult Team,Third Party Payments,Third Party,Nursing.,,10/01/2024,19/01/2024,3388,,Glaslyn Retirement Home Ltd
"Enterprise, Housing & Community Animation",General Fund Housing,Communities & Place,Monmouthshire Letting Service,Premises,Rents,Rents/Hire Of Premises.,,22/01/2024,24/01/2024,60,,REDACTED PERSONAL DATA
Adult Services,ADULT DISABILITY SERVICES,Social Care and Health,Resettlement,Third Party Payments,Third Party,Residential.,,15/12/2023,05/01/2024,7403.76,,Achieve Together Limited
Adult Services,ADULT DISABILITY SERVICES,Social Care and Health,Resettlement,Third Party Payments,Third Party,Residential.,,04/01/2024,05/01/2024,9704.2,,Voyage
Adult Services,ADULT DISABILITY SERVICES,Social Care and Health,Resettlement,Third Party Payments,Third Party,Residential.,,04/01/2024,05/01/2024,10040.28,,Voyage
Adult Services,ADULT DISABILITY SERVICES,Social Care and Health,CLDT,Third Party Payments,Third Party,Residential.,,15/12/2023,05/01/2024,6401.48,,Achieve Together Limited
Adult Services,ADULT DISABILITY SERVICES,Social Care and Health,CLDT,Third Party Payments,Third Party,Residential.,,15/12/2023,05/01/2024,7072.84,,Achieve Together Limited
Adult Services,ADULT DISABILITY SERVICES,Social Care and Health,CLDT,Third Party Payments,Third Party,Residential.,,15/12/2023,05/01/2024,7072.84,,Achieve Together Limited
Adult Services,ADULT DISABILITY SERVICES,Social Care and Health,CLDT,Third Party Payments,Third Party,Residential.,,04/01/2024,05/01/2024,8738.16,,Voyage
Adult Services,ADULT DISABILITY SERVICES,Social Care and Health,CLDT,Third Party Payments,Third Party,Residential.,,07/12/2023,05/01/2024,5190.04,,Stroud Care Services Ltd
Adult Services,Community Care Team,Social Care and Health,Mental Health Care Team,Third Party Payments,Third Party,Residential.,,27/12/2023,05/01/2024,3584,,ORCHARD HOUSE BARRY
Adult Services,Community Care Team,Social Care and Health,Mental Health Care Team,Third Party Payments,Third Party,Nursing.,,01/01/2024,05/01/2024,4526.44,,Ty Ceirios Nursing Home
Adult Services,Direct Care Residential,Social Care and Health,Severn View Residential,Supplies & Services,"Equipment, Furniture and Materials",Materials & Consumables.,,20/12/2023,29/01/2024,16.72,,Nisbets
Schools Total,School Group 2 � Pupil Capacity 144-314,MCC Schools,Shirenewton Primary School,Premises,Cleaning and Domestic Supplies,Toilet Requisites,,18/01/2024,29/01/2024,304.78,,Newhall Janitorial Ltd
Adult Services,Community Care Team,Social Care and Health,Chepstow Adult Team,Third Party Payments,Third Party,Personal Care.,,22/01/2024,29/01/2024,1960.8,,Lougher Home Care Ltd
Adult Services,Community Care Team,Social Care and Health,Chepstow Adult Team,Third Party Payments,Third Party,Personal Care.,,31/12/2023,11/01/2024,1254.4,,Helping Hands
Adult Services,Community Care Team,Social Care and Health,Chepstow Adult Team,Third Party Payments,Third Party,Personal Care.,,31/12/2023,11/01/2024,1831.2,,Helping Hands
"Facilities, Fleet & Decarbonisation",Transport Department,Communities & Place,Transport,Transport,Contract Hire and Operating Leases,Vehicle Hire Charge,,25/12/2023,11/01/2024,406,,Maben Vehicle Hire
Adult Services,Community Care Team,Social Care and Health,Chepstow Adult Team,Third Party Payments,Third Party,Personal Care.,,31/12/2023,11/01/2024,3420.2,,Helping Hands
Adult Services,Community Care Team,Social Care and Health,Chepstow Adult Team,Third Party Payments,Third Party,Personal Care.,,22/12/2023,03/01/2024,1440,,Community Care Services
Adult Services,Community Care Team,Social Care and Health,Chepstow Adult Team,Third Party Payments,Third Party,Personal Care.,,22/12/2023,03/01/2024,360,,Community Care Services
Adult Services,Community Care Team,Social Care and Health,Chepstow Adult Team,Third Party Payments,Third Party,Personal Care.,,22/12/2023,03/01/2024,2430,,Community Care Services
Schools Total,School Group 2 � Pupil Capacity 144-314,MCC Schools,Osbaston CiW Primary School (VC),Supplies & Services,"Equipment, Furniture and Materials",Materials & Consumables.,,21/11/2023,11/01/2024,129.3,,Pupils Profit
Adult Services,Community Care Team,Social Care and Health,Chepstow Adult Team,Third Party Payments,Third Party,Personal Care.,,22/01/2024,29/01/2024,2462.4,,Lougher Home Care Ltd
Adult Services,Community Care Team,Social Care and Health,Chepstow Adult Team,Third Party Payments,Third Party,Personal Care.,,22/01/2024,29/01/2024,290.7,,Lougher Home Care Ltd
Adult Services,Community Care Team,Social Care and Health,Chepstow Adult Team,Third Party Payments,Third Party,Personal Care.,,22/01/2024,29/01/2024,427.5,,Lougher Home Care Ltd
Adult Services,Community Care Team,Social Care and Health,Chepstow Adult Team,Third Party Payments,Third Party,Personal Care.,,22/01/2024,29/01/2024,2872.8,,Lougher Home Care Ltd
Adult Services,Community Care Team,Social Care and Health,Chepstow Adult Team,Third Party Payments,Third Party,Personal Care.,,22/01/2024,29/01/2024,119.7,,Lougher Home Care Ltd
Adult Services,Community Care Team,Social Care and Health,Chepstow Adult Team,Third Party Payments,Third Party,Personal Care.,,22/01/2024,29/01/2024,3260.4,,Lougher Home Care Ltd
Adult Services,Community Care Team,Social Care and Health,Chepstow Adult Team,Third Party Payments,Third Party,Personal Care.,,22/01/2024,29/01/2024,85.5,,Lougher Home Care Ltd
Adult Services,Community Care Team,Social Care and Health,Chepstow Adult Team,Third Party Payments,Third Party,Personal Care.,,22/01/2024,29/01/2024,342,,Lougher Home Care Ltd
"Facilities, Fleet & Decarbonisation",Transport Department,Communities & Place,Transport,Transport,Contract Hire and Operating Leases,Vehicle Hire Charge,,28/12/2023,11/01/2024,5379.18,,Enterprise Flex-E-Rent
Schools Total,School Group 2 � Pupil Capacity 144-314,MCC Schools,Llanfoist Fawr Primary School,Transport,Contract Hire and Operating Leases,Vehicle Hire Charge,,26/06/2023,11/01/2024,1200,,Varteg Motors Ltd
Adult Services,Community Care Team,Social Care and Health,Chepstow Adult Team,Third Party Payments,Third Party,Personal Care.,,31/12/2023,11/01/2024,134.4,,Helping Hands
Adult Services,Community Care Team,Social Care and Health,Chepstow Adult Team,Third Party Payments,Third Party,Personal Care.,,31/12/2023,11/01/2024,2340.8,,Helping Hands
Adult Services,Community Care Team,Social Care and Health,Chepstow Adult Team,Third Party Payments,Third Party,Personal Care.,,31/12/2023,11/01/2024,1568,,Helping Hands
Adult Services,Community Care Team,Social Care and Health,Chepstow Adult Team,Third Party Payments,Third Party,Personal Care.,,31/12/2023,11/01/2024,1971.2,,Helping Hands
Adult Services,Community Care Team,Social Care and Health,Chepstow Adult Team,Third Party Payments,Third Party,Personal Care.,,31/12/2023,11/01/2024,2021.6,,Helping Hands
Adult Services,Community Care Team,Social Care and Health,Chepstow Adult Team,Third Party Payments,Third Party,Personal Care.,,31/12/2023,11/01/2024,1052.8,,Helping Hands
Adult Services,Community Care Team,Social Care and Health,Chepstow Adult Team,Third Party Payments,Third Party,Personal Care.,,31/12/2023,11/01/2024,470.4,,Helping Hands
Adult Services,Community Care Team,Social Care and Health,Chepstow Adult Team,Third Party Payments,Third Party,Personal Care.,,31/12/2023,11/01/2024,448,,Helping Hands
Schools Total,School Group 7 � Pupil Capacity 501-1800,MCC Schools,Caldicot School,Premises,Cleaning and Domestic Supplies,Premises Pest Control,,18/12/2023,11/01/2024,112,,P&P Pest Control
"Facilities, Fleet & Decarbonisation",Transport Department,Communities & Place,Transport,Transport,Contract Hire and Operating Leases,Vehicle Hire Charge,,30/12/2023,11/01/2024,44110.28,,Days Rental
Adult Services,Community Care Team,Social Care and Health,Chepstow Adult Team,Third Party Payments,Third Party,Personal Care.,,22/01/2024,29/01/2024,1014.6,,Lougher Home Care Ltd
Adult Services,Community Care Team,Social Care and Health,Chepstow Adult Team,Third Party Payments,Third Party,Personal Care.,,22/01/2024,29/01/2024,581.4,,Lougher Home Care Ltd
"Enterprise, Housing & Community Animation",Business Growth & Enterprise,Communities & Place,CSCDS Space4Local Production,Supplies & Services,Services,Professional And Specialist Fees,,05/07/2023,30/01/2024,38749.88,,Aberystwyth University
"Policy, Scrutiny & Customer Service",Community Hubs,Chief Executive's Unit,Community Hub - Chepstow,Supplies & Services,Services,Professional And Specialist Fees,,01/11/2023,11/01/2024,60,,Shield Security
Children Services,Children Services Teams,Social Care and Health,Placement & Support Team,Supplies & Services,Services,Professional And Specialist Fees,,21/12/2023,11/01/2024,1500,,Talkworks Training & Development
Children Services,Children Services Teams,Social Care and Health,Placement & Support Team,Supplies & Services,Services,Professional And Specialist Fees,,21/12/2023,11/01/2024,-1500,,Talkworks Training & Development
Corporate (COL),Corporate (COL),Corporate Costs & Levies,Corporate Management (CM),Income,Customer and Client Receipts,Recoupment,,24/07/2020,12/02/2024,-438.34,,The National Autistic Society
Corporate (COL),Corporate (COL),Corporate Costs & Levies,Corporate Management (CM),Income,Customer and Client Receipts,Recoupment,,24/07/2020,12/02/2024,-436.79,,The National Autistic Society
Corporate (COL),Corporate (COL),Corporate Costs & Levies,Corporate Management (CM),Income,Customer and Client Receipts,Recoupment,,24/07/2020,12/02/2024,-436.79,,The National Autistic Society
Corporate (COL),Corporate (COL),Corporate Costs & Levies,Corporate Management (CM),Income,Customer and Client Receipts,Recoupment,,24/07/2020,12/02/2024,-438.34,,The National Autistic Society
Corporate (COL),Corporate (COL),Corporate Costs & Levies,Corporate Management (CM),Income,Customer and Client Receipts,Recoupment,,24/07/2020,12/02/2024,-436.79,,The National Autistic Society
Corporate (COL),Corporate (COL),Corporate Costs & Levies,Corporate Management (CM),Income,Customer and Client Receipts,Recoupment,,24/07/2020,12/02/2024,-436.79,,The National Autistic Society
Corporate (COL),Corporate (COL),Corporate Costs & Levies,Corporate Management (CM),Income,Customer and Client Receipts,Recoupment,,25/09/2020,12/02/2024,-438.34,,The National Autistic Society
Corporate (COL),Corporate (COL),Corporate Costs & Levies,Corporate Management (CM),Income,Customer and Client Receipts,Recoupment,,25/09/2020,12/02/2024,-436.79,,The National Autistic Society
Corporate (COL),Corporate (COL),Corporate Costs & Levies,Corporate Management (CM),Income,Customer and Client Receipts,Recoupment,,29/05/2020,12/02/2024,-189.22,,The National Autistic Society
"Commercial, Corporate & landlord Services",Property Services & Facilities Management,Resources,Facilities,Supplies & Services,"Equipment, Furniture and Materials",Equipment Purchases,,08/12/2023,03/01/2024,350,,J Franklin And Sons
Corporate (COL),Corporate (COL),Corporate Costs & Levies,Corporate Management (CM),Income,Customer and Client Receipts,Recoupment,,24/06/2020,09/02/2024,-1321.82,,The National Star College
Corporate (COL),Corporate (COL),Corporate Costs & Levies,Corporate Management (CM),Income,Customer and Client Receipts,Recoupment,,31/07/2020,30/01/2024,-663,,Industrial Door Services
"Enterprise, Housing & Community Animation",Community & Partnerships Development,Communities & Place,Period Dignity in Schools and Communities Grant,Supplies & Services,"Equipment, Furniture and Materials",Equipment Purchases,,19/12/2023,03/01/2024,1710,,TOTM
"Enterprise, Housing & Community Animation",Community & Partnerships Development,Communities & Place,Period Dignity in Schools and Communities Grant,Supplies & Services,"Equipment, Furniture and Materials",Equipment Purchases,,19/12/2023,03/01/2024,2950,,TOTM
"Enterprise, Housing & Community Animation",Community & Partnerships Development,Communities & Place,Period Dignity in Schools and Communities Grant,Supplies & Services,"Equipment, Furniture and Materials",Equipment Purchases,,19/12/2023,03/01/2024,2340,,TOTM
"Enterprise, Housing & Community Animation",Community & Partnerships Development,Communities & Place,Period Dignity in Schools and Communities Grant,Supplies & Services,"Equipment, Furniture and Materials",Equipment Purchases,,19/12/2023,03/01/2024,2430,,TOTM
Corporate (COL),Corporate (COL),Corporate Costs & Levies,Corporate Management (CM),Income,Customer and Client Receipts,Recoupment,,28/08/2020,12/02/2024,-424.2,,The National Autistic Society
Corporate (COL),Corporate (COL),Corporate Costs & Levies,Corporate Management (CM),Income,Customer and Client Receipts,Recoupment,,28/08/2020,12/02/2024,-422.7,,The National Autistic Society
Corporate (COL),Corporate (COL),Corporate Costs & Levies,Corporate Management (CM),Income,Customer and Client Receipts,Recoupment,,28/08/2020,12/02/2024,-422.7,,The National Autistic Society
"Enterprise, Housing & Community Animation",Business Growth & Enterprise,Communities & Place,Sustainable Food Development,Supplies & Services,Services,Professional And Specialist Fees,,26/01/2024,29/01/2024,200,,Llanvetherine Court Farm Partnerhsip
Children Services,Children Services Teams,Social Care and Health,Long Term Support Team,Supplies & Services,Services,Professional And Specialist Fees,,05/01/2024,11/01/2024,749,,DNA Legal
Schools Total,School Group 7 � Pupil Capacity 501-1800,MCC Schools,King Henry VIII Comprehensive,Supplies & Services,"Equipment, Furniture and Materials",Health & Safety Equipment.,,19/12/2023,22/01/2024,37.4,,Amazon Payments UK Limited
Schools Total,School Group 1 � Pupil Capacity 1-143,MCC Schools,Llanvihangel Crucorney Primary School,Supplies & Services,Services,Professional And Specialist Fees,,18/01/2024,22/01/2024,12.14,,SRS Public
Schools Total,School Group 1 � Pupil Capacity 1-143,MCC Schools,Llanvihangel Crucorney Primary School,Supplies & Services,Services,Professional And Specialist Fees,,18/01/2024,22/01/2024,80.94,,SRS Public
Schools Total,School Group 2 � Pupil Capacity 144-314,MCC Schools,Gilwern Primary School,Employees,Indirect Employee Expenses,Health & Safety,,27/11/2023,31/01/2024,41,,Sportfix of Wales
Standards,Early Years,Children & Young People,Early Years Transformation Grant,Supplies & Services,"Equipment, Furniture and Materials",Equipment Purchases,,24/01/2024,31/01/2024,1350,,Family Links
Schools Total,School Group 2 � Pupil Capacity 144-314,MCC Schools,Ysgol Gymraeg Y Fenni,Supplies & Services,"Equipment, Furniture and Materials",Rental / Hire,,25/01/2024,31/01/2024,150,,Pyramid Hygiene Ltd
Adult Services,Community Care Team,Social Care and Health,Abergavenny Adult Team,Third Party Payments,Third Party,Personal Care.,,05/01/2024,18/01/2024,3440.08,,Q Care Ltd
"Facilities, Fleet & Decarbonisation",Transport Department,Communities & Place,Transport,Transport,Direct Transport Costs,Diesel,,09/01/2024,24/01/2024,3482.7,,Estuary Oils
Adult Services,Community Care Team,Social Care and Health,Abergavenny Adult Team,Third Party Payments,Third Party,Personal Care.,,17/01/2024,24/01/2024,593.6,,My Care My Home Ltd
"Facilities, Fleet & Decarbonisation",Transport Department,Communities & Place,Transport,Transport,Direct Transport Costs,Diesel,,09/01/2024,24/01/2024,8126.3,,Estuary Oils
Capital Division,Capital Dept,Capital,Capital Programme,Supplies & Services,Communications and Computing,Postages,,09/01/2024,17/01/2024,30,,Ottimo Digital Ltd
Capital Division,Capital Dept,Capital,Capital Programme,Supplies & Services,"Equipment, Furniture and Materials",Display Materials,,09/01/2024,17/01/2024,240,,Ottimo Digital Ltd
Adult Services,Direct Care Residential,Social Care and Health,Severn View Residential,Supplies & Services,Communications and Computing,Postages,,09/01/2024,17/01/2024,11.54,,REDACTED DATA
Adult Services,Community Care Team,Social Care and Health,Abergavenny Adult Team,Third Party Payments,Third Party,Personal Care.,,01/01/2024,22/01/2024,3338.4,,Castle Care Supported Living
Adult Services,Community Care Team,Social Care and Health,Abergavenny Adult Team,Third Party Payments,Third Party,Personal Care.,,01/01/2024,22/01/2024,3338.4,,Castle Care Supported Living
Adult Services,Community Care Team,Social Care and Health,Abergavenny Adult Team,Third Party Payments,Third Party,Personal Care.,,05/01/2024,22/01/2024,1299.29,,Radis Community Care
Adult Services,Community Care Team,Social Care and Health,Abergavenny Adult Team,Third Party Payments,Third Party,Personal Care.,,05/01/2024,22/01/2024,1132.99,,Radis Community Care
Adult Services,Community Care Team,Social Care and Health,Abergavenny Adult Team,Third Party Payments,Third Party,Personal Care.,,05/01/2024,22/01/2024,1202.2,,Radis Community Care
Adult Services,Community Care Team,Social Care and Health,Abergavenny Adult Team,Third Party Payments,Third Party,Personal Care.,,05/01/2024,22/01/2024,2385.76,,Radis Community Care
Adult Services,Community Care Team,Social Care and Health,Abergavenny Adult Team,Third Party Payments,Third Party,Personal Care.,,01/01/2024,22/01/2024,2722.08,,Castle Care Supported Living
Adult Services,Community Care Team,Social Care and Health,Abergavenny Adult Team,Third Party Payments,Third Party,Personal Care.,,23/01/2024,23/01/2024,19.8,,REDACTED PERSONAL DATA
Schools Total,School Group 7 � Pupil Capacity 501-1800,MCC Schools,King Henry 3-19 School,Supplies & Services,Communications and Computing,Postages,,22/01/2024,29/01/2024,305,,Kane Mailing Systems Ltd
Adult Services,Community Care Team,Social Care and Health,Monmouth Adult Team,Third Party Payments,Third Party,Personal Care.,,02/01/2024,15/01/2024,662.97,,JSJ Supported Living Ltd
Adult Services,Community Care Team,Social Care and Health,Abergavenny Adult Team,Third Party Payments,Third Party,Personal Care.,,05/01/2024,22/01/2024,499.5,,Radis Community Care
Adult Services,Community Care Team,Social Care and Health,Abergavenny Adult Team,Third Party Payments,Third Party,Personal Care.,,23/01/2024,23/01/2024,65.4,,REDACTED PERSONAL DATA
Adult Services,Community Care Team,Social Care and Health,Abergavenny Adult Team,Third Party Payments,Third Party,Personal Care.,,23/01/2024,23/01/2024,43.6,,REDACTED PERSONAL DATA
Adult Services,Community Care Team,Social Care and Health,Abergavenny Adult Team,Third Party Payments,Third Party,Personal Care.,,23/01/2024,23/01/2024,19.8,,REDACTED PERSONAL DATA
Adult Services,Community Care Team,Social Care and Health,Monmouth Adult Team,Third Party Payments,Third Party,Personal Care.,,#N/A,#N/A,-1105.76,,Down To Earth Agronomy Limited
Adult Services,Community Care Team,Social Care and Health,Monmouth Adult Team,Third Party Payments,Third Party,Personal Care.,,17/01/2024,24/01/2024,1144.8,,My Care My Home Ltd
Adult Services,Community Care Team,Social Care and Health,Monmouth Adult Team,Third Party Payments,Third Party,Personal Care.,,17/01/2024,24/01/2024,211.92,,My Care My Home Ltd
Adult Services,Community Care Team,Social Care and Health,Abergavenny Adult Team,Third Party Payments,Third Party,Personal Care.,,17/01/2024,24/01/2024,895.7,,My Care My Home Ltd
Schools Total,School Group 7 � Pupil Capacity 501-1800,MCC Schools,King Henry 3-19 School,Supplies & Services,"Equipment, Furniture and Materials",Advertising,,14/12/2023,16/01/2024,2295,,Colorfoto Ltd
Schools Total,School Group 7 � Pupil Capacity 501-1800,MCC Schools,King Henry 3-19 School,Supplies & Services,"Equipment, Furniture and Materials",Advertising,,14/12/2023,16/01/2024,15,,Colorfoto Ltd
Adult Services,Community Care Team,Social Care and Health,Monmouth Adult Team,Third Party Payments,Third Party,Personal Care.,,17/01/2024,29/01/2024,18300,,Gibraltar Care Village Limited t/a PSP Healthcare Limited
Children Services,Children Services Teams,Social Care and Health,Youth Offending Team,Supplies & Services,Communications and Computing,Postages,,11/01/2024,16/01/2024,123.04,,Quadient UK Ltd
Adult Services,Community Care Team,Social Care and Health,Monmouth Adult Team,Third Party Payments,Third Party,Personal Care.,,17/01/2024,24/01/2024,1399.16,,My Care My Home Ltd
Neighbourhood Services,Highways,Communities & Place,Overhead - Mon Highways,Supplies & Services,Services,Sub-Contractors Fees,,30/11/2023,15/01/2024,182.7,,G D Environmental Services Ltd
Neighbourhood Services,Highways,Communities & Place,Overhead - Mon Highways,Supplies & Services,Services,Sub-Contractors Fees,,30/11/2023,15/01/2024,123.2,,G D Environmental Services Ltd
Neighbourhood Services,Highways,Communities & Place,Overhead - Mon Highways,Supplies & Services,Services,Sub-Contractors Fees,,30/11/2023,15/01/2024,172.2,,G D Environmental Services Ltd
Neighbourhood Services,Highways,Communities & Place,Overhead - Mon Highways,Supplies & Services,Services,Sub-Contractors Fees,,30/11/2023,15/01/2024,85.4,,G D Environmental Services Ltd
Neighbourhood Services,Highways,Communities & Place,Overhead - Mon Highways,Supplies & Services,Services,Sub-Contractors Fees,,30/11/2023,15/01/2024,128.8,,G D Environmental Services Ltd
Children Services,Children Services Other,Social Care and Health,Unaccompanied Asylum Seeking Children,Supplies & Services,Services,Professional And Specialist Fees,,28/12/2023,29/01/2024,63,,Prospero Health and Social Care
Children Services,Children Services Teams,Social Care and Health,Disabled Children,Supplies & Services,Services,Sub-Contractors Fees,,12/01/2024,15/01/2024,413.33,,Orbis Education and Care
Schools Total,School Group 7 � Pupil Capacity 501-1800,MCC Schools,Chepstow School,Supplies & Services,"Clothes, Uniform and Laundry",Clothing And Uniforms,,21/01/2024,30/01/2024,9.96,,Amazon Payments UK Limited
Children Services,Children Services Teams,Social Care and Health,Family Support and Protection Team � North,Supplies & Services,Services,Professional And Specialist Fees,,23/01/2024,30/01/2024,994,,DNA Legal
"Enterprise, Housing & Community Animation",Business Growth & Enterprise,Communities & Place,CELT Shared Prosperity Fund - Adult,Supplies & Services,Services,Assistance To Clients,,14/12/2023,09/01/2024,400,,Dovetail Counselling
Neighbourhood Services,Highways,Communities & Place,Overhead - Mon Highways,Supplies & Services,Services,Sub-Contractors Fees,,31/12/2023,24/01/2024,4290.67,,G D Environmental Services Ltd
Neighbourhood Services,Highways,Communities & Place,Overhead - Mon Highways,Supplies & Services,Services,Sub-Contractors Fees,,31/12/2023,24/01/2024,136.4,,G D Environmental Services Ltd
Neighbourhood Services,Highways,Communities & Place,Overhead - Mon Highways,Supplies & Services,Services,Sub-Contractors Fees,,31/12/2023,24/01/2024,110,,G D Environmental Services Ltd
Neighbourhood Services,Highways,Communities & Place,Overhead - Mon Highways,Supplies & Services,Services,Sub-Contractors Fees,,31/12/2023,24/01/2024,110,,G D Environmental Services Ltd
Neighbourhood Services,Highways,Communities & Place,Overhead - Mon Highways,Supplies & Services,Services,Sub-Contractors Fees,,31/12/2023,24/01/2024,145.2,,G D Environmental Services Ltd
Schools Total,School Group 2 � Pupil Capacity 144-314,MCC Schools,Llanfoist Fawr Primary School,Premises,Fixtures and Fittings,Alarm Systems,,18/01/2024,29/01/2024,70,,Chubb Electronic Security Ltd
Children Services,Children Services Teams,Social Care and Health,Family Support and Protection Team � North,Supplies & Services,Services,Professional And Specialist Fees,,16/01/2024,23/01/2024,2719,,Cheka Safeguarding Services Limited
Neighbourhood Services,Highways,Communities & Place,Overhead - Mon Highways,Supplies & Services,Services,Training Charges,,17/01/2024,23/01/2024,1065,,Heads Of The Valley Training Con
Neighbourhood Services,Highways,Communities & Place,Overhead - Mon Highways,Supplies & Services,Services,Training Charges,,17/01/2024,23/01/2024,-115,,Heads Of The Valley Training Con
Neighbourhood Services,Highways,Communities & Place,Overhead - Mon Highways,Supplies & Services,Services,Training Charges,,17/01/2024,23/01/2024,115,,Heads Of The Valley Training Con
"Leisure, Youth & Outdoor Adventure",Youth & Education,MonLife Directorate,Gilwern,Supplies & Services,"Equipment, Furniture and Materials",Repairs & Maintenance.,,04/11/2023,03/01/2024,240,,High Time Techanical Consultants Ltd.
"Leisure, Youth & Outdoor Adventure",Youth & Education,MonLife Directorate,Gilwern,Supplies & Services,"Equipment, Furniture and Materials",Repairs & Maintenance.,,04/11/2023,03/01/2024,75,,High Time Techanical Consultants Ltd.
"Leisure, Youth & Outdoor Adventure",Youth & Education,MonLife Directorate,Gilwern,Supplies & Services,"Equipment, Furniture and Materials",Repairs & Maintenance.,,04/11/2023,03/01/2024,68.5,,High Time Techanical Consultants Ltd.
"Leisure, Youth & Outdoor Adventure",Youth & Education,MonLife Directorate,Gilwern,Supplies & Services,"Equipment, Furniture and Materials",Repairs & Maintenance.,,07/12/2023,03/01/2024,1018.99,,The South Wales Bicycle Company Ltd
Children Services,Children Services Other,Social Care and Health,Face to Face Counselling,Supplies & Services,Services,Professional And Specialist Fees,,20/12/2023,03/01/2024,200,,REDACTED PERSONAL DATA
Children Services,Children Services Other,Social Care and Health,Face to Face Counselling,Supplies & Services,Services,Professional And Specialist Fees,,22/12/2023,03/01/2024,75,,REDACTED PERSONAL DATA
Children Services,Children Services Other,Social Care and Health,Counsel Costs,Supplies & Services,Services,Professional And Specialist Fees,,22/12/2023,03/01/2024,99.75,,Atkinson Lewis Limited
Adult Services,Direct Care,Social Care and Health,Care at Home,Supplies & Services,Services,Training Charges,,13/12/2023,03/01/2024,120,,REDACTED PERSONAL DATA
Adult Services,Direct Care,Social Care and Health,Care at Home,Supplies & Services,Services,Training Charges,,09/12/2023,03/01/2024,304,,REDACTED PERSONAL DATA
"Enterprise, Housing & Community Animation",Business Growth & Enterprise,Communities & Place,CELT Shared Prosperity Fund - Adult,Supplies & Services,Services,Assistance To Clients,,29/12/2023,09/01/2024,1200,,Mind Matters Monmouth Limited
"Facilities, Fleet & Decarbonisation",Home to School Transport Dept,Communities & Place,Home To School Transport,Supplies & Services,"Clothes, Uniform and Laundry",Clothing And Uniforms,,23/01/2024,24/01/2024,80,,Kudos Compamies Ltd
"Commercial, Corporate & landlord Services",Asset Management,Resources,MCC Markets,Supplies & Services,Services,Sub-Contractors Fees,,25/01/2024,29/01/2024,125,,Green Room Power Ltd
Children Services,Children Services Other,Social Care and Health,Face to Face Counselling,Supplies & Services,Services,Professional And Specialist Fees,,17/11/2023,11/01/2024,75,,REDACTED PERSONAL DATA
Neighbourhood Services,Waste and Street Services,Communities & Place,Refuse & Cleansing Operations,Supplies & Services,Services,Training Charges,,04/01/2024,09/01/2024,800,,Heads Of The Valley Training Con
"Enterprise, Housing & Community Animation",General Fund Housing,Communities & Place,Homelessness,Supplies & Services,Services,Homelessness Bed & Breakfast Accomodation,,01/01/2024,04/01/2024,291.69,,Raglan Lodge
"Enterprise, Housing & Community Animation",General Fund Housing,Communities & Place,Homelessness,Supplies & Services,Services,Homelessness Bed & Breakfast Accomodation,,01/01/2024,04/01/2024,291.69,,Raglan Lodge
"Enterprise, Housing & Community Animation",General Fund Housing,Communities & Place,Homelessness,Supplies & Services,Services,Homelessness Bed & Breakfast Accomodation,,01/01/2024,04/01/2024,291.69,,Raglan Lodge
"Enterprise, Housing & Community Animation",General Fund Housing,Communities & Place,Homelessness,Supplies & Services,Services,Homelessness Bed & Breakfast Accomodation,,01/01/2024,04/01/2024,291.69,,Raglan Lodge
"Enterprise, Housing & Community Animation",General Fund Housing,Communities & Place,Homelessness,Supplies & Services,Services,Homelessness Bed & Breakfast Accomodation,,01/01/2024,04/01/2024,291.69,,Raglan Lodge
"Enterprise, Housing & Community Animation",General Fund Housing,Communities & Place,Homelessness,Supplies & Services,Services,Homelessness Bed & Breakfast Accomodation,,01/01/2024,04/01/2024,291.69,,Raglan Lodge
"Enterprise, Housing & Community Animation",General Fund Housing,Communities & Place,Homelessness,Supplies & Services,Services,Homelessness Bed & Breakfast Accomodation,,01/01/2024,04/01/2024,291.69,,Raglan Lodge
Adult Services,Direct Care Residential,Social Care and Health,Severn View Residential,Employees,Direct Employee Expenses,Agency Staff,,27/12/2023,02/01/2024,263.2,,Support Ethics Ltd
"Enterprise, Housing & Community Animation",General Fund Housing,Communities & Place,Homelessness,Supplies & Services,Services,Homelessness Bed & Breakfast Accomodation,,16/01/2024,25/01/2024,-224,,The Mayhill Hotel
"Enterprise, Housing & Community Animation",General Fund Housing,Communities & Place,Homelessness,Supplies & Services,Services,Homelessness Bed & Breakfast Accomodation,,16/01/2024,25/01/2024,224,,The Mayhill Hotel
"Enterprise, Housing & Community Animation",General Fund Housing,Communities & Place,Homelessness,Supplies & Services,Services,Homelessness Bed & Breakfast Accomodation,,16/01/2024,25/01/2024,1120,,The Mayhill Hotel
"Enterprise, Housing & Community Animation",General Fund Housing,Communities & Place,Homelessness,Supplies & Services,Services,Homelessness Bed & Breakfast Accomodation,,16/01/2024,25/01/2024,-224,,The Mayhill Hotel
"Enterprise, Housing & Community Animation",General Fund Housing,Communities & Place,Homelessness,Supplies & Services,Services,Homelessness Bed & Breakfast Accomodation,,16/01/2024,25/01/2024,224,,The Mayhill Hotel
"Enterprise, Housing & Community Animation",General Fund Housing,Communities & Place,Homelessness,Supplies & Services,Services,Homelessness Bed & Breakfast Accomodation,,22/01/2024,25/01/2024,291.69,,Raglan Lodge
Children Services,Children Services Teams,Social Care and Health,Family Support and Protection Team � North,Employees,Direct Employee Expenses,Agency Staff,,22/01/2024,25/01/2024,58.4,,Leaders In Care
Children Services,Children Services Teams,Social Care and Health,Family Support and Protection Team � North,Employees,Direct Employee Expenses,Agency Staff,,22/01/2024,25/01/2024,1591,,Leaders In Care
"Enterprise, Housing & Community Animation",General Fund Housing,Communities & Place,Homelessness,Supplies & Services,Services,Homelessness Bed & Breakfast Accomodation,,22/01/2024,25/01/2024,291.69,,Raglan Lodge
Schools Total,School Group 2 � Pupil Capacity 144-314,MCC Schools,Archbishop Rowan Williams CiW Primary School (VA),Supplies & Services,Grants and Subscriptions,Subscriptions,,20/12/2023,25/01/2024,664.4,,Fronting the Challenge Project
"Enterprise, Housing & Community Animation",General Fund Housing,Communities & Place,Homelessness,Supplies & Services,Services,Homelessness Bed & Breakfast Accomodation,,18/01/2024,25/01/2024,693,,The Park Hotel
"Enterprise, Housing & Community Animation",General Fund Housing,Communities & Place,Homelessness,Supplies & Services,Services,Homelessness Bed & Breakfast Accomodation,,23/01/2024,25/01/2024,1400,,The Mayhill Hotel
"Enterprise, Housing & Community Animation",General Fund Housing,Communities & Place,Homelessness,Supplies & Services,Services,Homelessness Bed & Breakfast Accomodation,,23/01/2024,25/01/2024,1400,,The Mayhill Hotel
"Enterprise, Housing & Community Animation",General Fund Housing,Communities & Place,Homelessness,Supplies & Services,Services,Homelessness Bed & Breakfast Accomodation,,23/01/2024,25/01/2024,1120,,The Mayhill Hotel
"Enterprise, Housing & Community Animation",General Fund Housing,Communities & Place,Homelessness,Supplies & Services,Services,Homelessness Bed & Breakfast Accomodation,,23/01/2024,25/01/2024,-224,,The Mayhill Hotel
"Enterprise, Housing & Community Animation",General Fund Housing,Communities & Place,Homelessness,Supplies & Services,Services,Homelessness Bed & Breakfast Accomodation,,23/01/2024,25/01/2024,224,,The Mayhill Hotel
"Enterprise, Housing & Community Animation",General Fund Housing,Communities & Place,Homelessness,Supplies & Services,Services,Homelessness Bed & Breakfast Accomodation,,23/01/2024,25/01/2024,1120,,The Mayhill Hotel
"Enterprise, Housing & Community Animation",General Fund Housing,Communities & Place,Homelessness,Supplies & Services,Services,Homelessness Bed & Breakfast Accomodation,,23/01/2024,25/01/2024,-224,,The Mayhill Hotel
"Enterprise, Housing & Community Animation",General Fund Housing,Communities & Place,Homelessness,Supplies & Services,Services,Homelessness Bed & Breakfast Accomodation,,23/01/2024,25/01/2024,224,,The Mayhill Hotel
Children Services,Children Services Teams,Social Care and Health,Family Support and Protection Team � North,Employees,Direct Employee Expenses,Agency Staff,,24/01/2024,25/01/2024,1465.28,,Leaders In Care
"Commercial, Corporate & landlord Services",Property Services & Facilities Management,Resources,Gwent Police Collaboration,Premises,"Repairs, Alterations & Maintenance of Buildings",Building Improvements / Maintenance,,12/12/2023,25/01/2024,4.14,,Fire Safety Direct
"Commercial, Corporate & landlord Services",Property Services & Facilities Management,Resources,Gwent Police Collaboration,Premises,"Repairs, Alterations & Maintenance of Buildings",Building Improvements / Maintenance,,11/12/2023,25/01/2024,69.38,,Fire Safety Direct
"Commercial, Corporate & landlord Services",Property Services & Facilities Management,Resources,Gwent Police Collaboration,Premises,"Repairs, Alterations & Maintenance of Buildings",Building Improvements / Maintenance,,11/12/2023,25/01/2024,64.5,,Fire Safety Direct
"Commercial, Corporate & landlord Services",Property Services & Facilities Management,Resources,Gwent Police Collaboration,Premises,"Repairs, Alterations & Maintenance of Buildings",Building Improvements / Maintenance,,08/12/2023,25/01/2024,400.2,,Fire Safety Direct
Schools Total,School Group 7 � Pupil Capacity 501-1800,MCC Schools,King Henry 3-19 School,Employees,Indirect Employee Expenses,Replacement,,21/12/2023,16/01/2024,280.02,,Prospero Teaching
Schools Total,School Group 7 � Pupil Capacity 501-1800,MCC Schools,King Henry 3-19 School,Employees,Indirect Employee Expenses,Replacement,,22/11/2023,22/11/2023,129.33,,Suppleo Recruitment Ltd
"Commercial, Corporate & landlord Services",Property Services & Facilities Management,Resources,Gwent Police Collaboration,Premises,"Repairs, Alterations & Maintenance of Buildings",Building Improvements / Maintenance,,05/01/2024,17/01/2024,816.33,,Constellia Public Limited
Adult Services,Community Care Team,Social Care and Health,Chepstow Adult Team,Third Party Payments,Third Party,Personal Care.,,22/01/2024,29/01/2024,239.4,,Lougher Home Care Ltd
Adult Services,Community Care Team,Social Care and Health,Chepstow Adult Team,Third Party Payments,Third Party,Personal Care.,,22/01/2024,29/01/2024,4149.6,,Lougher Home Care Ltd
Schools Total,School Group 2 � Pupil Capacity 144-314,MCC Schools,Cantref Primary School,Supplies & Services,"Equipment, Furniture and Materials",Materials & Consumables.,,25/01/2024,29/01/2024,3.06,,Hope Education Ltd
Adult Services,Community Care Team,Social Care and Health,Chepstow Adult Team,Third Party Payments,Third Party,Personal Care.,,22/01/2024,29/01/2024,4468.8,,Lougher Home Care Ltd
Adult Services,Community Care Team,Social Care and Health,Chepstow Adult Team,Third Party Payments,Third Party,Personal Care.,,22/01/2024,29/01/2024,410.4,,Lougher Home Care Ltd
Schools Total,SCHGRP3 � School Group 3 � Pupil Capacity 315-500,MCC Schools,The Dell Primary School,Supplies & Services,"Equipment, Furniture and Materials",Materials & Consumables.,,18/12/2023,18/01/2024,16.54,,Amazon Payments UK Limited
Schools Total,SCHGRP3 � School Group 3 � Pupil Capacity 315-500,MCC Schools,The Dell Primary School,Supplies & Services,"Equipment, Furniture and Materials",Materials & Consumables.,,19/12/2023,18/01/2024,9.23,,Amazon Payments UK Limited
Schools Total,SCHGRP3 � School Group 3 � Pupil Capacity 315-500,MCC Schools,The Dell Primary School,Supplies & Services,"Equipment, Furniture and Materials",Materials & Consumables.,,19/12/2023,18/01/2024,99.85,,Amazon Payments UK Limited
Schools Total,SCHGRP3 � School Group 3 � Pupil Capacity 315-500,MCC Schools,The Dell Primary School,Supplies & Services,"Equipment, Furniture and Materials",Materials & Consumables.,,19/12/2023,18/01/2024,90.54,,Amazon Payments UK Limited
Schools Total,SCHGRP3 � School Group 3 � Pupil Capacity 315-500,MCC Schools,The Dell Primary School,Supplies & Services,"Equipment, Furniture and Materials",Materials & Consumables.,,19/12/2023,18/01/2024,12.98,,Amazon Payments UK Limited
Schools Total,SCHGRP3 � School Group 3 � Pupil Capacity 315-500,MCC Schools,The Dell Primary School,Supplies & Services,"Equipment, Furniture and Materials",Materials & Consumables.,,18/12/2023,18/01/2024,19.78,,Amazon Payments UK Limited
Schools Total,School Group 2 � Pupil Capacity 144-314,MCC Schools,St Mary�s RC Primary School (VA),Supplies & Services,"Equipment, Furniture and Materials",Materials & Consumables.,,17/01/2024,31/01/2024,119.9,,Sportsafe UK Ltd
Adult Services,Community Care Team,Social Care and Health,Chepstow Adult Team,Third Party Payments,Third Party,Personal Care.,,17/01/2024,19/01/2024,2528,,Abicare Services Ltd
Adult Services,Community Care Team,Social Care and Health,Chepstow Adult Team,Third Party Payments,Third Party,Personal Care.,,05/01/2024,19/01/2024,1658.02,,Abicare Services Ltd
Adult Services,Community Care Team,Social Care and Health,Chepstow Adult Team,Third Party Payments,Third Party,Personal Care.,,22/01/2024,29/01/2024,4115.4,,Lougher Home Care Ltd
Adult Services,Community Care Team,Social Care and Health,Chepstow Adult Team,Third Party Payments,Third Party,Personal Care.,,22/01/2024,29/01/2024,2097.6,,Lougher Home Care Ltd
Schools Total,School Group 2 � Pupil Capacity 144-314,MCC Schools,Thornwell Primary School,Supplies & Services,"Equipment, Furniture and Materials",Materials & Consumables.,,12/01/2024,25/01/2024,248,,Westfield4Schools
Schools Total,School Group 2 � Pupil Capacity 144-314,MCC Schools,Thornwell Primary School,Supplies & Services,"Equipment, Furniture and Materials",Materials & Consumables.,,12/01/2024,25/01/2024,82.5,,Westfield4Schools
Schools Total,School Group 2 � Pupil Capacity 144-314,MCC Schools,Thornwell Primary School,Supplies & Services,"Equipment, Furniture and Materials",Materials & Consumables.,,12/01/2024,25/01/2024,66.3,,Westfield4Schools
Adult Services,Community Care Team,Social Care and Health,Chepstow Adult Team,Third Party Payments,Third Party,Personal Care.,,05/01/2024,22/01/2024,633.49,,Radis Community Care
Adult Services,Community Care Team,Social Care and Health,Chepstow Adult Team,Third Party Payments,Third Party,Personal Care.,,05/01/2024,22/01/2024,138.7,,Radis Community Care
"Facilities, Fleet & Decarbonisation",Transport Department,Communities & Place,Transport,Transport,Contract Hire and Operating Leases,Vehicle Hire Charge,,31/12/2023,11/01/2024,3987,,Endurance Vehicle Solutions
"Facilities, Fleet & Decarbonisation",Transport Department,Communities & Place,Transport,Transport,Contract Hire and Operating Leases,Vehicle Hire Charge,,31/12/2023,11/01/2024,5546.67,,Endurance Vehicle Solutions
Adult Services,Community Care Team,Social Care and Health,Chepstow Adult Team,Third Party Payments,Third Party,Personal Care.,,31/12/2023,11/01/2024,1192.8,,Helping Hands
Adult Services,Community Care Team,Social Care and Health,Chepstow Adult Team,Third Party Payments,Third Party,Personal Care.,,31/12/2023,11/01/2024,1209.6,,Helping Hands
Schools Total,School Group 2 � Pupil Capacity 144-314,MCC Schools,Thornwell Primary School,Supplies & Services,"Equipment, Furniture and Materials",Materials & Consumables.,,05/12/2023,10/01/2024,14.12,,Amazon Payments UK Limited
"Facilities, Fleet & Decarbonisation",Transport Department,Communities & Place,Transport,Transport,Contract Hire and Operating Leases,Vehicle Hire Charge,,21/12/2023,11/01/2024,3570,,L C Vehicle Hire
"Facilities, Fleet & Decarbonisation",Transport Department,Communities & Place,Transport,Transport,Contract Hire and Operating Leases,Vehicle Hire Charge,,31/12/2023,11/01/2024,38639.34,,Endurance Vehicle Solutions
Schools Total,SCHGRP3 � School Group 3 � Pupil Capacity 315-500,MCC Schools,The Dell Primary School,Supplies & Services,"Equipment, Furniture and Materials",Materials & Consumables.,,14/12/2023,18/01/2024,14.98,,Amazon Payments UK Limited
Schools Total,SCHGRP3 � School Group 3 � Pupil Capacity 315-500,MCC Schools,The Dell Primary School,Supplies & Services,"Equipment, Furniture and Materials",Materials & Consumables.,,05/12/2023,18/01/2024,9.3,,Amazon Payments UK Limited
Schools Total,SCHGRP3 � School Group 3 � Pupil Capacity 315-500,MCC Schools,The Dell Primary School,Supplies & Services,"Equipment, Furniture and Materials",Materials & Consumables.,,18/12/2023,18/01/2024,19.98,,Amazon Payments UK Limited
"Commercial, Corporate & landlord Services",Property Services & Facilities Management,Resources,Gwent Police Collaboration,Premises,"Repairs, Alterations & Maintenance of Buildings",Building Improvements / Maintenance,,05/01/2024,17/01/2024,1530.61,,Constellia Public Limited
"Commercial, Corporate & landlord Services",Property Services & Facilities Management,Resources,Gwent Police Collaboration,Premises,"Repairs, Alterations & Maintenance of Buildings",Building Improvements / Maintenance,,21/12/2023,16/01/2024,5311.84,,Carreg Fawr Developments Ltd
Schools Total,School Group 2 � Pupil Capacity 144-314,MCC Schools,Pembroke Primary School,Premises,"Repairs, Alterations & Maintenance of Buildings",Premises Repairs And Maintenance,,08/12/2023,16/01/2024,86.1,,Travis Perkins Trading Co Ltd
Schools Total,School Group 7 � Pupil Capacity 501-1800,MCC Schools,King Henry 3-19 School,Employees,Indirect Employee Expenses,Replacement,,24/12/2023,16/01/2024,214.43,,New Directions Education Ltd
Schools Total,School Group 7 � Pupil Capacity 501-1800,MCC Schools,King Henry 3-19 School,Employees,Indirect Employee Expenses,Replacement,,27/12/2023,16/01/2024,144.02,,Back Office Support Services Ltd (Education Supply Pool)
Schools Total,School Group 7 � Pupil Capacity 501-1800,MCC Schools,King Henry 3-19 School,Employees,Indirect Employee Expenses,Replacement,,27/12/2023,16/01/2024,624,,Back Office Support Services Ltd (Education Supply Pool)
Schools Total,School Group 7 � Pupil Capacity 501-1800,MCC Schools,King Henry 3-19 School,Employees,Indirect Employee Expenses,Replacement,,29/11/2023,16/01/2024,175.76,,Now Education
Schools Total,School Group 7 � Pupil Capacity 501-1800,MCC Schools,Monmouth Comprehensive,Supplies & Services,"Printing, Stationery and General Office Expenses",Book Purchases,,09/01/2024,16/01/2024,86.97,,The Geographical Association
Schools Total,School Group 7 � Pupil Capacity 501-1800,MCC Schools,Monmouth Comprehensive,Supplies & Services,"Printing, Stationery and General Office Expenses",Book Purchases,,09/01/2024,16/01/2024,123,,The Geographical Association
Capital Division,Capital Dept,Capital,Capital Programme,Supplies & Services,Services,Professional And Specialist Fees,,12/12/2023,11/01/2024,846,,Owen Davies Consulting Ltd
Schools Total,School Group 7 � Pupil Capacity 501-1800,MCC Schools,King Henry 3-19 School,Employees,Indirect Employee Expenses,Replacement,,20/12/2023,16/01/2024,218.94,,Teaching Personnel
Schools Total,School Group 7 � Pupil Capacity 501-1800,MCC Schools,King Henry 3-19 School,Employees,Indirect Employee Expenses,Replacement,,20/12/2023,16/01/2024,645.05,,Teaching Personnel
Schools Total,School Group 7 � Pupil Capacity 501-1800,MCC Schools,King Henry 3-19 School,Employees,Indirect Employee Expenses,Replacement,,20/12/2023,16/01/2024,645.05,,Teaching Personnel
Schools Total,School Group 7 � Pupil Capacity 501-1800,MCC Schools,King Henry 3-19 School,Employees,Indirect Employee Expenses,Replacement,,20/12/2023,16/01/2024,792.5,,Teaching Personnel
Schools Total,School Group 7 � Pupil Capacity 501-1800,MCC Schools,King Henry 3-19 School,Employees,Indirect Employee Expenses,Replacement,,20/12/2023,16/01/2024,79.4,,Teaching Personnel
Schools Total,School Group 7 � Pupil Capacity 501-1800,MCC Schools,King Henry 3-19 School,Employees,Indirect Employee Expenses,Replacement,,06/12/2023,16/01/2024,160.1,,Now Education
Schools Total,School Group 7 � Pupil Capacity 501-1800,MCC Schools,King Henry 3-19 School,Employees,Indirect Employee Expenses,Replacement,,19/12/2023,16/01/2024,160.9,,Now Education
Schools Total,School Group 7 � Pupil Capacity 501-1800,MCC Schools,King Henry 3-19 School,Employees,Indirect Employee Expenses,Replacement,,19/12/2023,16/01/2024,160.9,,Now Education
Schools Total,School Group 7 � Pupil Capacity 501-1800,MCC Schools,King Henry 3-19 School,Employees,Indirect Employee Expenses,Replacement,,20/12/2023,16/01/2024,516.04,,Teaching Personnel
Children Services,Children Services Teams,Social Care and Health,Long Term Support Team,Employees,Direct Employee Expenses,Agency Staff,,19/12/2023,24/01/2024,3854.33,,Randstad Solutions Ltd
Children Services,Children Services Teams,Social Care and Health,Family Support and Protection Team � North,Employees,Direct Employee Expenses,Agency Staff,,10/12/2023,24/01/2024,5923.95,,Sanctuary Personnel
Children Services,Children Services Teams,Social Care and Health,Disabled Children,Premises,"Repairs, Alterations & Maintenance of Buildings",Building Improvements / Maintenance,,11/01/2024,19/01/2024,46,,A.J Quinn Building Contractors Ltd
Democratic Services,Democratic Services,People & Governance,Electoral Registration,Supplies & Services,Grants and Subscriptions,Subscriptions,,05/01/2024,19/01/2024,284.9,,Quadient UK Ltd
Neighbourhood Services,Waste and Street Services,Communities & Place,Refuse & Cleansing Operations,Premises,"Repairs, Alterations & Maintenance of Buildings",Building Improvements / Maintenance,,10/01/2024,16/01/2024,2100,,SUEZ Recycling and Recovery UK Ltd
Schools Total,School Group 7 � Pupil Capacity 501-1800,MCC Schools,King Henry 3-19 School,Employees,Indirect Employee Expenses,Replacement,,29/12/2023,16/01/2024,130.69,,Prospero Teaching
Schools Total,School Group 7 � Pupil Capacity 501-1800,MCC Schools,King Henry 3-19 School,Employees,Indirect Employee Expenses,Replacement,,29/12/2023,16/01/2024,140,,Prospero Teaching
Schools Total,School Group 7 � Pupil Capacity 501-1800,MCC Schools,King Henry 3-19 School,Employees,Indirect Employee Expenses,Replacement,,29/12/2023,16/01/2024,392.07,,Prospero Teaching
Schools Total,School Group 7 � Pupil Capacity 501-1800,MCC Schools,King Henry 3-19 School,Employees,Indirect Employee Expenses,Replacement,,20/11/2023,16/01/2024,130,,Prospero Teaching
Schools Total,School Group 7 � Pupil Capacity 501-1800,MCC Schools,King Henry 3-19 School,Employees,Indirect Employee Expenses,Replacement,,21/12/2023,16/01/2024,140,,Prospero Teaching
Schools Total,School Group 7 � Pupil Capacity 501-1800,MCC Schools,King Henry 3-19 School,Employees,Indirect Employee Expenses,Replacement,,29/12/2023,16/01/2024,145,,Prospero Teaching
Schools Total,School Group 7 � Pupil Capacity 501-1800,MCC Schools,King Henry 3-19 School,Employees,Indirect Employee Expenses,Replacement,,29/12/2023,16/01/2024,420.03,,Prospero Teaching
Schools Total,School Group 7 � Pupil Capacity 501-1800,MCC Schools,King Henry 3-19 School,Employees,Indirect Employee Expenses,Replacement,,14/12/2023,16/01/2024,140,,Prospero Teaching
Neighbourhood Services,Waste and Street Services,Communities & Place,Refuse & Cleansing Operations,Premises,"Repairs, Alterations & Maintenance of Buildings",Building Improvements / Maintenance,,10/01/2024,16/01/2024,2100,,SUEZ Recycling and Recovery UK Ltd
"Leisure, Youth & Outdoor Adventure",Leisure Services,MonLife Directorate,Monmouth Leisure Centre,Premises,"Repairs, Alterations & Maintenance of Buildings",Building Improvements / Maintenance,,02/01/2024,24/01/2024,990.62,,Dale Sauna Ltd
"Commercial, Corporate & landlord Services",Property Services & Facilities Management,Resources,Office Services,Supplies & Services,"Printing, Stationery and General Office Expenses",Printing,,26/01/2024,30/01/2024,423.06,,Uk Laser Suppliers
Schools Total,School Group 2 � Pupil Capacity 144-314,MCC Schools,Dewstow Primary School,Premises,"Repairs, Alterations & Maintenance of Buildings",Building Improvements / Maintenance,,19/12/2023,30/01/2024,48.46,,Fire Safety Direct
Capital Division,Capital Dept,Capital,Capital Programme,Premises,"Repairs, Alterations & Maintenance of Buildings",Building Improvements / Maintenance,,11/01/2024,22/01/2024,886.76,,A.J Quinn Building Contractors Ltd
"Enterprise, Housing & Community Animation",Business Growth & Enterprise,Communities & Place,CELT Shared Prosperity Fund - Adult,Supplies & Services,Expenses,Non Employee Training Courses,,24/09/2023,29/01/2024,330,,Wild Assessments
Schools Total,School Group 2 � Pupil Capacity 144-314,MCC Schools,Thornwell Primary School,Premises,"Repairs, Alterations & Maintenance of Buildings",Building Improvements / Maintenance,,21/12/2023,03/01/2024,118,,Ambassador Fire & Security LTD
"Enterprise, Housing & Community Animation",General Fund Housing,Communities & Place,Monmouthshire Letting Service,Premises,"Repairs, Alterations & Maintenance of Buildings",Building Improvements / Maintenance,,21/12/2023,03/01/2024,30,,Monmouthshire Housing Association Ltd
"Enterprise, Housing & Community Animation",General Fund Housing,Communities & Place,Monmouthshire Letting Service,Premises,"Repairs, Alterations & Maintenance of Buildings",Building Improvements / Maintenance,,21/12/2023,03/01/2024,60.46,,Monmouthshire Housing Association Ltd
"Enterprise, Housing & Community Animation",General Fund Housing,Communities & Place,Lodgings Scheme,Premises,"Repairs, Alterations & Maintenance of Buildings",Building Improvements / Maintenance,,21/12/2023,03/01/2024,90.5,,Monmouthshire Housing Association Ltd
Schools Total,SCHGRP3 � School Group 3 � Pupil Capacity 315-500,MCC Schools,Magor CiW Primary School (VA),Premises,"Repairs, Alterations & Maintenance of Buildings",Building Improvements / Maintenance,,19/12/2023,11/01/2024,57.16,,EFS Systems (UK) Ltd
Schools Total,School Group 2 � Pupil Capacity 144-314,MCC Schools,Thornwell Primary School,Supplies & Services,"Equipment, Furniture and Materials",Furniture Purchases / Replacement,,21/12/2023,11/01/2024,7.99,,Amazon Payments UK Limited
Schools Total,School Group 2 � Pupil Capacity 144-314,MCC Schools,Osbaston CiW Primary School (VC),Premises,"Repairs, Alterations & Maintenance of Buildings",Building Improvements / Maintenance,,30/11/2023,11/01/2024,73.5,,EFS Systems (UK) Ltd
"Enterprise, Housing & Community Animation",Business Growth & Enterprise,Communities & Place,CELT Shared Prosperity Fund - Adult,Supplies & Services,Expenses,Non Employee Training Courses,,24/09/2023,29/01/2024,330,,Wild Assessments
Control Division,Control Dept,Control,Payroll MCCL3,Current Liabilities,Short Term Creditors,Resource Link Payments,,02/01/2024,03/01/2024,30,,Unite The Union
Control Division,Control Dept,Control,Payroll Monthly General,Current Liabilities,Short Term Creditors,Resource Link Payments,,02/01/2024,03/01/2024,14.95,,Unite The Union
Control Division,Control Dept,Control,Payroll Monthly General,Current Liabilities,Short Term Creditors,Resource Link Payments,,02/01/2024,03/01/2024,1589.33,,Clerical Medical Investment Group
Control Division,Control Dept,Control,Payroll Monthly General,Current Liabilities,Short Term Creditors,Resource Link Payments,,02/01/2024,03/01/2024,30,,G A Y E
Control Division,Control Dept,Control,Payroll Monthly 2 (Schools),Current Liabilities,Short Term Creditors,Resource Link Payments,,02/01/2024,03/01/2024,100,,Clerical Medical Investment Group
Control Division,Control Dept,Control,Payroll Monthly 2 (Schools),Current Liabilities,Short Term Creditors,Resource Link Payments,,02/01/2024,03/01/2024,646,,Gateway Credit Union
Control Division,Control Dept,Control,Payroll Monthly 2 (Schools),Current Liabilities,Short Term Creditors,Resource Link Payments,,02/01/2024,03/01/2024,254.03,,GMB National Administration Unit
Control Division,Control Dept,Control,Payroll Monthly 2 (Schools),Current Liabilities,Short Term Creditors,Resource Link Payments,,02/01/2024,03/01/2024,22.27,,Plutus Health
Control Division,Control Dept,Control,Payroll MCCL3,Current Liabilities,Short Term Creditors,Resource Link Payments,,02/01/2024,03/01/2024,471,,Gateway Credit Union
Control Division,Control Dept,Control,Payroll MCCL3,Current Liabilities,Short Term Creditors,Resource Link Payments,,02/01/2024,03/01/2024,105.6,,GMB National Administration Unit
Control Division,Control Dept,Control,Payroll MCCL3,Current Liabilities,Short Term Creditors,Resource Link Payments,,02/01/2024,03/01/2024,10.18,,Welsh Hospitals & Health Services Association
Control Division,Control Dept,Control,Payroll MCCL3,Current Liabilities,Short Term Creditors,Resource Link Payments,,02/01/2024,03/01/2024,37.26,,Plutus Health
Control Division,Control Dept,Control,Payroll Monthly General,Current Liabilities,Short Term Creditors,Resource Link Payments,,02/01/2024,03/01/2024,2545,,Gateway Credit Union
Control Division,Control Dept,Control,Payroll Monthly General,Current Liabilities,Short Term Creditors,Resource Link Payments,,02/01/2024,03/01/2024,528.98,,GMB National Administration Unit
Control Division,Control Dept,Control,Payroll Monthly General,Current Liabilities,Short Term Creditors,Resource Link Payments,,02/01/2024,03/01/2024,61.08,,Welsh Hospitals & Health Services Association
Control Division,Control Dept,Control,Payroll Monthly General,Current Liabilities,Short Term Creditors,Resource Link Payments,,02/01/2024,03/01/2024,71,,Plutus Health
Schools Total,School Group 7 � Pupil Capacity 501-1800,MCC Schools,Chepstow School,Premises,"Repairs, Alterations & Maintenance of Buildings",Building Improvements / Maintenance,,05/01/2024,11/01/2024,1000,,REDACTED PERSONAL DATA
Schools Total,School Group 2 � Pupil Capacity 144-314,MCC Schools,Usk CiW Primary School (VC),Premises,"Repairs, Alterations & Maintenance of Buildings",Building Improvements / Maintenance,,19/12/2023,11/01/2024,51.52,,EFS Systems (UK) Ltd
Children Services,Children Services Other,Social Care and Health,External Placements - CLA,Third Party Payments,Third Party,Fostering/Adoption Allowances,,01/01/2024,22/01/2024,3534,,Family Fostering Partners
Standards,Early Years,Children & Young People,Early Years,Supplies & Services,Grants and Subscriptions,Grants Payable,,11/01/2024,17/01/2024,1080.64,,Aneurin Bevan Local Health Board
Children Services,Children Services Other,Social Care and Health,External Placements - CLA,Third Party Payments,Third Party,Fostering/Adoption Allowances,,31/01/2024,17/01/2024,3396.76,,Pathway Care Ltd T/A Calon Cymru
Schools Total,Schools,MCC Schools,Pupil Referral Unit,Third Party Payments,Third Party,Placement Fees,,30/09/2023,22/01/2024,600,,Horseland Ltd
Schools Total,Schools,MCC Schools,Pupil Referral Unit,Third Party Payments,Third Party,Placement Fees,,20/12/2023,22/01/2024,550,,Horseland Ltd
Children Services,Children Services Other,Social Care and Health,External Placements - CLA,Third Party Payments,Third Party,Fostering/Adoption Allowances,,15/12/2023,22/01/2024,4278.62,,Action For Children
Standards,Additional Learning Needs,Children & Young People,ALN Transport,Employees,Direct Employee Expenses,Travel Claims Allowance,,24/01/2024,29/01/2024,316.8,,REDACTED PERSONAL DATA
Children Services,Children Services Other,Social Care and Health,External Placements - CLA,Third Party Payments,Third Party,Fostering/Adoption Allowances,,08/01/2024,19/01/2024,63,,National Fostering Agency
Children Services,Children Services Other,Social Care and Health,External Placements - CLA,Third Party Payments,Third Party,Fostering/Adoption Allowances,,31/12/2023,10/01/2024,3895.46,,Supported Fostering Services
Children Services,Children Services Other,Social Care and Health,External Placements - CLA,Third Party Payments,Third Party,Fostering/Adoption Allowances,,31/12/2023,10/01/2024,3985.67,,Compass Fostering West Limited
Children Services,Children Services Other,Social Care and Health,External Placements - CLA,Third Party Payments,Third Party,Fostering/Adoption Allowances,,31/12/2023,10/01/2024,3797.5,,National Fostering Agency
Children Services,Children Services Other,Social Care and Health,External Placements - CLA,Third Party Payments,Third Party,Fostering/Adoption Allowances,,31/12/2023,10/01/2024,4757.26,,TLC Wales Fostering
Standards,Additional Learning Needs,Children & Young People,ALN Transport,Employees,Direct Employee Expenses,Travel Claims Allowance,,14/12/2023,05/01/2024,432,,REDACTED PERSONAL DATA
Schools Total,Schools,MCC Schools,Pupil Referral Unit,Third Party Payments,Third Party,Placement Fees,,30/11/2023,19/01/2024,750,,Horseland Ltd
Children Services,Children Services Other,Social Care and Health,External Placements - CLA,Third Party Payments,Third Party,Fostering/Adoption Allowances,,01/01/2024,19/01/2024,3560.57,,Family Fostering Partners
Children Services,Children Services Other,Social Care and Health,External Placements - CLA,Third Party Payments,Third Party,Fostering/Adoption Allowances,,22/12/2023,10/01/2024,3490.29,,Foster Care Group Wales CYF
Children Services,Children Services Other,Social Care and Health,External Placements - CLA,Third Party Payments,Third Party,Fostering/Adoption Allowances,,01/01/2024,10/01/2024,4250.72,,Foster Care Associates Limited (FCA)
Children Services,Children Services Other,Social Care and Health,External Placements - CLA,Third Party Payments,Third Party,Fostering/Adoption Allowances,,01/01/2024,10/01/2024,3789.75,,Foster Care Associates Limited (FCA)
Children Services,Children Services Other,Social Care and Health,External Placements - CLA,Third Party Payments,Third Party,Fostering/Adoption Allowances,,01/01/2024,10/01/2024,7065.52,,Foster Care Associates Limited (FCA)
Children Services,Children Services Other,Social Care and Health,External Placements - CLA,Third Party Payments,Third Party,Fostering/Adoption Allowances,,01/01/2024,10/01/2024,4250.72,,Foster Care Associates Limited (FCA)
Children Services,Children Services Other,Social Care and Health,External Placements - CLA,Third Party Payments,Third Party,Fostering/Adoption Allowances,,01/01/2024,10/01/2024,4123,,Foster Care Associates Limited (FCA)
Children Services,Children Services Other,Social Care and Health,External Placements - CLA,Third Party Payments,Third Party,Fostering/Adoption Allowances,,01/01/2024,10/01/2024,3933.28,,Foster Care Associates Limited (FCA)
Children Services,Children Services Other,Social Care and Health,External Placements - CLA,Third Party Payments,Third Party,Fostering/Adoption Allowances,,01/01/2024,10/01/2024,3902.28,,Foster Care Associates Limited (FCA)
Children Services,Children Services Other,Social Care and Health,External Placements - CLA,Third Party Payments,Third Party,Fostering/Adoption Allowances,,31/12/2023,10/01/2024,6305.71,,Compass Fostering West Limited
Children Services,Children Services Other,Social Care and Health,External Placements - CLA,Third Party Payments,Third Party,Fostering/Adoption Allowances,,29/11/2023,10/01/2024,3377.7,,Foster Care Group Wales CYF
Children Services,Children Services Other,Social Care and Health,External Placements - CLA,Third Party Payments,Third Party,Fostering/Adoption Allowances,,31/12/2023,10/01/2024,3742.63,,Pathway Care Ltd T/A Calon Cymru
Children Services,Children Services Other,Social Care and Health,External Placements - CLA,Third Party Payments,Third Party,Fostering/Adoption Allowances,,31/12/2023,10/01/2024,2910.6,,Pathway Care Ltd T/A Calon Cymru
Children Services,Children Services Other,Social Care and Health,External Placements - CLA,Third Party Payments,Third Party,Fostering/Adoption Allowances,,31/12/2023,10/01/2024,4015.43,,Compass Fostering West Limited
Children Services,Children Services Other,Social Care and Health,External Placements - CLA,Third Party Payments,Third Party,Fostering/Adoption Allowances,,31/12/2023,10/01/2024,3783.55,,Compass Fostering Wales Limited
Children Services,Children Services Other,Social Care and Health,External Placements - CLA,Third Party Payments,Third Party,Fostering/Adoption Allowances,,31/12/2023,10/01/2024,3783.55,,Compass Fostering Wales Limited
Neighbourhood Services,Highways,Communities & Place,Street Lighting,Third Party Payments,Third Party,Maintenance Contracts,,14/08/2023,18/01/2024,326.73,,Enerveo Ltd
"Commercial, Corporate & landlord Services",Property Services & Facilities Management,Resources,Reactive Maintenance,Premises,"Repairs, Alterations & Maintenance of Buildings",Building Improvements / Maintenance,,02/01/2024,04/01/2024,88,,P&P Pest Control
"Commercial, Corporate & landlord Services",Property Services & Facilities Management,Resources,Reactive Maintenance,Premises,"Repairs, Alterations & Maintenance of Buildings",Building Improvements / Maintenance,,23/01/2024,25/01/2024,444,,Ambassador Fire & Security LTD
"Commercial, Corporate & landlord Services",Property Services & Facilities Management,Resources,Reactive Maintenance,Premises,"Repairs, Alterations & Maintenance of Buildings",Building Improvements / Maintenance,,11/01/2024,11/01/2024,-69,,Industrial Door Services
Neighbourhood Services,Highways,Communities & Place,Street Lighting,Third Party Payments,Third Party,Maintenance Contracts,,14/08/2023,18/01/2024,326.73,,Enerveo Ltd
Neighbourhood Services,Highways,Communities & Place,Street Lighting,Third Party Payments,Third Party,Maintenance Contracts,,14/08/2023,18/01/2024,326.73,,Enerveo Ltd
Neighbourhood Services,Highways,Communities & Place,Street Lighting,Third Party Payments,Third Party,Maintenance Contracts,,14/08/2023,18/01/2024,326.73,,Enerveo Ltd
Neighbourhood Services,Highways,Communities & Place,Street Lighting,Third Party Payments,Third Party,Maintenance Contracts,,14/08/2023,18/01/2024,326.73,,Enerveo Ltd
Neighbourhood Services,Highways,Communities & Place,Street Lighting,Third Party Payments,Third Party,Maintenance Contracts,,14/08/2023,18/01/2024,326.73,,Enerveo Ltd
Neighbourhood Services,Highways,Communities & Place,Street Lighting,Third Party Payments,Third Party,Maintenance Contracts,,14/08/2023,18/01/2024,326.73,,Enerveo Ltd
Neighbourhood Services,Highways,Communities & Place,Street Lighting,Third Party Payments,Third Party,Maintenance Contracts,,14/08/2023,18/01/2024,326.73,,Enerveo Ltd
Neighbourhood Services,Highways,Communities & Place,Street Lighting,Third Party Payments,Third Party,Maintenance Contracts,,14/08/2023,18/01/2024,326.73,,Enerveo Ltd
Neighbourhood Services,Highways,Communities & Place,Street Lighting,Third Party Payments,Third Party,Maintenance Contracts,,14/08/2023,18/01/2024,326.73,,Enerveo Ltd
Neighbourhood Services,Highways,Communities & Place,Street Lighting,Third Party Payments,Third Party,Maintenance Contracts,,14/08/2023,18/01/2024,326.73,,Enerveo Ltd
Neighbourhood Services,Highways,Communities & Place,Street Lighting,Third Party Payments,Third Party,Maintenance Contracts,,15/08/2023,18/01/2024,938.89,,Enerveo Ltd
Neighbourhood Services,Highways,Communities & Place,Street Lighting,Third Party Payments,Third Party,Maintenance Contracts,,08/11/2023,18/01/2024,517,,Enerveo Ltd
Neighbourhood Services,Highways,Communities & Place,Street Lighting,Third Party Payments,Third Party,Maintenance Contracts,,08/11/2023,18/01/2024,517,,Enerveo Ltd
Neighbourhood Services,Highways,Communities & Place,Street Lighting,Third Party Payments,Third Party,Maintenance Contracts,,08/11/2023,18/01/2024,517,,Enerveo Ltd
Schools Total,School Group 2 � Pupil Capacity 144-314,MCC Schools,Ysgol Gymraeg Y Fenni,Supplies & Services,"Equipment, Furniture and Materials",Equipment Purchases,,23/01/2024,29/01/2024,399.64,,Amazon Payments UK Limited
Schools Total,School Group 2 � Pupil Capacity 144-314,MCC Schools,Ysgol Gymraeg Y Fenni,Supplies & Services,"Equipment, Furniture and Materials",Equipment Purchases,,23/01/2024,29/01/2024,1.93,,Amazon Payments UK Limited
Children Services,Children Services Other,Social Care and Health,Counsel Costs,Supplies & Services,Services,Legal Costs,,28/12/2023,24/01/2024,1400,,REDACTED PERSONAL DATA
Children Services,Children Services Other,Social Care and Health,Counsel Costs,Supplies & Services,Services,Legal Costs,,10/01/2024,24/01/2024,821,,REDACTED PERSONAL DATA
"Commercial, Corporate & landlord Services",Property Services & Facilities Management,Resources,Reactive Maintenance,Premises,"Repairs, Alterations & Maintenance of Buildings",Building Improvements / Maintenance,,24/01/2024,25/01/2024,10264.87,,Lorne Stewart  Plc
"Facilities, Fleet & Decarbonisation",Transport Planning,Communities & Place,Public Transport Subsidy Grant,Transport,Public Transport,Bus Subsidies,,31/12/2023,16/01/2024,14789.2,,Newport Transport Ltd
"Commercial, Corporate & landlord Services",Property Services & Facilities Management,Resources,Reactive Maintenance,Premises,"Repairs, Alterations & Maintenance of Buildings",Building Improvements / Maintenance,,14/12/2023,16/01/2024,49.45,,A.J Quinn Building Contractors Ltd
Schools Total,School Group 2 � Pupil Capacity 144-314,MCC Schools,Pembroke Primary School,Employees,Direct Employee Expenses,Agency Staff,,22/12/2023,16/01/2024,260,,ANZUK Education Ltd
Schools Total,SCHGRP3 � School Group 3 � Pupil Capacity 315-500,MCC Schools,Magor CiW Primary School (VA),Employees,Direct Employee Expenses,Agency Staff,,28/12/2023,17/01/2024,468.16,,Axcis Education Recruitment
Schools Total,Schools,MCC Schools,Pupil Referral Unit,Employees,Direct Employee Expenses,Agency Staff,,11/12/2023,17/01/2024,761.08,,Apollo Teaching Services LTD
"Facilities, Fleet & Decarbonisation",Transport Planning,Communities & Place,Public Transport Subsidy Grant,Transport,Public Transport,Bus Subsidies,,01/01/2024,16/01/2024,3399.5,,Newport Transport Ltd
"Facilities, Fleet & Decarbonisation",Transport Planning,Communities & Place,Public Transport Subsidy Grant,Transport,Public Transport,Bus Subsidies,,01/01/2024,16/01/2024,5500,,Newport Transport Ltd
"Facilities, Fleet & Decarbonisation",Transport Planning,Communities & Place,Public Transport Subsidy Grant,Transport,Public Transport,Bus Subsidies,,01/01/2024,16/01/2024,4020.83,,Newport Transport Ltd
"Facilities, Fleet & Decarbonisation",Transport Planning,Communities & Place,Public Transport Subsidy Grant,Transport,Public Transport,Bus Subsidies,,01/01/2024,16/01/2024,5895.83,,Newport Transport Ltd
Schools Total,SCHGRP3 � School Group 3 � Pupil Capacity 315-500,MCC Schools,Overmonnow Primary School,Supplies & Services,"Equipment, Furniture and Materials",Equipment Purchases,,11/01/2024,16/01/2024,73.95,,Eureka 1st Aid & Safety for Schools
Schools Total,School Group 2 � Pupil Capacity 144-314,MCC Schools,Llanfoist Fawr Primary School,Supplies & Services,"Equipment, Furniture and Materials",Equipment Purchases,,09/01/2024,16/01/2024,399.94,,TTS Group Ltd
"Facilities, Fleet & Decarbonisation",Transport Planning,Communities & Place,Public Transport Subsidy Grant,Transport,Public Transport,Travel Concessions,,31/12/2023,16/01/2024,25.32,,Lydney Dial-a-Ride and Community Transport
"Facilities, Fleet & Decarbonisation",Transport Department,Communities & Place,Transport,Transport,Contract Hire and Operating Leases,Vehicle Hire Charge,,20/12/2023,11/01/2024,235.2,,Days Rental
Schools Total,School Group 2 � Pupil Capacity 144-314,MCC Schools,Cantref Primary School,Supplies & Services,"Equipment, Furniture and Materials",Materials & Consumables.,,16/01/2024,19/01/2024,10.98,,Amazon Payments UK Limited
Schools Total,School Group 2 � Pupil Capacity 144-314,MCC Schools,Our Lady & St Michael's (OLSM) RC Primary School (VA),Supplies & Services,"Equipment, Furniture and Materials",Materials & Consumables.,,28/11/2023,19/01/2024,4.88,,Amazon Payments UK Limited
Schools Total,School Group 2 � Pupil Capacity 144-314,MCC Schools,Archbishop Rowan Williams CiW Primary School (VA),Supplies & Services,"Equipment, Furniture and Materials",Materials & Consumables.,,28/11/2023,19/01/2024,780,,The Church Of England Education Services Limited
Adult Services,Community Care Team,Social Care and Health,Chepstow Adult Team,Third Party Payments,Third Party,Personal Care.,,22/01/2024,29/01/2024,837.9,,Lougher Home Care Ltd
Schools Total,School Group 2 � Pupil Capacity 144-314,MCC Schools,Thornwell Primary School,Supplies & Services,"Equipment, Furniture and Materials",Materials & Consumables.,,07/12/2023,10/01/2024,16.58,,Amazon Payments UK Limited
Adult Services,Community Care Team,Social Care and Health,Chepstow Adult Team,Third Party Payments,Third Party,Personal Care.,,31/12/2023,11/01/2024,722.4,,Helping Hands
"Facilities, Fleet & Decarbonisation",Transport Department,Communities & Place,Transport,Transport,Contract Hire and Operating Leases,Vehicle Hire Charge,,18/12/2023,11/01/2024,4154,,Econ Engineering Ltd
"Facilities, Fleet & Decarbonisation",Transport Department,Communities & Place,Transport,Transport,Contract Hire and Operating Leases,Vehicle Hire Charge,,18/12/2023,11/01/2024,4154,,Econ Engineering Ltd
Schools Total,School Group 7 � Pupil Capacity 501-1800,MCC Schools,King Henry 3-19 School,Employees,Indirect Employee Expenses,"Course, Conference And Seminar Fees",,18/01/2024,30/01/2024,135,,Torfaen County Borough Council
Adult Services,Community Care Team,Social Care and Health,Chepstow Adult Team,Third Party Payments,Third Party,Personal Care.,,22/01/2024,29/01/2024,1276.8,,Lougher Home Care Ltd
Adult Services,Community Care Team,Social Care and Health,Chepstow Adult Team,Third Party Payments,Third Party,Personal Care.,,22/01/2024,29/01/2024,786.6,,Lougher Home Care Ltd
Schools Total,School Group 2 � Pupil Capacity 144-314,MCC Schools,Archbishop Rowan Williams CiW Primary School (VA),Supplies & Services,"Equipment, Furniture and Materials",Materials & Consumables.,,14/12/2023,30/01/2024,9.75,,University Of Wales Trinity Saint David
Schools Total,School Group 2 � Pupil Capacity 144-314,MCC Schools,Archbishop Rowan Williams CiW Primary School (VA),Supplies & Services,"Equipment, Furniture and Materials",Materials & Consumables.,,14/12/2023,30/01/2024,490.25,,University Of Wales Trinity Saint David
Schools Total,School Group 2 � Pupil Capacity 144-314,MCC Schools,Thornwell Primary School,Supplies & Services,"Equipment, Furniture and Materials",Materials & Consumables.,,17/01/2024,25/01/2024,18.58,,Wye Valley Country Store
Schools Total,School Group 2 � Pupil Capacity 144-314,MCC Schools,Thornwell Primary School,Supplies & Services,"Equipment, Furniture and Materials",Materials & Consumables.,,17/01/2024,25/01/2024,9.49,,Wye Valley Country Store
Schools Total,School Group 2 � Pupil Capacity 144-314,MCC Schools,Our Lady & St Michael's (OLSM) RC Primary School (VA),Supplies & Services,"Equipment, Furniture and Materials",Materials & Consumables.,,09/01/2024,19/01/2024,42.78,,Hope Education Ltd
"Facilities, Fleet & Decarbonisation",Transport Department,Communities & Place,Transport,Transport,Direct Transport Costs,Acquisition,,18/01/2024,25/01/2024,39,,Quartix
Schools Total,School Group 2 � Pupil Capacity 144-314,MCC Schools,Dewstow Primary School,Supplies & Services,"Equipment, Furniture and Materials",Materials & Consumables.,,19/01/2024,25/01/2024,99.95,,Amazon Payments UK Limited
Schools Total,School Group 2 � Pupil Capacity 144-314,MCC Schools,Thornwell Primary School,Supplies & Services,"Equipment, Furniture and Materials",Materials & Consumables.,,29/12/2023,18/01/2024,9.29,,Wye Valley Country Store
Adult Services,Community Care Team,Social Care and Health,Chepstow Adult Team,Third Party Payments,Third Party,Personal Care.,,31/12/2023,11/01/2024,2452.8,,Helping Hands
Schools Total,School Group 2 � Pupil Capacity 144-314,MCC Schools,Thornwell Primary School,Supplies & Services,"Equipment, Furniture and Materials",Materials & Consumables.,,28/11/2023,11/01/2024,18.81,,Amazon Payments UK Limited
Neighbourhood Services,Highways,Communities & Place,Overhead - SWTRA / External,Employees,Indirect Employee Expenses,"Course, Conference And Seminar Fees",,09/08/2023,11/01/2024,540,,Coleg Gwent
"Facilities, Fleet & Decarbonisation",Transport Department,Communities & Place,Transport,Transport,Contract Hire and Operating Leases,Vehicle Hire Charge,,31/12/2023,11/01/2024,1785,,N D Brown Ltd
"Facilities, Fleet & Decarbonisation",Transport Department,Communities & Place,Transport,Transport,Contract Hire and Operating Leases,Vehicle Hire Charge,,19/12/2023,11/01/2024,13082,,Econ Engineering Ltd
Schools Total,School Group 2 � Pupil Capacity 144-314,MCC Schools,St Mary�s RC Primary School (VA),Supplies & Services,"Equipment, Furniture and Materials",Materials & Consumables.,,25/01/2024,30/01/2024,13.32,,Amazon Payments UK Limited
Adult Services,Community Care Team,Social Care and Health,Chepstow Adult Team,Third Party Payments,Third Party,Personal Care.,,05/01/2024,22/01/2024,1262.35,,Radis Community Care
Schools Total,School Group 1 � Pupil Capacity 1-143,MCC Schools,Ysgol Gymraeg Y Ffin,Supplies & Services,"Equipment, Furniture and Materials",Materials & Consumables.,,12/01/2024,18/01/2024,105.45,,ESPO
Adult Services,Community Care Team,Social Care and Health,Chepstow Adult Team,Third Party Payments,Third Party,Personal Care.,,05/01/2024,22/01/2024,1377.87,,Radis Community Care
Adult Services,Community Care Team,Social Care and Health,Chepstow Adult Team,Third Party Payments,Third Party,Personal Care.,,22/01/2024,29/01/2024,656.93,,Lougher Home Care Ltd
Adult Services,Community Care Team,Social Care and Health,Chepstow Adult Team,Third Party Payments,Third Party,Personal Care.,,15/01/2024,26/01/2024,2430.4,,Helping Hands
Schools Total,School Group 7 � Pupil Capacity 501-1800,MCC Schools,King Henry 3-19 School,Premises,"Repairs, Alterations & Maintenance of Buildings",Skip Hire,,17/01/2024,24/01/2024,115.5,,Thomas Waste Management Ltd
Schools Total,School Group 7 � Pupil Capacity 501-1800,MCC Schools,King Henry 3-19 School,Premises,"Repairs, Alterations & Maintenance of Buildings",Skip Hire,,20/12/2023,24/01/2024,313.5,,Thomas Waste Management Ltd
Schools Total,Schools,MCC Schools,Pupil Referral Unit,Supplies & Services,"Equipment, Furniture and Materials",Equipment Purchases,,31/07/2023,19/01/2024,40.44,,Toytastik
Adult Services,Direct Care Residential,Social Care and Health,Severn View Residential,Supplies & Services,"Equipment, Furniture and Materials",Health & Safety Equipment.,,28/04/2023,18/01/2024,15.64,,Orbis Protect Limited
Standards,Additional Learning Needs,Children & Young People,Additional Learning Needs,Supplies & Services,Services,Professional And Specialist Fees,,11/01/2024,18/01/2024,192,,Seirrah Therapies
Children Services,Children Services Teams,Social Care and Health,Placement & Support Team,Supplies & Services,Services,Professional And Specialist Fees,,21/12/2023,11/01/2024,1500,,Talkworks Training & Development
Standards,Additional Learning Needs,Children & Young People,Additional Learning Needs Equipment Budget,Supplies & Services,"Equipment, Furniture and Materials",Health & Safety Equipment.,,14/11/2023,22/01/2024,2357,,Premiere Healthcare Ltd
Children Services,Children Services Teams,Social Care and Health,Placement & Support Team,Supplies & Services,Services,Professional And Specialist Fees,,21/12/2023,11/01/2024,1500,,Talkworks Training & Development
Children Services,Children Services Teams,Social Care and Health,Placement & Support Team,Supplies & Services,Services,Professional And Specialist Fees,,21/12/2023,11/01/2024,-1500,,Talkworks Training & Development
"Leisure, Youth & Outdoor Adventure",Leisure Services,MonLife Directorate,Chepstow Leisure Centre,Supplies & Services,"Equipment, Furniture and Materials",Equipment Purchases,,05/01/2024,19/01/2024,16.65,,J P Lennard Ltd
"Leisure, Youth & Outdoor Adventure",Leisure Services,MonLife Directorate,Chepstow Leisure Centre,Supplies & Services,"Equipment, Furniture and Materials",Equipment Purchases,,05/01/2024,19/01/2024,68,,J P Lennard Ltd
"Leisure, Youth & Outdoor Adventure",Leisure Services,MonLife Directorate,Chepstow Leisure Centre,Supplies & Services,"Equipment, Furniture and Materials",Equipment Purchases,,05/01/2024,19/01/2024,16.2,,J P Lennard Ltd
Children Services,Children Services Teams,Social Care and Health,Placement & Support Team,Supplies & Services,Services,Professional And Specialist Fees,,21/12/2023,11/01/2024,-1500,,Talkworks Training & Development
"Enterprise, Housing & Community Animation",General Fund Housing,Communities & Place,Care Line,Supplies & Services,"Equipment, Furniture and Materials",Equipment Purchases,,20/12/2023,11/01/2024,7,,Doro Care (UK) Limited
"Commercial, Corporate & landlord Services",Asset Management,Resources,County Farms Unit,Supplies & Services,Services,Professional And Specialist Fees,,30/11/2023,05/01/2024,1396,,REDACTED PERSONAL DATA
Standards,Early Years,Children & Young People,Flying Start Grant,Supplies & Services,"Equipment, Furniture and Materials",Equipment Purchases,,26/01/2024,31/01/2024,1260,,Raindrops
Standards,Early Years,Children & Young People,Flying Start Grant,Supplies & Services,"Equipment, Furniture and Materials",Equipment Purchases,,26/01/2024,31/01/2024,8.33,,Raindrops
"Placemaking, Highways & Flooding",Planning Policy,Communities & Place,Planning Policy,Supplies & Services,Services,Professional And Specialist Fees,,31/12/2023,10/01/2024,2720,,Burrows-Hutchinson Ltd
"Placemaking, Highways & Flooding",Planning Policy,Communities & Place,Planning Policy,Supplies & Services,Services,Professional And Specialist Fees,,18/10/2022,10/01/2024,3100,,Blaenau Gwent County Borough Council
Children Services,Children Services Teams,Social Care and Health,Long Term Support Team,Supplies & Services,Services,Professional And Specialist Fees,,02/01/2024,11/01/2024,378,,Richmond Nursing Agency Ltd
"Enterprise, Housing & Community Animation",General Fund Housing,Communities & Place,Care Line,Supplies & Services,"Equipment, Furniture and Materials",Equipment Purchases,,23/10/2023,18/01/2024,2615,,Doro Care (UK) Limited
"Enterprise, Housing & Community Animation",General Fund Housing,Communities & Place,Care Line,Supplies & Services,"Equipment, Furniture and Materials",Equipment Purchases,,23/10/2023,18/01/2024,7,,Doro Care (UK) Limited
Finance & Business Devlopment,Leisure Services,MonLife Directorate,Leisure Service Management,Supplies & Services,Services,Professional And Specialist Fees,,31/03/2023,18/01/2024,25.2,,Debit Finance Collections PLC t/as Legend
"Commercial, Corporate & landlord Services",Asset Management,Resources,Investment Assets � Newport Leisure Park,Supplies & Services,Services,Professional And Specialist Fees,,28/06/2023,18/01/2024,181.5,,Alder King LLP
"Commercial, Corporate & landlord Services",Asset Management,Resources,Commercialisation of Assets,Supplies & Services,Services,Professional And Specialist Fees,,14/12/2023,18/01/2024,-296.95,,Alder King LLP
"Commercial, Corporate & landlord Services",Asset Management,Resources,Commercialisation of Assets,Supplies & Services,Services,Professional And Specialist Fees,,14/12/2023,18/01/2024,-1344.29,,Alder King LLP
"Commercial, Corporate & landlord Services",Asset Management,Resources,Commercialisation of Assets,Supplies & Services,Services,Professional And Specialist Fees,,14/12/2023,18/01/2024,-1681.56,,Alder King LLP
"Commercial, Corporate & landlord Services",Asset Management,Resources,Commercialisation of Assets,Supplies & Services,Services,Professional And Specialist Fees,,16/10/2023,18/01/2024,13662.61,,Alder King LLP
Standards,Additional Learning Needs,Children & Young People,Additional Learning Needs,Supplies & Services,Services,Professional And Specialist Fees,,24/12/2023,05/01/2024,507.5,,Pony Pals Ltd
Neighbourhood Services,Highways,Communities & Place,Overhead - Mon Highways,Supplies & Services,"Equipment, Furniture and Materials",Health & Safety Equipment.,,13/12/2023,19/01/2024,99,,Evolve Corporate Ltd T/A PK Safety
"Facilities, Fleet & Decarbonisation",Catering Services,Communities & Place,Schools Catering,Supplies & Services,"Equipment, Furniture and Materials",Health & Safety Equipment.,,13/12/2023,19/01/2024,345,,Evolve Corporate Ltd T/A PK Safety
Children Services,Children Services Teams,Social Care and Health,Long Term Support Team,Supplies & Services,Services,Professional And Specialist Fees,,26/12/2023,10/01/2024,2007.25,,Richmond Nursing Agency Ltd
Children Services,Children Services Teams,Social Care and Health,Long Term Support Team,Supplies & Services,Services,Professional And Specialist Fees,,26/12/2023,10/01/2024,4045.3,,Richmond Nursing Agency Ltd
"Enterprise, Housing & Community Animation",General Fund Housing,Communities & Place,Care Line,Supplies & Services,"Equipment, Furniture and Materials",Equipment Purchases,,23/11/2023,11/01/2024,2740,,Doro Care (UK) Limited
Children Services,Children Services Teams,Social Care and Health,Placement & Support Team,Supplies & Services,Services,Professional And Specialist Fees,,21/12/2023,11/01/2024,1500,,Talkworks Training & Development
Children Services,Children Services Teams,Social Care and Health,Placement & Support Team,Supplies & Services,Services,Professional And Specialist Fees,,21/12/2023,11/01/2024,-1500,,Talkworks Training & Development
Schools Total,School Group 2 � Pupil Capacity 144-314,MCC Schools,Thornwell Primary School,Supplies & Services,Services,Professional And Specialist Fees,,14/12/2023,11/01/2024,270,,Torfaen County Borough Council
Schools Total,School Group 7 � Pupil Capacity 501-1800,MCC Schools,King Henry 3-19 School,Premises,"Repairs, Alterations & Maintenance of Buildings",Skip Hire,,17/01/2024,24/01/2024,313.5,,Thomas Waste Management Ltd
Schools Total,School Group 2 � Pupil Capacity 144-314,MCC Schools,Dewstow Primary School,Supplies & Services,"Equipment, Furniture and Materials",Materials & Consumables.,,18/01/2024,24/01/2024,31.56,,Hope Education Ltd
Schools Total,School Group 2 � Pupil Capacity 144-314,MCC Schools,Dewstow Primary School,Supplies & Services,"Equipment, Furniture and Materials",Materials & Consumables.,,18/01/2024,24/01/2024,15.3,,Hope Education Ltd
Neighbourhood Services,Highways,Communities & Place,Overhead - Mon Highways,Employees,Indirect Employee Expenses,"Course, Conference And Seminar Fees",,07/07/2023,17/01/2024,760,,Coleg Gwent
Neighbourhood Services,Highways,Communities & Place,Overhead - Mon Highways,Employees,Indirect Employee Expenses,"Course, Conference And Seminar Fees",,03/10/2023,17/01/2024,760,,Coleg Gwent
Schools Total,School Group 2 � Pupil Capacity 144-314,MCC Schools,Rogiet Primary School,Supplies & Services,"Equipment, Furniture and Materials",Materials & Consumables.,,14/12/2023,18/01/2024,69.95,,Inkjets and Toners
Schools Total,School Group 2 � Pupil Capacity 144-314,MCC Schools,Rogiet Primary School,Supplies & Services,"Equipment, Furniture and Materials",Materials & Consumables.,,14/12/2023,18/01/2024,69.95,,Inkjets and Toners
Schools Total,School Group 2 � Pupil Capacity 144-314,MCC Schools,Rogiet Primary School,Supplies & Services,"Equipment, Furniture and Materials",Materials & Consumables.,,14/12/2023,18/01/2024,69.95,,Inkjets and Toners
Schools Total,School Group 2 � Pupil Capacity 144-314,MCC Schools,Usk CiW Primary School (VC),Premises,Cleaning and Domestic Supplies,Premises Pest Control,,22/01/2024,31/01/2024,101,,P&P Pest Control
Schools Total,School Group 2 � Pupil Capacity 144-314,MCC Schools,Rogiet Primary School,Supplies & Services,"Equipment, Furniture and Materials",Materials & Consumables.,,21/10/2023,30/01/2024,163.65,,School Merit Stickers
Schools Total,School Group 2 � Pupil Capacity 144-314,MCC Schools,St Mary�s RC Primary School (VA),Supplies & Services,"Equipment, Furniture and Materials",Materials & Consumables.,,19/01/2024,30/01/2024,72,,Kudos Compamies Ltd
Adult Services,Community Care Team,Social Care and Health,Chepstow Adult Team,Third Party Payments,Third Party,Personal Care.,,22/01/2024,30/01/2024,1898.1,,Lougher Home Care Ltd
Adult Services,Community Care Team,Social Care and Health,Chepstow Adult Team,Third Party Payments,Third Party,Personal Care.,,22/01/2024,26/01/2024,-101.75,,Radis Community Care
Adult Services,Community Care Team,Social Care and Health,Chepstow Adult Team,Third Party Payments,Third Party,Personal Care.,,22/01/2024,26/01/2024,490.11,,Radis Community Care
Adult Services,Community Care Team,Social Care and Health,Chepstow Adult Team,Third Party Payments,Third Party,Personal Care.,,22/01/2024,30/01/2024,1419.3,,Lougher Home Care Ltd
Adult Services,Community Care Team,Social Care and Health,Chepstow Adult Team,Third Party Payments,Third Party,Personal Care.,,18/01/2024,30/01/2024,6206.68,,Liberty Care Ltd
Adult Services,Community Care Team,Social Care and Health,Chepstow Adult Team,Third Party Payments,Third Party,Personal Care.,,22/01/2024,30/01/2024,1915.2,,Lougher Home Care Ltd
Adult Services,Community Care Team,Social Care and Health,Chepstow Adult Team,Third Party Payments,Third Party,Personal Care.,,22/01/2024,30/01/2024,3351.6,,Lougher Home Care Ltd
Schools Total,School Group 2 � Pupil Capacity 144-314,MCC Schools,St Mary�s RC Primary School (VA),Supplies & Services,"Equipment, Furniture and Materials",Materials & Consumables.,,19/01/2024,30/01/2024,21.5,,Kudos Compamies Ltd
Schools Total,School Group 2 � Pupil Capacity 144-314,MCC Schools,Rogiet Primary School,Premises,Cleaning and Domestic Supplies,Premises Pest Control,,17/01/2024,30/01/2024,496,,P&P Pest Control
Adult Services,Community Care Team,Social Care and Health,Chepstow Adult Team,Third Party Payments,Third Party,Personal Care.,,05/01/2024,22/01/2024,439.27,,Radis Community Care
Schools Total,SCHGRP3 � School Group 3 � Pupil Capacity 315-500,MCC Schools,The Dell Primary School,Supplies & Services,"Equipment, Furniture and Materials",Materials & Consumables.,,18/12/2023,18/01/2024,57.81,,Amazon Payments UK Limited
Schools Total,SCHGRP3 � School Group 3 � Pupil Capacity 315-500,MCC Schools,The Dell Primary School,Supplies & Services,"Equipment, Furniture and Materials",Materials & Consumables.,,18/12/2023,18/01/2024,-12.94,,Amazon Payments UK Limited
Schools Total,SCHGRP3 � School Group 3 � Pupil Capacity 315-500,MCC Schools,The Dell Primary School,Supplies & Services,"Equipment, Furniture and Materials",Materials & Consumables.,,18/12/2023,18/01/2024,12.94,,Amazon Payments UK Limited
Schools Total,SCHGRP3 � School Group 3 � Pupil Capacity 315-500,MCC Schools,The Dell Primary School,Supplies & Services,"Equipment, Furniture and Materials",Materials & Consumables.,,18/12/2023,18/01/2024,-1.31,,Amazon Payments UK Limited
Schools Total,SCHGRP3 � School Group 3 � Pupil Capacity 315-500,MCC Schools,The Dell Primary School,Supplies & Services,"Equipment, Furniture and Materials",Materials & Consumables.,,18/12/2023,18/01/2024,16.63,,Amazon Payments UK Limited
Schools Total,SCHGRP3 � School Group 3 � Pupil Capacity 315-500,MCC Schools,The Dell Primary School,Supplies & Services,"Equipment, Furniture and Materials",Materials & Consumables.,,19/12/2023,18/01/2024,0.61,,Amazon Payments UK Limited
Schools Total,SCHGRP3 � School Group 3 � Pupil Capacity 315-500,MCC Schools,The Dell Primary School,Supplies & Services,"Equipment, Furniture and Materials",Materials & Consumables.,,06/12/2023,18/01/2024,15.57,,Amazon Payments UK Limited
Schools Total,SCHGRP3 � School Group 3 � Pupil Capacity 315-500,MCC Schools,The Dell Primary School,Supplies & Services,"Equipment, Furniture and Materials",Materials & Consumables.,,13/12/2023,18/01/2024,13.98,,Amazon Payments UK Limited
